Workbook

Sheet EN_PL

Sheet Intro
B3: Uwaga: | J3: Please note:
B5: W niniejszym pliku zaprezentowane są dane finansowe Grupy Asseco za kwartały lat 2021, 2020, 2019 i 2018. | J5: This workbook contains financial information of the Asseco Group for the quarters of the years 2021, 2020, 2019 and 2018.
B6: Objaśnienia:
B8: Arkusze oznaczone kolorem niebieskim zawierają P&L, Bilans i Rachunek przepływów pieniężnych (w tym Rachunek przepływów pieniężnych za okres ostatnich 12 miesięcy). W arkuszu Segments, znajdują się informacje dotyczące segmentów operacyjnych grupy. Arkusz RevenuesAndCosts zawiera dane uszczegóławiające do pozycji przychodów i kosztów operacyjnych. Kursy walut funkcjonalnych zagranicznych jednostek zależnych obowiązujące na dni bilansowe oraz kursy średnie stosowane w latach 2015-2021 zamieszczone są w arkuszu Exchange rates. | J8: The sheets marked with blue colour contain P&L, statement of financial position and the statement of cash flow of the Asseco Group. The Segments sheet contains data on the groups' operating segments. The RevenuesAndCosts sheet presents details for the items of revenues and operating costs. The exchange rates of the foreign subsidiaries' functional currencies as at the balance sheet date and the average exchange rates used in years 2015-2021 are presented in the Exchange Rates sheet.

Sheet PL
A1: P&L (Grupa Asseco) | B1: P&L (Asseco Group) | C1: YE 2017 | D1: Q1 2018 | E1: Q2 2018 | F1: Q3 2018 | G1: Q4 2018 | H1: Q1 2019 | I1: Q2 2019 | J1: Q3 2019 | K1: Q4 2019 | L1: Q1 2020 | M1: Q2 2020 | N1: Q3 2020 | O1: Q4 2020 | P1: Q1 2021 | Q1: Q2 2021 | R1: Q3 2021
C4: mln PLN | D4: mln PLN | E4: mln PLN | F4: mln PLN | G4: mln PLN | H4: mln PLN | I4: mln PLN | J4: mln PLN | K4: mln PLN | L4: mln PLN | M4: mln PLN | N4: mln PLN | O4: mln PLN | P4: mln PLN | Q4: mln PLN | R4: mln PLN
A6: Działalność kontynuowana | B6: Continuing operations
A7: Przychody ze sprzedaży | B7: Sales revenues | C7: 7829.3 | D7: 2149 | E7: 2310.9 | F7: 2218.4 | G7: 2650.3 | H7: 2452.2 | I7: 2538.7 | J7: 2738.4 | K7: 2938.1 | L7: 2920.4 | M7: 2850.3 | N7: 2938.1 | O7: 3483 | P7: 3339.1 | Q7: 3451.9 | R7: 3502.1
A9: Koszt własny sprzedaży (-) | B9: Cost of sales | C9: -6157.5 | D9: -1711.7 | E9: -1797.8 | F9: -1748.3 | G9: -2081.6 | H9: -1923.4 | I9: -1989.3 | J9: -2145.3 | K9: -2310 | L9: -2312.8 | M9: -2229.6 | N9: -2295.1 | O9: -2692.6 | P9: -2624.1 | Q9: -2663.2 | R9: -2691.4
A11: Zysk brutto ze sprzedaży | B11: Gross profit on sales | C11: =SUM(C7:C9) -> 1671.8 | D11: =SUM(D7:D9) -> 437.3 | E11: 513.1 | F11: 470.1 | G11: 568.7 | H11: =SUM(H7:H9) -> 528.8 | I11: =SUM(I7:I9) -> 549.4 | J11: 593.1 | K11: 628.1 | L11: 607.6 | M11: 620.7 | N11: 643 | O11: 790.4 | P11: 715 | Q11: 788.7 | R11: 810.7
A13: Koszty sprzedaży (-) | B13: Selling costs | C13: -446.8 | D13: -118.4 | E13: -130.7 | F13: -120.3 | G13: -134.5 | H13: -130.2 | I13: -132.8 | J13: -147.3 | K13: -158 | L13: -148.1 | M13: -142.8 | N13: -145.2 | O13: -174 | P13: -175.1 | Q13: -189.6 | R13: -188.9
A14: Koszty ogólnego zarządu (-) | B14: General administrative expenses | C14: -624.9 | D14: -147.8 | E14: -176.6 | F14: -161.8 | G14: -189.9 | H14: -168.9 | I14: -185.2 | J14: -184.7 | K14: -206.4 | L14: -205.1 | M14: -170.6 | N14: -196.9 | O14: -248.9 | P14: -214 | Q14: -247.3 | R14: -248.8
A16: Zysk netto ze sprzedaży | B16: Net profit on sales | C16: =SUM(C11,C13:C14) -> 600.1 | D16: =SUM(D11,D13:D14) -> 171.1 | E16: 205.8 | F16: 188 | G16: =SUM(G11,G13:G14) -> 244.3 | H16: 229.7 | I16: 231.4 | J16: 261.1 | K16: 263.7 | L16: 254.4 | M16: 307.3 | N16: 300.9 | O16: 367.5 | P16: 325.9 | Q16: 351.8 | R16: 373
A18: Pozostałe przychody operacyjne* | B18: Other operating income* | C18: 41.6 | D18: 8.6 | E18: 8.1 | F18: 16.6 | G18: 5.4 | H18: 11.9 | I18: 7.1 | J18: 11.3 | K18: 10.8 | L18: 8 | M18: 3.3 | N18: 6.9 | O18: 7.4 | P18: 5.7 | Q18: 6.6 | R18: 8.8
A19: Pozostałe koszty operacyjne (-)* | B19: Other operating expenses* | C19: -56.9 | D19: -12.4 | E19: -10.1 | F19: -17 | G19: -11.6 | H19: -16.9 | I19: -9.6 | J19: -11.8 | K19: -14.1 | L19: -12.6 | M19: -6.9 | N19: -8.8 | O19: -12.4 | P19: -8.6 | Q19: -9.4 | R19: -8.8
A21: Zysk z działalności operacyjnej | B21: Operating profit | C21: =SUM(C16:C19) -> 584.8 | D21: =SUM(D16:D19) -> 167.3 | E21: 203.8 | F21: 187.6 | G21: 238.1 | H21: =SUM(H16:H19) -> 224.7 | I21: =SUM(I16:I19) -> 228.9 | J21: 260.6 | K21: 260.4 | L21: 249.8 | M21: 303.7 | N21: 299 | O21: 362.5 | P21: 323 | Q21: 349 | R21: 373
A23: Działalność finansowa | B23: Financial activity | C23: 191.7 | D23: -6.1 | E23: -6.5 | F23: -9.6 | G23: -0.6 | H23: -24.6 | I23: -11 | J23: -29.9 | K23: -22.5 | L23: -20 | M23: -30.8 | N23: -34.4 | O23: -51.1 | P23: -24.9 | Q23: -7 | R23: -34.3
A25: Zysk przed opodatkowaniem i udziałem w wynikach jednostek stowarzyszonych | B25: Pre-tax profit and share in profits of associates | C25: =SUM(C20:C23) -> 776.5 | D25: =SUM(D20:D23) -> 161.2 | E25: 197.3 | F25: 178 | G25: 237.5 | H25: =SUM(H20:H23) -> 200.1 | I25: =SUM(I20:I23) -> 217.9 | J25: 230.7 | K25: 237.9 | L25: 229.8 | M25: 272.9 | N25: 264.6 | O25: 311.4 | P25: 298.1 | Q25: 342 | R25: 338.7
A27: Podatek dochodowy | B27: Corporate income tax | C27: -122 | D27: -43.2 | E27: -45.2 | F27: -37 | G27: -56.9 | H27: -43.8 | I27: -48.2 | J27: -50.7 | K27: -47.9 | L27: -51.6 | M27: -62.1 | N27: -55.2 | O27: -46.8 | P27: -64.7 | Q27: -75.8 | R27: -72.3
A28: Udział w wynikach jednostek stowarzyszonych | B28: Share in profits of associates | C28: -37.7 | D28: -1.4 | E28: -0.7 | F28: 0.3 | G28: 3.8 | H28: 0.9 | I28: -0.3 | J28: 1.2 | K28: 4.5 | L28: -1.8 | M28: 0.8 | N28: -1.9 | O28: 7.5 | P28: -0.2 | Q28: 3 | R28: -2.4
A30: Zysk z działalności kontynuowanej za okres sprawozdawczy | B30: Net profit for the period from continuing operations | C30: =SUM(C25,C27:C28) -> 616.8 | D30: =SUM(D25,D27:D28) -> 116.6 | E30: 151.4 | F30: 141.3 | G30: 184.4 | H30: =SUM(H25,H27:H28) -> 157.2 | I30: =SUM(I25,I27:I28) -> 169.4 | J30: 181.2 | K30: 194.5 | L30: 176.4 | M30: 211.6 | N30: 207.5 | O30: 272.1 | P30: 233.2 | Q30: 269.2 | R30: 264
A32: Działalność zaniechana | B32: Discontinued operations
A33: Zysk z działalności zaniechanej za okres sprawozdawczy | B33: Net profit for the period from discontinued operations | C33: 0 | D33: 0 | E33: 0 | F33: 0 | G33: 0 | H33: 0 | I33: 0 | J33: 0 | K33: 0 | L33: 0 | M33: 0 | N33: 0 | O33: 0 | P33: 0 | Q33: 0 | R33: 0
A35: Zysk za okres sprawozdawczy | B35: Net profit for the reporting period | C35: =C30+C33 -> 616.8 | D35: =D30+D33 -> 116.6 | E35: 151.4 | F35: =F30+F33 -> 141.3 | G35: =G30+G33 -> 184.4 | H35: =H30+H33 -> 157.2 | I35: =I30+I33 -> 169.4 | J35: =J30+J33 -> 181.2 | K35: 194.5 | L35: 176.4 | M35: 211.6 | N35: 207.5 | O35: 272.1 | P35: 233.2 | Q35: =Q30+Q33 -> 269.2 | R35: 264
A36: Przypadający: | B36: Attributable to:
A37: Akcjonariuszom Jednostki Dominującej | B37: Shareholders of the Parent Company | C37: =C35-C38 -> 466.6 | D37: =D35-D38 -> 68.9 | E37: 88.4 | F37: 78 | G37: 98 | H37: =H35-H38 -> 79.6 | I37: =I35-I38 -> 80.1 | J37: 78.4 | K37: =K35-K38 -> 83.8 | L37: 81.7 | M37: 95.1 | N37: 90.7 | O37: 134.2 | P37: 102.4 | Q37: =Q35-Q38 -> 139.4 | R37: 120.4
A38: Udziałowcom niekontrolującym | B38: Non-controling interests | C38: 150.2 | D38: 47.7 | E38: 63 | F38: 63.3 | G38: 86.4 | H38: 77.6 | I38: 89.3 | J38: 102.8 | K38: 110.7 | L38: 94.7 | M38: 116.5 | N38: 116.8 | O38: 137.9 | P38: 130.8 | Q38: 129.8 | R38: 143.6
A40: *W ramach pozostałej działalności operacyjnej dokonano spersaldowania wyniku (przychodów i kosztów) na sprzedaży środków trwałych, wartości niematerialnych oraz aktywów z tytułu prawa do użytkowania | B40: * As part of other operating activities, the result (income and expenses) on the sale of property, plant and equipment, intangible assets and assets due to the right of use was offset.

Sheet BS
A1: Bilans (Grupa Asseco) | B1: Statement of financial position (Asseco Group) | C1: YE 2017 | D1: Q1 2018 | E1: Q2 2018 | F1: Q3 2018 | G1: Q4 2018 | H1: Q1 2019 | I1: Q2 2019 | J1: Q3 2019 | K1: Q4 2019 | L1: Q1 2020 | M1: Q2 2020 | N1: Q3 2020 | O1: Q4 2020 | P1: Q1 2021 | Q1: Q2 2021 | R1: Q3 2021
C4: mln PLN | D4: mln PLN | E4: mln PLN | F4: mln PLN | G4: mln PLN | H4: mln PLN | I4: mln PLN | J4: mln PLN | K4: mln PLN | L4: mln PLN | M4: mln PLN | N4: mln PLN | O4: mln PLN | P4: mln PLN | Q4: mln PLN | R4: mln PLN
A7: Aktywa trwałe | B7: Non-current assets
A8: Rzeczowe aktywa trwałe | B8: Property, plant and equipment | C8: 850.2 | D8: 832.3 | E8: 851.2 | F8: 838.4 | G8: 828.4 | H8: 767.3 | I8: 773.8 | J8: 825.9 | K8: 822.7 | L8: 863.3 | M8: 859.1 | N8: 892.5 | O8: 914.7 | P8: 908.8 | Q8: 888.4 | R8: 899.5
A9: Wartości niematerialne | B9: Intangible assets | C9: 2083.2 | D9: 2031.4 | E9: 2112.1 | F9: 2036.9 | G9: 1991 | H9: 2073.6 | I9: 2018.3 | J9: 2171.4 | K9: 2106.5 | L9: 2219.6 | M9: 2152.7 | N9: 2177.8 | O9: 2281.2 | P9: 2269.3 | Q9: 2317 | R9: 2456.3
A10: Aktywa z tytułu prawa do użytkowania | B10: Right-to-use assets | C10: 0 | D10: 0 | E10: 0 | F10: 0 | G10: 0 | H10: 655.3 | I10: 716.1 | J10: 738.7 | K10: 686.6 | L10: 708.3 | M10: 731.3 | N10: 678.6 | O10: 724.7 | P10: 727.2 | Q10: 688.4 | R10: 673.7
A11: Nieruchomości inwestycyjne | B11: Investment property | C11: 19.7 | D11: 19.8 | E11: 20.1 | F11: 20.1 | G11: 21 | H11: 23.4 | I11: 24.2 | J11: 20.7 | K11: 20.6 | L11: 20.7 | M11: 17.4 | N11: 16.7 | O11: 18 | P11: 18 | Q11: 18 | R11: 18
A12: Wartość firmy | B12: Goodwill | C12: 4017 | D12: 4024.4 | E12: 4204.7 | F12: 4197.4 | G12: 4254 | H12: 4418.8 | I12: 4411.4 | J12: 4614.9 | K12: 4561.4 | L12: 4759.1 | M12: 4742.2 | N12: 4876.4 | O12: 5126.8 | P12: 5210.1 | Q12: 5427 | R12: 5452.4
A13: Inwestycje wyceniane metodą praw własności | B13: Investments valued using equity method | C13: 100.5 | D13: 97.6 | E13: 105 | F13: 102.9 | G13: 111.5 | H13: 133 | I13: 131 | J13: 139.6 | K13: 145 | L13: 160 | M13: 156.6 | N13: 152.3 | O13: 162.4 | P13: 168.2 | Q13: 162.6 | R13: 166
A14: Należności długoterminowe | B14: Long-term receivables | C14: 108.3 | D14: 106.8 | E14: 118.9 | F14: 119.9 | G14: 127.5 | H14: 117.6 | I14: 107.5 | J14: 123.7 | K14: 110.3 | L14: 110.9 | M14: 90.9 | N14: 79.5 | O14: 94.2 | P14: 90.7 | Q14: 79 | R14: 71.9
A15: Aktywa z tytułu odroczonego pod. doch. | B15: Deferred income tax assets | C15: 87.1 | D15: 77.9 | E15: 85.5 | F15: 76.4 | G15: 84.8 | H15: 93.2 | I15: 93.4 | J15: 102.3 | K15: 177.7 | L15: 200.4 | M15: 187.8 | N15: 189.1 | O15: 202.4 | P15: 208.6 | Q15: 220.5 | R15: 231.3
A16: Inne aktywa niefinansowe | B16: Other non-financial assets | C16: 0.2 | D16: 0.1 | E16: 0.2 | F16: 0 | G16: 0.1 | H16: 0 | I16: 0 | J16: 0 | K16: 0.5 | L16: 0 | M16: 0 | N16: 0 | O16: 0 | P16: 0 | Q16: 0 | R16: 0
A17: Pozostałe długoterminowe aktywa finansowe | B17: Long-term financial assets | C17: 177.1 | D17: 169.5 | E17: 176.8 | F17: 153.8 | G17: 175.1 | H17: 162.6 | I17: 150.9 | J17: 152.9 | K17: 142.2 | L17: 145.8 | M17: 143.3 | N17: 125 | O17: 128.7 | P17: 115.8 | Q17: 112 | R17: 39.6
A18: Długoterminowe rozliczenia międzyokresowe | B18: Long-term prepayments and accrued income | C18: 46.3 | D18: 51.9 | E18: 53.4 | F18: 50.9 | G18: 59.2 | H18: 58.6 | I18: 64.1 | J18: 73.9 | K18: 68.4 | L18: 76.2 | M18: 71.7 | N18: 68.6 | O18: 101.6 | P18: 114.4 | Q18: 105.7 | R18: 99.8
C19: =SUM(C8:C18) -> 7489.6 | D19: =SUM(D8:D18) -> 7411.7 | E19: 7727.9 | F19: 7596.7 | G19: 7652.6 | H19: =SUM(H8:H18) -> 8503.4 | I19: =SUM(I8:I18) -> 8490.7 | J19: 8964 | K19: 8841.9 | L19: 9264.3 | M19: 9153 | N19: 9256.5 | O19: 9754.7 | P19: 9831.1 | Q19: 10018.6 | R19: =SUM(R8:R18) -> 10108.5
A20: Aktywa obrotowe | B20: Current assets
A21: Zapasy | B21: Inventories | C21: 72.9 | D21: 81.2 | E21: 76.9 | F21: 93.8 | G21: 94.3 | H21: 99.3 | I21: 111.2 | J21: 124.1 | K21: 122.6 | L21: 123.2 | M21: 136.6 | N21: 162.9 | O21: 186.9 | P21: 190.2 | Q21: 174 | R21: 181.2
A22: Rozliczenia międzyokresowe | B22: Prepayments and accrued income | C22: 149.8 | D22: 179.4 | E22: 182 | F22: 172.7 | G22: 168.5 | H22: 232.2 | I22: 237 | J22: 254.6 | K22: 242.9 | L22: 297.2 | M22: 277.8 | N22: 267.8 | O22: 291.5 | P22: 347.4 | Q22: 321.9 | R22: 320.8
A23: Należności z tytułu dostaw i usług | B23: Trade receivables | C23: 2372.1 | D23: 2211.7 | E23: 2116.3 | F23: 2183.5 | G23: 2432.7 | H23: 2348.7 | I23: 2448.1 | J23: 2553.1 | K23: 2632.4 | L23: 2724.6 | M23: 2517.8 | N23: 2625.5 | O23: 2890.9 | P23: 3004.5 | Q23: 3040.5 | R23: 3253.4
A24: Aktywa z tytułu umów z klientami | B24: Contract assets | C24: 0 | D24: 0 | E24: 270.1 | F24: 262.9 | G24: 214.3 | H24: 279.7 | I24: 254.9 | J24: 286.4 | K24: 212.6 | L24: 278.7 | M24: 328.6 | N24: 347.9 | O24: 303.9 | P24: 374.2 | Q24: 396.1 | R24: 444.3
A25: Należności z tytułu podatku CIT | B25: Corporate income tax receivable | C25: 88.7 | D25: 77.1 | E25: 57 | F25: 56.6 | G25: 47.6 | H25: 58.8 | I25: 69.4 | J25: 66.3 | K25: 71.5 | L25: 56.8 | M25: 61 | N25: 65.2 | O25: 101 | P25: 75.8 | Q25: 76.3 | R25: 83.3
A26: Należności budżetowe | B26: Receivables from the state and local budgets | C26: 20.6 | D26: 25.6 | E26: 29.2 | F26: 32.8 | G26: 37.3 | H26: 34.6 | I26: 34.9 | J26: 35.4 | K26: 34.5 | L26: 36.4 | M26: 31.9 | N26: 30.1 | O26: 29.7 | P26: 40.7 | Q26: 34 | R26: 29.5
A27: Pozostałe należności | B27: Other receivables | C27: 38.5 | D27: 43.9 | E27: 45.1 | F27: 48.9 | G27: 39.1 | H27: 367.8 | I27: 49.1 | J27: 68.1 | K27: 73.4 | L27: 81.3 | M27: 61.5 | N27: 60.5 | O27: 59.3 | P27: 65.6 | Q27: 72.1 | R27: 88.2
A28: Inne aktywa niefinansowe | B28: Other non-financial receivables | C28: 9.1 | D28: 12.3 | E28: 9.2 | F28: 11 | G28: 9 | H28: 8 | I28: 12.3 | J28: 25.5 | K28: 12.8 | L28: 12.8 | M28: 13.9 | N28: 14.4 | O28: 7.5 | P28: 10 | Q28: 9.5 | R28: 13.2
A29: Pozostałe aktywa finansowe | B29: Financial assets | C29: 86 | D29: 83.5 | E29: 67.3 | F29: 84.8 | G29: 139.3 | H29: 108.1 | I29: 108.9 | J29: 105.2 | K29: 194.8 | L29: 102.8 | M29: 73 | N29: 53.7 | O29: 186.6 | P29: 203.1 | Q29: 112.5 | R29: 208.7
A30: Środki pieniężne i depozyty krótkoterminowe | B30: Cash and short-term deposits | C30: 1547.7 | D30: 1546.7 | E30: 1447.4 | F30: 1604 | G30: 1800.5 | H30: 1853.6 | I30: 1867.5 | J30: 1927.4 | K30: 2153.5 | L30: 2634.8 | M30: 2489.4 | N30: 2392.7 | O30: 2896 | P30: 2716.9 | Q30: 2492.4 | R30: 2714.5
A31: Aktywa długoterm. sklas. jako przezn. do sprzedaży | B31: Non-current assets classified as held for sale | C31: 7.4 | D31: 7.4 | E31: 7.5 | F31: 9.6 | G31: 10.9 | H31: 8.4 | I31: 3.6 | J31: 1.5 | K31: 1.3 | L31: 1.3 | M31: 1.3 | N31: 1.3 | O31: 0 | P31: 0
C32: =SUM(C21:C31) -> 4392.8 | D32: =SUM(D21:D31) -> 4268.8 | E32: 4308 | F32: 4560.6 | G32: 4993.5 | H32: =SUM(H21:H31) -> 5399.2 | I32: =SUM(I21:I31) -> 5196.9 | J32: 5447.6 | K32: 5752.3 | L32: =SUM(L21:L31) -> 6349.9 | M32: 5992.8 | N32: 6022 | O32: 6953.3 | P32: 7028.4 | Q32: 6729.3 | R32: 7337.1
A34: SUMA AKTYWÓW | B34: TOTAL ASSETS | C34: =C32+C19 -> 11882.4 | D34: =D32+D19 -> 11680.5 | E34: 12035.9 | F34: 12157.3 | G34: 12646.1 | H34: =H32+H19 -> 13902.6 | I34: 13687.6 | J34: 14411.6 | K34: 14594.2 | L34: 15614.2 | M34: =M32+M19 -> 15145.8 | N34: 15278.5 | O34: =O32+O19 -> 16708 | P34: 16859.5 | Q34: =Q32+Q19 -> 16747.9 | R34: 17445.6
A36: Kapitał własny (przypisany akcjonariuszom Jednostki Dominującej) | B36: Equity (attributable to shareholders of the Parent Company) | C36: 5601.4 | D36: 5615.9 | E36: 5574.7 | F36: 5604.6 | G36: 5717.7 | H36: 5818.8 | I36: 5608.7 | J36: 5748.1 | K36: 5764.9 | L36: 5959.2 | M36: 5765.6 | N36: 5844.7 | O36: 6044.4 | P36: 6193.1 | Q36: 5992.9 | R36: 6189.7
A38: Udziały niekontrolujące | B38: Non-controlling interests | C38: 1727.1 | D38: 1660.6 | E38: 1784.8 | F38: 1867.8 | G38: 1944.6 | H38: 2080.4 | I38: 2054 | J38: 2211.1 | K38: 2218.9 | L38: 2385.6 | M38: 2342.4 | N38: 2372.8 | O38: 2913 | P38: 3066 | Q38: 2976.6 | R38: 3169.9
A40: Kapitał własny ogółem | B40: Total equity | C40: =SUM(C36:C38) -> 7328.5 | D40: =SUM(D36:D38) -> 7276.5 | E40: 7359.5 | F40: 7472.4 | G40: 7662.3 | H40: =SUM(H36:H38) -> 7899.2 | I40: =SUM(I36:I38) -> 7662.7 | J40: 7959.2 | K40: 7983.8 | L40: 8344.8 | M40: 8108 | N40: 8217.5 | O40: 8957.4 | P40: 9259.1 | Q40: 8969.5 | R40: 9359.6
A42: Zobowiązania długoterminowe | B42: Non-current liabilities
A43: Oprocentowane kred. bankowe, poż., dłużne pap. wart. | B43: Interest-bearing bank loans, borrowing and debt securities | C43: 1046.3 | D43: 935.9 | E43: 911.7 | F43: 889.6 | G43: 1082.9 | H43: 1276.5 | I43: 1228 | J43: 1278 | K43: 1366.2 | L43: 1564.7 | M43: 1777.7 | N43: 1644 | O43: 1552.2 | P43: 1434.7 | Q43: 1531.3 | R43: 1566.8
A44: Długoterminowe zob. z tyt. leasingu | B44: Long-term finance lease liabilities | C44: 49.2 | D44: 45.1 | E44: 43.9 | F44: 37.4 | G44: 32.1 | H44: 478.1 | I44: 519.2 | J44: 526.2 | K44: 472.3 | L44: 506.9 | M44: 530.9 | N44: 501.2 | O44: 544.7 | P44: 552.3 | Q44: 513.8 | R44: 497.8
A45: Długoterminowe zob. finansowe | B45: Long-term financial liabilities | C45: 275.4 | D45: 320.8 | E45: 256.4 | F45: 257.5 | G45: 180.3 | H45: 248.6 | I45: 227.4 | J45: 292 | K45: 234.6 | L45: 273.9 | M45: 174 | N45: 255.4 | O45: 184 | P45: 173.3 | Q45: 255.6 | R45: 268.6
A46: Rezerwy z tytułu odroczonego pod. doch. | B46: Deferred income tax liabilities | C46: 414.2 | D46: 409.1 | E46: 424 | F46: 410.4 | G46: 410.7 | H46: 426.4 | I46: 415.3 | J46: 447.4 | K46: 479.6 | L46: 513.1 | M46: 495.3 | N46: 498.4 | O46: 530.8 | P46: 534.6 | Q46: 547.5 | R46: 587.1
A47: Długoterminowe rezerwy | B47: Long-term provisions | C47: 73.2 | D47: 64.8 | E47: 66.7 | F47: 64.1 | G47: 67.9 | H47: 72.9 | I47: 75.9 | J47: 79.8 | K47: 81.9 | L47: 93.9 | M47: 93.5 | N47: 112.5 | O47: 109.7 | P47: 108.8 | Q47: 106.8 | R47: 108.6
A48: Długoterminowe rozliczenia międzyok. przych. | B48: Long-term deferred income | C48: 78.7 | D48: 79.4 | E48: 43.4 | F48: 43.4 | G48: 43.3 | H48: 43.1 | I48: 43 | J48: 42 | K48: 41 | L48: 50.5 | M48: 54.7 | N48: 59.8 | O48: 64.7 | P48: 63.9 | Q48: 61.9 | R48: 62.4
A49: Pozostałe zobowiązania długoterminowe | B49: Other long-term liabilities | C49: 16.2 | D49: 15.1 | E49: 47.2 | F49: 44.3 | G49: 46.9 | H49: 49.3 | I49: 44.8 | J49: 51.7 | K49: 70 | L49: 90 | M49: 92 | N49: 105.9 | O49: 142.6 | P49: 151.9 | Q49: 139.7 | R49: 139.5
C50: =SUM(C43:C49) -> 1953.2 | D50: =SUM(D43:D49) -> 1870.2 | E50: 1793.3 | F50: 1746.7 | G50: 1864.1 | H50: =SUM(H43:H49) -> 2594.9 | I50: =SUM(I43:I49) -> 2553.6 | J50: 2717.1 | K50: 2745.6 | L50: 3093 | M50: 3218.1 | N50: 3177.2 | O50: =SUM(O43:O49) -> 3128.7 | P50: 3019.5 | Q50: 3156.6 | R50: 3230.8
A51: Zobowiązania krótkoterminowe | B51: Current liabilities
A52: Oprocentowane kred. bankowe, poż., dłużne pap. wart. | B52: Interest-bearing bank loans, borrowing and debt securities | C52: 395.3 | D52: 561 | E52: 724.3 | F52: 806.2 | G52: 581.6 | H52: 691.6 | I52: 786.5 | J52: 878.3 | K52: 689.4 | L52: 937 | M52: 679.7 | N52: 707.3 | O52: 703.1 | P52: 744.6 | Q52: 845.5 | R52: 1126
A53: Zobowiązania z tytułu leasingu | B53: Finance lease liabilities | C53: 26.8 | D53: 26.8 | E53: 28.7 | F53: 28.1 | G53: 28.9 | H53: 189.8 | I53: 206.6 | J53: 224.3 | K53: 216.7 | L53: 205.7 | M53: 199.6 | N53: 178.4 | O53: 183.9 | P53: 191.9 | Q53: 184.5 | R53: 190.1
A54: Pozostałe zobowiązania finansowe | B54: Financial liabilities | C54: 114.5 | D54: 78.3 | E54: 187 | F54: 189.4 | G54: 199.3 | H54: 198 | I54: 218.7 | J54: 267 | K54: 265.1 | L54: 218.2 | M54: 296.9 | N54: 280.1 | O54: 331.5 | P54: 373.3 | Q54: 363.3 | R54: 215.5
A55: Zobowiązania z tytułu dostaw i usług | B55: Trade payables | C55: 855.8 | D55: 683.2 | E55: 692.1 | F55: 729.8 | G55: 938.2 | H55: 839.1 | I55: 792.9 | J55: 801 | K55: 983.5 | L55: 952.8 | M55: 852.9 | N55: 933.6 | O55: 1191.7 | P55: 1016.3 | Q55: 1042.7 | R55: 1080.4
A56: Zobowiązania z tytułu umów z klientami | B56: Contract liabilities | C56: 0 | D56: 0 | E56: 440.2 | F56: 388 | G56: 451.1 | H56: 603.8 | I56: 584.6 | J56: 606.1 | K56: 627.3 | L56: 799.6 | M56: 733.8 | N56: 710.3 | O56: 900.1 | P56: 1039.1 | Q56: 936.8 | R56: 887.1
A57: Zobowiązania z tytułu podatku CIT | B57: Corporate income tax payable | C57: 73.9 | D57: 69.2 | E57: 83.3 | F57: 84.7 | G57: 73.7 | H57: 68 | I57: 63.2 | J57: 70.8 | K57: 89.5 | L57: 83.7 | M57: 81.2 | N57: 41.9 | O57: 67.4 | P57: 59.8 | Q57: 76.4 | R57: 99.9
A58: Zobowiązania budżetowe | B58: Liabilities to the state and local budgets | C58: 162.7 | D58: 120.6 | E58: 128 | F58: 133.7 | G58: 204.8 | H58: 155.1 | I58: 177.1 | J58: 168.8 | K58: 231 | L58: 212.8 | M58: 204.6 | N58: 243.3 | O58: 296.2 | P58: 212.2 | Q58: 215.5 | R58: 266.3
A59: Pozostałe zobowiązania | B59: Other liabilities | C59: 290.2 | D59: 279.4 | E59: 282.3 | F59: 267.7 | G59: 314.3 | H59: 340.9 | I59: 309.9 | J59: 338.1 | K59: 372.8 | L59: 394.3 | M59: 382.3 | N59: 384.5 | O59: 482.5 | P59: 501 | Q59: 450.9 | R59: 502.5
A60: Rezerwy | B60: Provisions | C60: 51.4 | D60: 36.2 | E60: 34.2 | F60: 35.7 | G60: 45.4 | H60: 47 | I60: 35.7 | J60: 42.9 | K60: 39.2 | L60: 48 | M60: 39.1 | N60: 36.2 | O60: 36.7 | P60: 30.5 | Q60: 33.5 | R60: 31.4
A61: Rozliczenia międzyokresowe przychodów | B61: Deferred income | C61: 358.1 | D61: 440.5 | E61: 16.3 | F61: 10 | G61: 7.8 | H61: 9.7 | I61: 10.9 | J61: 11.1 | K61: 9.8 | L61: 9.8 | M61: 7.1 | N61: 5.6 | O61: 7.5 | P61: 8.4 | Q61: 9.7 | R61: 8.2
A62: Rozliczenia międzyokresowe kosztów | B62: Accruals | C62: 272 | D62: 238.6 | E62: 266.7 | F62: 264.9 | G62: 274.6 | H62: 265.5 | I62: 285.2 | J62: 326.9 | K62: 340.5 | L62: 314.5 | M62: 342.5 | N62: 362.6 | O62: 421.3 | P62: 403.8 | Q62: 463 | R62: 447.8
C63: =SUM(C52:C62) -> 2600.7 | D63: =SUM(D52:D62) -> 2533.8 | E63: 2883.1 | F63: 2938.2 | G63: 3119.7 | H63: =SUM(H52:H62) -> 3408.5 | I63: 3471.3 | J63: 3735.3 | K63: 3864.8 | L63: 4176.4 | M63: =SUM(M52:M62) -> 3819.7 | N63: 3883.8 | O63: =SUM(O52:O62) -> 4621.9 | P63: 4580.9 | Q63: =SUM(Q52:Q62) -> 4621.8 | R63: 4855.2
A64: Suma zobowiązań | B64: Total liabilities | C64: =SUM(C50,C63) -> 4553.9 | D64: =SUM(D50,D63) -> 4404 | E64: 4676.4 | F64: 4684.9 | G64: 4983.8 | H64: =SUM(H50,H63) -> 6003.4 | I64: 6024.9 | J64: 6452.4 | K64: 6610.4 | L64: 7269.4 | M64: =SUM(M50,M63) -> 7037.8 | N64: 7061 | O64: =SUM(O50,O63) -> 7750.6 | P64: 7600.4 | Q64: =SUM(Q50,Q63) -> 7778.4 | R64: 8086
A66: SUMA PASYWÓW | B66: TOTAL EQUITY AND LIABILITIES | C66: =SUM(C64,C40) -> 11882.4 | D66: =SUM(D64,D40) -> 11680.5 | E66: 12035.9 | F66: 12157.3 | G66: 12646.1 | H66: =SUM(H64,H40) -> 13902.6 | I66: =SUM(I64,I40) -> 13687.6 | J66: 14411.6 | K66: 14594.2 | L66: 15614.2 | M66: =SUM(M64,M40) -> 15145.8 | N66: 15278.5 | O66: =SUM(O64,O40) -> 16708 | P66: 16859.5 | Q66: =SUM(Q64,Q40) -> 16747.9 | R66: 17445.6
C67: =C66-C34 -> 0 | D67: =D66-D34 -> 0 | E67: =E66-E34 -> 0 | F67: 0 | G67: 0 | H67: 0 | I67: 0 | J67: 0 | K67: 0 | L67: 0 | M67: 0 | N67: 0 | O67: 0 | P67: 0 | Q67: 0 | R67: 0

Sheet CF
A1: Rachunek przepływów pieniężnych (Grupa Asseco) | B1: Statement of cash flows (Asseco Group)
C2: YE 2017 | D2: Q1 2018 | E2: Q2 2018 | F2: Q3 2018 | G2: Q4 2018 | H2: Q1 2019 | I2: Q2 2019 | J2: Q3 2019 | K2: Q4 2019 | L2: Q1 2020 | M2: Q2 2020 | N2: Q3 2020 | O2: Q4 2020 | P2: Q1 2021 | Q2: Q2 2021 | R2: Q3 2021
C4: mln PLN | D4: mln PLN | E4: mln PLN | F4: mln PLN | G4: mln PLN | H4: mln PLN | I4: mln PLN | J4: mln PLN | K4: mln PLN | L4: mln PLN | M4: mln PLN | N4: mln PLN | O4: mln PLN | P4: mln PLN | Q4: mln PLN | R4: mln PLN
A6: Przepływy środków pieniężnych z działalności operacyjnej | B6: Cash flows - operating activities
A7: Zysk przed opodatkowaniem i udziałem w wynikach jednostek stowarzyszonych i wspólnych przedsięwzięć | B7: Profit before tax and share of profits of associates and joint ventures | C7: 776.5 | D7: 161.2 | E7: 197.3 | F7: 178 | G7: 237.5 | H7: 200.1 | I7: 217.9 | J7: 230.7 | K7: 237.9 | L7: 229.8 | M7: 272.9 | N7: 264.6 | O7: 311.4 | P7: 298.1 | Q7: 342 | R7: 338.7
A9: Korekty o pozycje: | B9: Total adjustments: | C9: =SUM(C10:C24) -> 86.6 | D9: =SUM(D10:D24) -> 21.2 | E9: 10.9 | F9: 17.8 | G9: 353.9 | H9: 166.9 | I9: -12.9 | J9: =SUM(J10:J24) -> 170.6 | K9: 558.5 | L9: =SUM(L10:L24) -> 157.9 | M9: 209.4 | N9: 219 | O9: 566.3 | P9: -156 | Q9: 109.8 | R9: 83.5
A10: Amortyzacja | B10: Depreciation and amortization | C10: 337.1 | D10: 117.2 | E10: 112.5 | F10: 113.7 | G10: 116.1 | H10: 144.4 | I10: 158.8 | J10: 164.2 | K10: 169.6 | L10: 170.3 | M10: 172.8 | N10: 177.9 | O10: 186.1 | P10: 174.8 | Q10: 186.7 | R10: 189.9
A11: Zmiany stanu kapitału pracującego (szczegóły poniżej) | B11: Changes in working capital (see below) | C11: -70.8 | D11: -101.2 | E11: -104.9 | F11: -115.2 | G11: 238.1 | H11: 3.1 | I11: -198.9 | J11: -28.5 | K11: 354.6 | L11: -51.1 | M11: 14.4 | N11: -1 | O11: 314.1 | P11: -361.9 | Q11: -101.6 | R11: -148.9
A12: Przychody/koszty z tytułu odsetek | B12: Interest income/expenses | C12: 43.1 | D12: 7.2 | E12: 13.2 | F12: -1 | G12: 7.2 | H12: 15 | I12: 24.5 | J12: 24.8 | K12: 19.4 | L12: 13 | M12: 24.4 | N12: 22.8 | O12: 15.7 | P12: 17.2 | Q12: 19.1 | R12: 20
A13: Przychody/koszty z różnic kursowych | B13: Gain/loss on foreign exchange differences | C13: 44.4 | D13: -3.2 | E13: -26.8 | F13: 8 | G13: -3.6 | H13: 4.2 | I13: -9.6 | J13: -7.1 | K13: 15.7 | L13: -7.1 | M13: 2.5 | N13: 1.9 | O13: 21.7 | P13: -8.3 | Q13: 8.5 | R13: -3.3
A14: Przychody/koszty z tytułu aktywów finansowych | B14: Gain/loss on financial assets [1] | C14: -71.1 | D14: 0 | E14: 0 | F14: 0 | G14: 0 | H14: 0 | I14: 0 | J14: 0 | K14: 0 | L14: 0 | M14: 0 | N14: 0 | O14: 0 | P14: 0 | Q14: 0 | R14: 0
A15: Pozostałe przychody/koszty finansowe | B15: Other financial income/expenses | C15: 27 | D15: 0.2 | E15: 10.6 | F15: 5.6 | G15: -4.6 | H15: -4.3 | I15: 8.1 | J15: 10.6 | K15: -3.5 | L15: 18.7 | M15: -4.6 | N15: 9.8 | O15: 3.4 | P15: 8.7 | Q15: -16.9 | R15: 14.6
A16: Zysk na utracie kontroli nad spółkami zależnymi | B16: Gain on lose of control over subsidiaries | C16: -359.2 | D16: 0 | E16: 0 | F16: 0 | G16: 0 | H16: 0 | I16: 0 | J16: 0 | K16: 0 | L16: 0 | M16: 0 | N16: 0 | O16: 0 | P16: 0 | Q16: 0 | R16: 0
A17: Odpis z tytułu utraty wartości firmy | B17: Write-off of consolidated goodwill | C17: 100.1 | D17: 0 | E17: 0 | F17: 0 | G17: 0 | H17: 0 | I17: 0 | J17: 0 | K17: 0 | L17: 0 | M17: 0 | N17: 0 | O17: 0 | P17: 0 | Q17: 0 | R17: 0
A18: Zyski/straty na sprzedaży rzeczowych AT i WN [1] | B18: Gain/loss on disposal of PPE and IA [1] | C18: -5.5 | D18: -0.7 | E18: -0.4 | F18: -0.8 | G18: -2.1 | H18: -0.6 | I18: -1 | J18: -0.7 | K18: -0.4 | L18: -0.5 | M18: -1 | N18: -1 | O18: -0.7 | P18: -2 | Q18: -0.8 | R18: -2.2
A19: Zysk na sprzedaży spółki zależnej | B19: Gain on disposal of subsidiary | C19: 0 | D19: 0 | E19: 0 | F19: 0 | G19: -9 | H19: 0 | I19: 0 | J19: 0 | K19: 0 | L19: 0 | M19: 0 | N19: 0 | O19: -0.3 | P19: 0 | Q19: 0 | R19: 0
A20: Zysk na sprzedaży działalności zaniechanej | B20: Gain on disposal of discontinued operations | D20: 0 | E20: 0 | F20: 0 | G20: 0 | H20: 0 | I20: 0 | J20: 0 | K20: 0 | L20: 0 | M20: 0 | N20: 0
A21: Koszty trans. z pracownikami rozliczanych w formie instr. kapitałowych | B21: Costs of equity-settled employee payment transactions | C21: 18.8 | D21: 5.4 | E21: 6.3 | F21: 5.3 | G21: 4.6 | H21: 5.1 | I21: 3.8 | J21: 4.3 | K21: 3.4 | L21: 13.3 | M21: -2.7 | N21: 4.9 | O21: 16 | P21: 15 | Q21: 14.3 | R21: 11.9
A22: Odpis aktualizujący wartości niematerialne, rzeczowe aktywa trwałe i nieruchomości inwestycyjne | B22: Impairment of intangible and tangible fixed assets and investment property | C22: 0 | D22: 0 | E22: 0 | F22: 0 | G22: 0 | H22: 0 | I22: 0 | J22: 0 | K22: 0 | L22: 0 | M22: 0 | N22: 0 | O22: 7.9 | P22: 0 | Q22: 0 | R22: 0
A23: Zyski/straty z tytułu likwidacji rzeczowych aktywów trwałych i wartości niematerialnych | B23: Profit / loss on liquidation of FA and IA | C23: 8.8 | D23: 0 | E23: 0.1 | F23: 0.4 | G23: 5.6 | H23: 0 | I23: 1.6 | J23: 1.7 | K23: 0.6 | L23: 0.7 | M23: 0.5 | N23: 1.5 | O23: 4.1 | P23: 0.2 | Q23: 0 | R23: 0.2
A24: Pozostałe korekty zysku brutto | B24: Other pre-tax profit adjustments | C24: 13.9 | D24: -3.7 | E24: 0.3 | F24: 1.8 | G24: 1.6 | H24: 0 | I24: -0.2 | J24: 1.3 | K24: -0.9 | L24: 0.6 | M24: 3.1 | N24: 2.2 | O24: -1.7 | P24: 0.3 | Q24: 0.5 | R24: 1.3
A25: Środki pieniężne netto wygenerowane z działalności operacyjnej | B25: Cash generated from operating activities | C25: =C9+C7 -> 863.1 | D25: =D9+D7 -> 182.4 | E25: 208.2 | F25: 195.8 | G25: 591.4 | H25: 367 | I25: 205 | J25: 401.3 | K25: =K9+K7 -> 796.4 | L25: =L9+L7 -> 387.7 | M25: 482.3 | N25: 483.6 | O25: 877.7 | P25: 142.1 | Q25: 451.8 | R25: 422.2
A26: Zapłacony podatek dochodowy | B26: Corporate income tax paid | C26: -171.7 | D26: -41.8 | E26: -21.9 | F26: -40.7 | G26: -72.7 | H26: -68.5 | I26: -73.6 | J26: -39.9 | K26: -86.4 | L26: -57.7 | M26: -62.1 | N26: -113.6 | O26: -37.2 | P26: -60.3 | Q26: -67.7 | R26: -66.8
A27: Środki pieniężne netto z działalności operacyjnej | B27: Net cash provided by (used in) operating activities | C27: =C25+C26 -> 691.4 | D27: =D25+D26 -> 140.6 | E27: 186.3 | F27: 155.1 | G27: 518.7 | H27: 298.5 | I27: 131.4 | J27: 361.4 | K27: 710 | L27: =L25+L26 -> 330 | M27: 420.2 | N27: 370 | O27: 840.5 | P27: 81.8 | Q27: 384.1 | R27: 355.4
A29: Przepływy środków pieniężnych z działalności inwestycyjnej | B29: Cash flows – investing activities
A30: Wpływy ze sprzedaży rzeczowych AT i WN [1] oraz NI [5] | B30: Disposal of PPE and IA [1] and IP [5] | C30: 30.3 | D30: 1.7 | E30: 0.7 | F30: 1.1 | G30: 4.4 | H30: 8.2 | I30: 10 | J30: 6.1 | K30: 3.9 | L30: 2.3 | M30: 2.7 | N30: 2.4 | O30: 3.2 | P30: 4.6 | Q30: 8.7 | R30: 2.6
A31: Nabycie rzeczowych AT i WN [1] oraz NI [5] | B31: Acquisition of PPE and IA [1] | C31: -225.9 | D31: -49.3 | E31: -60.2 | F31: -58 | G31: -72.8 | H31: -72.5 | I31: -69.6 | J31: -98.8 | K31: -78.8 | L31: -88.9 | M31: -66.8 | N31: -73.7 | O31: -84.6 | P31: -61.4 | Q31: -68 | R31: -68.2
A32: Wydatki z tytułu nabycia jedn. zależnych i stowarzyszonych | B32: Expenditures for the acquisition of subsidiaries and associates | C32: -675.9 | D32: -110.8 | E32: -37.9 | F32: -16 | G32: -83.9 | H32: -104.8 | I32: -48.5 | J32: -92.2 | K32: -82.7 | L32: -0.8 | M32: -66.4 | N32: -153.4 | O32: -302 | P32: -20.1 | Q32: -304.6 | R32: -54.1
A33: Środki pieniężne i ich ekwiwalenty w nabytych jednostkach zależnych | B33: Cash and cash equivalents in subsidiaries acquired | C33: 917.1 | D33: 0 | E33: 0 | F33: 0 | G33: 0 | H33: 0 | I33: 0 | J33: 0 | K33: 0 | L33: 0 | M33: 0 | N33: 0 | O33: 0 | P33: 0 | Q33: 0
A34: Wpływy ze sprzedaży akcji/udziałów w jednostkach powiązanych | B34: Proceeds from sale of investment in subsidiaries | C34: 340.3 | D34: 3.7 | E34: 4.6 | F34: 1.5 | G34: 11.4 | H34: 0.4 | I34: 3.9 | J34: 5.7 | K34: 2.5 | L34: 1.8 | M34: 26.2 | N34: 4.2 | O34: -0.3 | P34: 2.7 | Q34: 22.1 | R34: 5
A35: Środki pieniężne i ich ekwiwalenty w sprzedanych jednostkach zależnych (działalność zaniechana) | B35: Cash and cash equivalents in subsidiaries disposed of (discontinued operations) | C35: -725.8 | D35: 0 | E35: 0 | F35: 0 | G35: 6.4 | H35: 0 | I35: 0 | J35: 0 | K35: 0 | L35: 0 | M35: 0 | N35: 0 | O35: 0 | P35: 0 | Q35: 0 | R35: 0
A36: Wpływy ze sprzedaży/rozliczenia aktywów finansowych [2] / [6] | B36: Disposal/settlement of financial assets [2] / [6] | C36: 189.7 | D36: 1.2 | E36: 6.2 | F36: 1.3 | G36: 7.9 | H36: 2.9 | I36: 6.7 | J36: -0.8 | K36: 4.3 | L36: 23.5 | M36: -23.3 | N36: 21.1 | O36: 90 | P36: 0 | Q36: 0 | R36: 0
A37: Wydatki na nabycie/wydatki z tytułu rozliczenia aktywów finansowych [3] / [7] | B37: Acquisition/settlement of financial assets [3] / [7] | C37: -26.2 | D37: -2 | E37: 0.6 | F37: -1.5 | G37: -14.8 | H37: -0.1 | I37: -0.6 | J37: 0.6 | K37: -90.2 | L37: -2.5 | M37: 17.7 | N37: -17.7 | O37: -0.8 | P37: 0 | Q37: -0.6 | R37: -19.1
A38: Środki pieniężne i ich ekwiwalenty w sprzedanych jednostkach zależnych (działalność zaniechana) | C38: 0 | D38: 0 | E38: 0 | F38: 0 | G38: 0 | H38: 0 | I38: 0 | J38: 0 | K38: 0 | L38: 0 | M38: 0 | N38: 0
A39: Wpływ ze sprzedaży pozostałych instrumentów dłużnych [8] | B39: Disposal of other debt instruments [8] | C39: 0 | D39: 0 | E39: 0 | F39: 1.3 | G39: 2.8 | H39: 0 | I39: 3.5 | J39: 0 | K39: 3.1 | L39: 10.6 | M39: 2 | N39: 0 | O39: 0.1 | P39: 0 | Q39: 0 | R39: 0
A40: Wydatki na nabycie inwestycji w instrumenty dłużne [9] | B40: Acquisition of ivestments in debt instruments measured at amortised cost [9] | C40: 0 | D40: -1.8 | E40: 0 | F40: -9.8 | G40: 0 | H40: -4.5 | I40: 0 | J40: -0.1 | K40: -11.6 | L40: -1.8 | M40: -0.1 | N40: 0 | O40: 0 | P40: 0 | Q40: 0 | R40: 0
A41: Wpływ ze sprzedaży pozostałych aktywów finansowych | B41: Proceeds from sale of other financial assets | C41: 0 | D41: 0 | E41: 0 | F41: 0 | G41: 0 | H41: 0 | I41: 0 | J41: 0 | K41: 0 | L41: 0 | M41: 0 | N41: 0
A42: Pożyczki udzielone | B42: Loans granted | C42: -74.5 | D42: -11.7 | E42: -7 | F42: -0.3 | G42: -64.6 | H42: -0.4 | I42: -3.9 | J42: -9.3 | K42: -23.4 | L42: -10.8 | M42: -5.9 | N42: 4.2 | O42: -162.3 | P42: -0.5 | Q42: -6.1 | R42: -103.5
A43: Pożyczki spłacone | B43: Loans collected | C43: 99.5 | D43: 14.9 | E43: 13.5 | F43: 5.9 | G43: 1 | H43: 30.2 | I43: 1.1 | J43: 9.4 | K43: 20.3 | L43: 1.2 | M43: 30.3 | N43: 30.9 | O43: 20.4 | P43: 0.6 | Q43: 88.8 | R43: 86.8
A44: Otrzymane odsetki | B44: Interest received | C44: 15.4 | D44: 5.6 | E44: 0.7 | F44: 1.9 | G44: 0.4 | H44: 5.3 | I44: 0 | J44: 0.8 | K44: 3.1 | L44: 3.7 | M44: 0.7 | N44: 0.1 | O44: 1.6 | P44: 2.7 | Q44: 0.1 | R44: 1.3
A45: Dywidendy otrzymane | B45: Dividends received | C45: 1.6 | D45: 0 | E45: 0.9 | F45: -0.1 | G45: 0.9 | H45: 0 | I45: 1.2 | J45: 0.4 | K45: 0 | L45: 0 | M45: 13.5 | N45: -0.1 | O45: 0.7 | P45: 0 | Q45: 10.3 | R45: 0.3
A46: Pozostałe przepływy z działalności inwestycyjnej | B46: Other cash flows from investing activities | C46: 8.6 | D46: -2.2 | E46: -1.5 | F46: -3.4 | G46: 7 | H46: -8 | I46: 7.6 | J46: -11 | K46: 0.9 | L46: 4.7 | M46: 2.4 | N46: 2.3 | O46: 0 | P46: -4.5 | Q46: -10.8 | R46: 10.2
A47: Środki pieniężne netto wykorzystane w działalności inwestycyjnej | B47: Net cash provided by (used in) investing activities | C47: =SUM(C30:C46) -> -125.8 | D47: =SUM(D30:D46) -> -150.7 | E47: -79.4 | F47: -76.1 | G47: -193.9 | H47: -143.3 | I47: -88.6 | J47: -189.2 | K47: -248.6 | L47: =SUM(L30:L46) -> -57 | M47: -67 | N47: -179.7 | O47: -434 | P47: -75.9 | Q47: -260.1 | R47: -138.7
A49: Przepływy środków pieniężnych z działalności finansowej | B49: Cash flows – financing activities
A50: Wpływ z tytułu emisji kapitału | B50: Proceeds from issue of capital | C50: 0 | D50: 0 | E50: 0 | F50: 90.7 | G50: 5.8 | H50: 0 | I50: 0 | J50: 0 | K50: 0 | L50: 0 | M50: 0 | N50: 0 | O50: 424.6 | P50: 0 | Q50: 0 | R50: 0
A51: Wpływy z realizacji programu opcji pracowniczych | B51: Proceeds from share-based payments | C51: 11.9 | D51: 0 | E51: 0.4 | F51: 2.3 | G51: -1.8 | H51: 0 | I51: 0.4 | J51: 1.6 | K51: 3.6 | L51: 5.5 | M51: 4.8 | N51: 10 | O51: 0.4 | P51: 1.6 | Q51: 0.9 | R51: 1.6
A52: Wydatki z tytułu nabycia udziałów niekontrolujących | B52: Acquisition of non-controlling interests | C52: -4.7 | D52: -9.2 | E52: -1 | F52: -2.7 | G52: -45.1 | H52: 0 | I52: -4.6 | J52: -7.6 | K52: -16.8 | L52: -87.3 | M52: -12.5 | N52: 1.8 | O52: -17.3 | P52: -0.3 | Q52: -8.9 | R52: -67.8
A53: Wpływy z tytułu zaciągnięcia pożyczek/kredytów | B53: Proceeds from bank loans and borrowings | C53: 425.8 | D53: 33.3 | E53: 106 | F53: 128.6 | G53: 124.2 | H53: 234.8 | I53: 194.3 | J53: 46.8 | K53: 79.4 | L53: 534.7 | M53: 64.2 | N53: 26 | O53: 4.9 | P53: 24.7 | Q53: 176.1 | R53: 254.4
A54: Wpływy z tytułu emisji dłużnych papierów wartościowych | B54: Proceeds from the issuance of debt securities | C54: 3.4 | D54: 153.7 | E54: 5.9 | F54: 2.3 | G54: 2.4 | H54: 0 | I54: 311.4 | J54: 7.3 | K54: 2.2 | L54: 0 | M54: 302.3 | N54: -6 | O54: -1.6 | P54: 0 | Q54: 190.6 | R54: 2.9
A55: Wykup dłużnych papierów wartościowych | B55: Repayment/redemption of debt securities | C55: -14.1 | D55: 0 | E55: -33 | F55: -0.5 | G55: -0.5 | H55: -80.4 | I55: -0.1 | J55: -38.3 | K55: -0.5 | L55: -102.7 | M55: -0.9 | N55: -37.2 | O55: -37.7 | P55: -75.5 | Q55: -38.8 | R55: -1.4
A56: Spłata pożyczek/kredytów | B56: Repayment of bank loans and borrowings | C56: -306.1 | D56: -82.2 | E56: -42.5 | F56: -41.5 | G56: -136.1 | H56: -137.1 | I56: -138.3 | J56: -67 | K56: -96.7 | L56: -110.6 | M56: -374.4 | N56: -81.3 | O56: -165 | P56: -81.3 | Q56: -102 | R56: -94.5
A57: Spłata zobowiązań z tytułu leasingu | B57: Finance lease liabilities paid | C57: -28.5 | D57: -6.6 | E57: -7.5 | F57: -7.8 | G57: -7.4 | H57: -48.2 | I57: -50.8 | J57: -51.4 | K57: -56.1 | L57: -55.2 | M57: -59.7 | N57: -49.9 | O57: -57.4 | P57: -50.4 | Q57: -50 | R57: -49.1
A58: Zapłacone odsetki | B58: Interest paid | C58: -39.8 | D58: -13.5 | E58: -12.4 | F58: -7.3 | G58: -7.4 | H58: -26.3 | I58: -12.8 | J58: -25.6 | K58: -18.8 | L58: -23 | M58: -19.2 | N58: -22.8 | O58: -24 | P58: -15.4 | Q58: -19.9 | R58: -20.3
A59: Dywidendy wypłacone przez Jednostkę Dominującą | B59: Dividends paid out to the shareholders of Parent Company | C59: -249.8 | D59: 0 | E59: -249.8 | F59: 0 | G59: 0 | H59: 0 | I59: -254.8 | J59: 0 | K59: 0 | L59: 0 | M59: -249.8 | N59: 0 | O59: 0 | P59: 0 | Q59: -258.1 | R59: 0
A60: Dywidendy wypłacone dla udziałowców niekontrolujących | B60: Dividends paid out to non-controlling interests | C60: -168.9 | D60: -34.8 | E60: -65 | F60: -55.8 | G60: -40.2 | H60: -59.5 | I60: -61.1 | J60: -96.1 | K60: -34.7 | L60: -70.5 | M60: -101.4 | N60: -94.7 | O60: -48.5 | P60: -63.1 | Q60: -150.9 | R60: -134
A61: Dotacje otrzymane [4] | B61: Grants received [4] | C61: 9.8 | D61: 0 | E61: 0 | F61: 0 | G61: 1 | H61: 0 | I61: 2.3 | J61: 2.8 | K61: 0 | L61: 3.4 | M61: 2.2 | N61: 1.1 | O61: 4.4 | P61: 2.9 | Q61: -0.1 | R61: 0.7
A62: Dotacje zwrócone | B62: Grants returned | C62: 0 | D62: 0 | E62: 0 | F62: 0 | G62: -9.5 | H62: 0 | I62: 0 | J62: 0 | K62: 0 | L62: 0 | M62: 0 | N62: 0 | O62: 0 | P62: 0 | Q62: 0 | R62: 0
A63: Pozostałe przepływy z działalności finansowej | B63: Other cash flows from financing activities | C63: -3.4 | D63: 0 | E63: 0 | F63: 0 | G63: 0.2 | I63: 0 | J63: 0 | K63: 0 | L63: 0 | M63: 0 | N63: 0 | O63: 0 | P63: 0 | Q63: 0 | R63: 0
A64: Środki pieniężne netto z działalności finansowej | B64: Net cash provided by (used in) financing activities | C64: =SUM(C50:C63) -> -364.4 | D64: =SUM(D50:D63) -> 40.7 | E64: -298.9 | F64: 108.3 | G64: -114.4 | H64: -116.7 | I64: -14.1 | J64: -227.5 | K64: -138.4 | L64: =SUM(L50:L63) -> 94.3 | M64: -444.4 | N64: -253 | O64: =SUM(O50:O63) -> 82.8 | P64: -256.8 | Q64: =SUM(Q50:Q63) -> -261.1 | R64: -107.5
A66: Zwiększenie/Zmniejszenie netto stanu środków pieniężnych i ich ekwiwalentów | B66: Net increase (decrease) in cash and cash equivalents | C66: =C27+C47+C64 -> 201.2 | D66: =D27+D47+D64 -> 30.6 | E66: -192 | F66: 187.3 | G66: 210.4 | H66: 38.5 | I66: 28.7 | J66: -55.3 | K66: 323 | L66: =L27+L47+L64 -> 367.3 | M66: -91.2 | N66: -62.7 | O66: =O27+O47+O64 -> 489.3 | P66: -250.9 | Q66: =Q27+Q47+Q64 -> -137.1 | R66: 109.2
A68: Różnice kursowe netto | B68: Net foreign exchange differences | C68: -189.3 | D68: -19.1 | E68: 72.8 | F68: -18.9 | G68: 12.4 | H68: 27.1 | I68: -22.4 | J68: 94.9 | K68: -83.8 | L68: 126.9 | M68: -59.3 | N68: -33.4 | O68: 17 | P68: 70.2 | Q68: -85.4 | R68: 98.1
A69: Środki pieniężne i ich ekwiwalenty netto na początek danego okresu | B69: Cash and cash equivalents at the beginning of the period | C69: 1472.1 | D69: 1484 | E69: 1495.5 | F69: 1376.3 | G69: 1544.7 | H69: 1767.5 | I69: 1833.1 | J69: 1839.4 | K69: 1879 | L69: 2118.2 | M69: 2612.4 | N69: 2461.9 | O69: 2365.8 | P69: 2872.1 | Q69: 2691.4 | R69: 2468.9
A70: Środki pieniężne i ich ekwiwalenty netto na koniec danego okresu | B70: Cash and cash equivalents at the end of the period | C70: 1484 | D70: 1495.5 | E70: 1376.3 | F70: 1544.7 | G70: 1767.5 | H70: 1833.1 | I70: 1839.4 | J70: 1879 | K70: 2118.2 | L70: 2612.4 | M70: 2461.9 | N70: 2365.8 | O70: 2872.1 | P70: 2691.4 | Q70: 2468.9 | R70: 2676.2
C71: =C69+C68+C66-C70 -> 0 | D71: =D69+D68+D66-D70 -> 0 | E71: 0 | F71: 0 | G71: 0 | H71: 0 | I71: 0 | J71: 0 | K71: 0 | L71: =L69+L68+L66-L70 -> 0 | M71: 0 | N71: =N69+N68+N66-N70 -> 0 | O71: =O69+O68+O66-O70 -> 0 | P71: =P69+P68+P66-P70 -> 0 | Q71: =Q69+Q68+Q66-Q70 -> 0 | R71: =R69+R68+R66-R70 -> 0
A73: Zmiany stanu kapitału pracującego | B73: Changes in working capital
C74: YE 2017 | D74: Q1 2018 | E74: Q2 2018 | F74: Q3 2018 | G74: Q4 2018 | H74: =H2 -> Q1 2019 | I74: Q2 2019 | J74: Q3 2019 | K74: Q4 2019 | L74: Q1 2020 | M74: Q2 2020 | N74: Q3 2020 | O74: Q4 2020 | P74: Q1 2021 | Q74: Q2 2021 | R74: Q3 2021
C76: mln PLN | D76: mln PLN | E76: mln PLN | F76: mln PLN | G76: mln PLN | H76: =H4 -> mln PLN | I76: mln PLN | J76: mln PLN | K76: mln PLN | L76: mln PLN | M76: mln PLN | N76: mln PLN | O76: mln PLN | P76: mln PLN | Q76: mln PLN | R76: mln PLN
A77: Zmiana stanu zapasów | B77: Change in inventories | C77: 0 | D77: -8.8 | E77: 7.3 | F77: -18.2 | G77: 1.1 | H77: -3.7 | I77: -4.8 | J77: -8.6 | K77: -4.4 | L77: 7.8 | M77: -16 | N77: -10.7 | O77: -16 | P77: -3 | Q77: 10.3 | R77: -1.9
A78: Zmiana stanu należności i aktywów niefinansowych | B78: Change in receivables and non-financial assets | C78: -151.8 | D78: 121.3 | E78: -65.6 | F78: -60.3 | G78: -210.7 | H78: 178.5 | I78: -104.7 | J78: 30.2 | K78: -18.7 | L78: -10.9 | M78: 137.7 | N78: -96.6 | O78: -99.2 | P78: -157.4 | Q78: -135.8 | R78: -36
A79: Zmiana stanu zobowiązań | B79: Change in liabilities | C79: 19.4 | D79: -248.1 | E79: -11.3 | F79: 17.1 | G79: 415 | H79: -237.9 | I79: -54 | J79: -7.8 | K79: 358 | L79: -97.2 | M79: -91.9 | N79: 125.9 | O79: 370.3 | P79: -268.4 | Q79: 18.9 | R79: -36.6
A80: Zmiana stanu rozliczeń międzyokresowych | B80: Change in prepayments and accruals | C80: 85 | D80: 56.4 | E80: -34.7 | F80: -55.5 | G80: 28.6 | H80: 64.9 | I80: -28.1 | J80: -44.1 | K80: 27.8 | L80: 44.8 | M80: -15.2 | N80: -30.2 | O80: 55.3 | P80: 78.4 | Q80: 0 | R80: -72
A81: Zmiana stanu rezerw | B81: Change in provisions | C81: -23.2 | D81: -17.5 | E81: -5.1 | F81: 1.7 | G81: 5.9 | H81: -1.3 | I81: -4.7 | J81: 1.8 | K81: 1.3 | L81: 3.2 | M81: 0.7 | N81: 12.7 | O81: 0.9 | P81: -9.3 | Q81: 3.7 | R81: -3.3
A82: Zmiana stanu pozostałe | B82: Change in restricted cash | C82: -0.2 | D82: -4.5 | E82: 4.5 | F82: 0 | G82: -1.8 | H82: 2.6 | I82: -2.6 | J82: 0 | K82: -9.4 | L82: 1.2 | M82: -0.9 | N82: -2.1 | O82: 2.8 | P82: -2.2 | Q82: 1.3 | R82: 0.9
C83: =ROUND(SUM(C77:C82),1) -> -70.8 | D83: =ROUND(SUM(D77:D82),1) -> -101.2 | E83: -104.9 | F83: -115.2 | G83: 238.1 | H83: 3.1 | I83: -198.9 | J83: -28.5 | K83: 354.6 | L83: -51.1 | M83: =ROUND(SUM(M77:M82),1) -> 14.4 | N83: -1 | O83: 314.1 | P83: -361.9 | Q83: =ROUND(SUM(Q77:Q82),1) -> -101.6 | R83: -148.9
C84: =C83-C11 -> 0 | D84: =D83-D11 -> 0 | E84: 0 | F84: 0 | G84: 0 | H84: 0 | I84: 0 | J84: 0 | K84: 0 | L84: 0 | M84: =M83-M11 -> 0 | N84: 0 | O84: 0 | P84: 0 | Q84: =Q83-Q11 -> 0 | R84: 0
A85: Objaśnienia: | B85: Legend:
A86: [1] AT i WN - aktywów trwałych i wartości niematerialnych | B86: [1] PPE and IA - property, plant and equipment and intangible assets
A87: [2] Wpływy ze sprzedaży/rozliczenia akt. finansowych . wycenianych w wart. godz. przez wynik finansowy | B87: [2] Disposal/settlement of financial assets carried at fair value through profit or loss
A88: [3] Wydatki na nabycie/wydatki z tytułu rozliczenia akt. fin. wycenianych w wart. godz. przez wynik finansowy | B88: [3] Acquisition/settlement of financial assets carried at fair value through profit or loss
A89: [4] Dotacje otrzymane do zakupu środków trwałych lub/i projektów rozwojowych | B89: [4] Grants received for purchases of property, plant and equipment and/or development projects
A90: [5] NI - nieruchomości inwestycyjnych | B90: [5] IP - investment property
A91: [6] Wpływy ze sprzedaży aktywów finansowych wycenianych w wartości godziwej przez pozostałe dochody całkowite | B91: [6] Proceeds from disposal of financial assets valued at fair value through other comprehensive income
A92: [7] Nabycie aktywów finansowych wycenianych w wartości godziwej przez pozostałe dochody całkowite | B92: [7] Purchase of financial assets valued at fair value through other comprehensive income
A93: [8] Wpływ ze sprzedaży inwestycji w pozostałe instrumenty dłużne wyceniane w zamortyzowanym koszcie | B93: [8] Disposal of other debt instruments carried valued at amortized cost
A94: [9] Nabycie inwestycji w pozostałe instrumenty dłużne wyceniane w zamortyzowanym koszcie | B94: [9] Acquisition of investment in other debt instruments valued at amortized cost

Sheet CF (LTM)
A1: Rachunek przepływów pieniężnych (Grupa Asseco) | B1: Statement of cash flows (Asseco Group)
C2: Last 12 months
C4: mln PLN
A6: Przepływy środków pieniężnych z działalności operacyjnej | B6: Cash flows - operating activities
A7: Zysk przed opodatkowaniem i udziałem w wynikach jednostek stowarzyszonych i wspólnych przedsięwzięć | B7: Profit before tax and share of profits of associates and joint ventures | C7: 1290.2
A9: Korekty o pozycje: | B9: Total adjustments: | C9: =SUM(C10:C24) -> 603.6
A10: Amortyzacja | B10: Depreciation and amortization | C10: 737.5
A11: Zmiany stanu kapitału pracującego (szczegóły poniżej) | B11: Changes in working capital (see below) | C11: -298.3
A12: Przychody/koszty z tytułu odsetek | B12: Interest income/expenses | C12: 72
A13: Przychody/koszty z różnic kursowych | B13: Gain/loss on foreign exchange differences | C13: 18.6
A14: Przychody/koszty z tytułu aktywów finansowych [1] | B14: Gain/loss on financial assets [1] | C14: 0
A15: Pozostałe przychody/koszty finansowe | B15: Other financial income/expenses | C15: 9.8
A16: Zysk na utracie kontroli nad spółkami zależnymi | B16: Gain on lose of control over subsidiaries | C16: 0
A17: Odpis z tytułu utraty wartości firmy | B17: Write-off of consolidated goodwill | C17: 0
A18: Zyski/straty na sprzedaży rzeczowych AT i WN [1] | B18: Gain/loss on disposal of PPE and IA [1] | C18: -5.7
A19: Zysk na sprzedaży spółki zależnej | B19: Gain on disposal of subsidiary | C19: -0.3
A20: Zysk na sprzedaży działalności zaniechanej | B20: Gain on disposal of discontinued operations | C20: 0
A21: Koszty trans. z pracownikami rozliczanych w formie instr. kapitałowych | B21: Costs of equity-settled employee payment transactions | C21: 57.2
A22: Odpis aktualizujący wartości niematerialne, rzeczowe aktywa trwałe i nieruchomości inwestycyjne | B22: Impairment of intangible and tangible fixed assets and investment property | C22: 7.9
A23: Zyski/straty z tytułu likwidacji rzeczowych aktywów trwałych i wartości niematerialnych | B23: Profit / loss on liquidation of FA and IA | C23: 4.5
A24: Pozostałe korekty zysku brutto | B24: Other pre-tax profit adjustments | C24: 0.4
A25: Środki pieniężne netto wygenerowane z działalności operacyjnej | B25: Cash generated from operating activities | C25: =C9+C7 -> 1893.8
A26: Zapłacony podatek dochodowy | B26: Corporate income tax paid | C26: -232
A27: Środki pieniężne netto z działalności operacyjnej | B27: Net cash provided by (used in) operating activities | C27: =C25+C26 -> 1661.8
A29: Przepływy środków pieniężnych z działalności inwestycyjnej | B29: Cash flows – investing activities
A30: Wpływy ze sprzedaży rzeczowych AT i WN [1] oraz NI [5] | B30: Disposal of PPE and IA [1] and IP [5] | C30: 19.1
A31: Nabycie rzeczowych AT i WN [1] oraz NI [5] | B31: Acquisition of PPE and IA [1] | C31: -282.2
A32: Wydatki z tytułu nabycia jedn. zależnych i stowarzyszonych | B32: Expenditures for the acquisition of subsidiaries and associates | C32: -680.8
A33: Środki pieniężne i ich ekwiwalenty w nabytych jednostkach zależnych | B33: Cash and cash equivalents in subsidiaries acquired | C33: 0
A34: Wpływy ze sprzedaży akcji/udziałów w jednostkach powiązanych | B34: Proceeds from sale of investment in subsidiaries | C34: 29.5
A35: Środki pieniężne i ich ekwiwalenty w sprzedanych jednostkach zależnych (działalność zaniechana) | B35: Cash and cash equivalents in subsidiaries disposed of (discontinued operations) | C35: 0
A36: Wpływy ze sprzedaży/rozliczenia aktywów finansowych [2] / [6] | B36: Disposal/settlement of financial assets [2] / [6] | C36: 90
A37: Wydatki na nabycie/wydatki z tytułu rozliczenia aktywów finansowych [3] / [7] | B37: Acquisition/settlement of financial assets [3] / [7] | C37: -20.5
A38: Środki pieniężne i ich ekwiwalenty w sprzedanych jednostkach zależnych (działalność zaniechana) | C38: 0
A39: Wpływ ze sprzedaży pozostałych instrumentów dłużnych [8] | B39: Disposal of other debt instruments [8] | C39: 0.1
A40: Wydatki na nabycie inwestycji w instrumenty dłużne [9] | B40: Acquisition of ivestments in debt instruments measured at amortised cost [9] | C40: 0
A41: Wpływ ze sprzedaży pozostałych aktywów finansowych | B41: Proceeds from sale of other financial assets | C41: 0
A42: Pożyczki udzielone | B42: Loans granted | C42: -272.4
A43: Pożyczki spłacone | B43: Loans collected | C43: 196.6
A44: Otrzymane odsetki | B44: Interest received | C44: 5.7
A45: Dywidendy otrzymane | B45: Dividends received | C45: 11.3
A46: Pozostałe przepływy z działalności inwestycyjnej | B46: Other cash flows from investing activities | C46: -5.1
A47: Środki pieniężne netto wykorzystane w działalności inwestycyjnej | B47: Net cash provided by (used in) investing activities | C47: =SUM(C30:C46) -> -908.7
A49: Przepływy środków pieniężnych z działalności finansowej | B49: Cash flows – financing activities
A50: Wpływ z tytułu emisji kapitału | B50: Proceeds from issue of capital | C50: 424.6
A51: Wpływy z realizacji programu opcji pracowniczych | B51: Proceeds from share-based payments | C51: 4.5
A52: Wydatki z tytułu nabycia udziałów niekontrolujących | B52: Acquisition of non-controlling interests | C52: -94.3
A53: Wpływy z tytułu zaciągnięcia pożyczek/kredytów | B53: Proceeds from bank loans and borrowings | C53: 460.1
A54: Wpływy z tytułu emisji dłużnych papierów wartościowych | B54: Proceeds from the issuance of debt securities | C54: 191.9
A55: Wykup dłużnych papierów wartościowych | B55: Repayment/redemption of debt securities | C55: -153.4
A56: Spłata pożyczek/kredytów | B56: Repayment of bank loans and borrowings | C56: -442.8
A57: Spłata zobowiązań z tytułu leasingu | B57: Finance lease liabilities paid | C57: -206.9
A58: Zapłacone odsetki | B58: Interest paid | C58: -79.6
A59: Dywidendy wypłacone przez Jednostkę Dominującą | B59: Dividends paid out to the shareholders of Parent Company | C59: -258.1
A60: Dywidendy wypłacone dla udziałowców niekontrolujących | B60: Dividends paid out to non-controlling interests | C60: -396.5
A61: Dotacje otrzymane [4] | B61: Grants received [4] | C61: 7.9
A62: Dotacje zwrócone | B62: Grants returned | C62: 0
A63: Pozostałe przepływy z działalności finansowej | B63: Other cash flows from financing activities | C63: 0
A64: Środki pieniężne netto z działalności finansowej | B64: Net cash provided by (used in) financing activities | C64: =SUM(C50:C63) -> -542.6
A66: Zwiększenie/Zmniejszenie netto stanu środków pieniężnych i ich ekwiwalentów | B66: Net increase (decrease) in cash and cash equivalents | C66: =C27+C47+C64 -> 210.5
A68: Różnice kursowe netto | B68: Net foreign exchange differences | C68: 99.9
A69: Środki pieniężne i ich ekwiwalenty netto na dzień 1 października | B69: Cash and cash equivalents at 1 October | C69: 2365.8
A70: Środki pieniężne i ich ekwiwalenty netto na dzień 30 września | B70: Cash and cash equivalents at 30 September | C70: 2676.2
C71: =C69+C68+C66-C70 -> 0
A73: Zmiany stanu kapitału pracującego | B73: Changes in working capital
C74: Last 12 months
C76: mln PLN
A77: Zmiana stanu zapasów | B77: Change in inventories | C77: -10.6
A78: Zmiana stanu należności i aktywów niefinansowych | B78: Change in receivables and non-financial assets | C78: -428.4
A79: Zmiana stanu zobowiązań | B79: Change in liabilities | C79: 84.2
A80: Zmiana stanu rozliczeń międzyokresowych | B80: Change in prepayments and accruals | C80: 61.7
A81: Zmiana stanu rezerw | B81: Change in provisions | C81: -8
A82: Zmiana stanu pozostałe | B82: Change in restricted cash | C82: 2.8
C83: =ROUND(SUM(C77:C82),1) -> -298.3
C84: =C83-C11 -> 0
A85: Objaśnienia: | B85: Legend:
A86: [1] AT i WN - aktywów trwałych i wartości niematerialnych | B86: [1] PPE and IA - property, plant and equipment and intangible assets
A87: [2] Wpływy ze sprzedaży/rozliczenia akt. finansowych . wycenianych w wart. godz. przez wynik finansowy | B87: [2] Disposal/settlement of financial assets carried at fair value through profit or loss
A88: [3] Wydatki na nabycie/wydatki z tytułu rozliczenia akt. fin. wycenianych w wart. godz. przez wynik finansowy | B88: [3] Acquisition/settlement of financial assets carried at fair value through profit or loss
A89: [4] Dotacje otrzymane do zakupu środków trwałych lub/i projektów rozwojowych | B89: [4] Grants received for purchases of property, plant and equipment and/or development projects
A90: [5] NI - nieruchomości inwestycyjnych | B90: [5] IP - investment property
A91: [6] Wpływy ze sprzedaży aktywów finansowych wycenianych w wartości godziwej przez pozostałe dochody całkowite | B91: [6] Proceeds from disposal of financial assets valued at fair value through other comprehensive income
A92: [7] Nabycie aktywów finansowych wycenianych w wartości godziwej przez pozostałe dochody całkowite | B92: [7] Purchase of financial assets valued at fair value through other comprehensive income
A93: [8] Wpływ ze sprzedaży inwestycji w pozostałe instrumenty dłużne wyceniane w zamortyzowanym koszcie | B93: [8] Disposal of other debt instruments carried valued at amortized cost
A94: [9] Nabycie inwestycji w pozostałe instrumenty dłużne wyceniane w zamortyzowanym koszcie | B94: [9] Acquisition of investment in other debt instruments valued at amortized cost

Sheet Segments
A1: Segmenty działalności | B1: Operating segments
A3: Przejdź do: | B3: Go to:
A4: =seg_pl_pl -> Segment Asseco Poland | B4: =seg_en_pl -> Segment Asseco Poland
A5: =seg_pl_see -> Segment Asseco International | B5: =seg_en_see -> Segment Asseco International
A6: =seg_pl_we -> Segment Formula Systems | B6: =seg_en_we -> Segment Formula Systems
A10: Segment Asseco Poland | B10: Segment Asseco Poland | C10: YE 2017 | D10: Q1 2018 | E10: Q2 2018 | F10: Q3 2018 | G10: Q4 2018 | H10: Q1 2019 | I10: Q2 2019 | J10: Q3 2019 | K10: Q4 2019 | L10: Q1 2020 | M10: Q2 2020 | N10: Q3 2020 | O10: Q4 2020 | P10: Q1 2021 | Q10: Q2 2021 | R10: Q3 2021
C12: mln PLN | D12: mln PLN | E12: mln PLN | F12: mln PLN | G12: mln PLN | H12: mln PLN | I12: mln PLN | J12: mln PLN | K12: mln PLN | L12: mln PLN | M12: mln PLN | N12: mln PLN | O12: mln PLN | P12: mln PLN | Q12: mln PLN | R12: mln PLN
A14: Sprzedaż na rzecz klientów zewnętrznych | B14: Sales to external customers | C14: 1336.6 | D14: 314.5 | E14: 350.2 | F14: 306.1 | G14: 376.5 | H14: 294.9 | I14: 302.8 | J14: 287.3 | K14: 314.7 | L14: 307.3 | M14: 329.9 | N14: 364 | O14: 422.6 | P14: 364.3 | Q14: 378.7 | R14: 370
A15: Sprzedaż pomiędzy segmentami | B15: Inter-segment sales | C15: 9.1 | D15: 1.8 | E15: 1.9 | F15: 2.1 | G15: 5.7 | H15: 3.7 | I15: 2.3 | J15: 2.8 | K15: 3.8 | L15: 3.4 | M15: 2.1 | N15: 1.5 | O15: 6.1 | P15: 2.5 | Q15: 5.6 | R15: 2.4
A16: Zysk/strata netto z działalności operacyjnej segmentu | B16: Net operating profit/loss | C16: 152.5 | D16: 55.8 | E16: 64.7 | F16: 52.6 | G16: 47.6 | H16: 43.3 | I16: 44.1 | J16: 38.2 | K16: 27.5 | L16: 42.7 | M16: 52.1 | N16: 60.2 | O16: 59.8 | P16: 59 | Q16: 78.3 | R16: 70
A17: Przychody z tytułu odsetek | B17: Interest income | C17: 4.6 | D17: 2.2 | E17: 0.7 | F17: 2 | G17: 1.6 | H17: 1.6 | I17: 1.1 | J17: 1.2 | K17: 1.3 | L17: 1.3 | M17: 0.6 | N17: 0.5 | O17: 0.3 | P17: 0.3 | Q17: 0.3 | R17: 0.3
A18: Koszty z tytułu odsetek | B18: Interest expenses | C18: -9.3 | D18: -1.4 | E18: -2 | F18: -2.3 | G18: -1.3 | H18: -1.7 | I18: -1.4 | J18: -4 | K18: -1.3 | L18: -1.3 | M18: -0.8 | N18: -0.9 | O18: -1 | P18: -0.9 | Q18: -0.7 | R18: -0.7
A19: Podatek dochodowy | B19: Corporate income tax | C19: -25.5 | D19: -15.1 | E19: -13.9 | F19: -12.5 | G19: -14.2 | H19: -8.1 | I19: -7.8 | J19: -6.9 | K19: -6.2 | L19: -7.9 | M19: -12.5 | N19: -13.5 | O19: -3.2 | P19: -12 | Q19: -16.5 | R19: -13.8
A20: Pozycje niepieniężne: | B20: Non-cash items:
A21: Amortyzacja | B21: Depreciation and amortization | C21: -79.7 | D21: -19.8 | E21: -19.9 | F21: -21.8 | G21: -21.6 | H21: -23.4 | I21: -22.8 | J21: -22.8 | K21: -22.7 | L21: -23.2 | M21: -22.9 | N21: -24 | O21: -21.7 | P21: -21 | Q21: -21.1 | R21: -21.5
A22: w tym amortyzacja wartości niematerialnych rozpoznanych w wyniku procesu alokacji ceny nabycia (PPA) | B22: of which amortization of IA recognized in purchase price allocation process (PPA) | C22: -18 | D22: -4.2 | E22: -4.2 | F22: -4.6 | G22: -4.8 | H22: -3.7 | I22: -4.7 | J22: -4.2 | K22: -4.1 | L22: -4 | M22: -4.1 | N22: -4.1 | O22: -8.3 | P22: -3.8 | Q22: -3.8 | R22: -3.8
A23: Koszty transakcji z pracownikami rozliczanych w formie instrumentów kapitałowych | B23: Costs of share-based payment transactions with employees | C23: 0 | D23: 0 | E23: 0 | F23: 0 | G23: 0 | H23: 0 | I23: 0 | J23: 0 | K23: 0 | L23: 0 | M23: 0 | N23: 0 | O23: 0 | P23: 0 | Q23: 0 | R23: 0
A24: Odpis z tyt. utraty wartości aktywów segmentu | B24: Impairment write-downs on segment assets | C24: -80.5 | D24: 6.9 | E24: -4.2 | F24: -1.4 | G24: -3.7 | H24: 2.6 | I24: -2.7 | J24: -0.4 | K24: 1.2 | L24: -0.2 | M24: -2.9 | N24: -2.7 | O24: -12.6 | P24: -0.2 | Q24: -0.7 | R24: -3.1
A25: Udział w wynikach jednostek stowarzyszonych i wspólnych przedsięwziąć | B25: Share in profits of associates and joint ventures | C25: -1.1 | D25: -0.6 | E25: -0.6 | F25: 0.2 | G25: 1.1 | H25: 0 | I25: -0.4 | J25: -0.6 | K25: -0.4 | L25: -0.8 | M25: -0.6 | N25: -1.5 | O25: 0.6 | P25: 0.1 | Q25: 0.6 | R25: -1.6
A26: Zysk/strata netto segmentu przypisany Jednostce Dominującej | B26: Net profit/loss attributable to shareholders of the Parent Company | C26: 7.1 | D26: 38.8 | E26: 45.3 | F26: 40.5 | G26: 37 | H26: 35.3 | I26: 33.5 | J26: 24.9 | K26: 20 | L26: 32.1 | M26: 37.1 | N26: 42.9 | O26: 55.8 | P26: 45.9 | Q26: 68.7 | R26: 50.5
A27: Środki pieniężne netto z działalności operacyjnej | B27: Net cash provided by (used in) operating activities | C27: 137.4 | D27: 54.5 | E27: 104.3 | F27: 67.2 | G27: 128.4 | H27: 68.4 | I27: 26.6 | J27: 90.4 | K27: 110.3 | L27: 64.6 | M27: 60.1 | N27: 54.8 | O27: 138.1 | P27: 61.1 | Q27: 60.4 | R27: 78.2
A28: Wartość firmy | B28: Goodwill | C28: 2254.4 | D28: 2253.7 | E28: 2256.9 | F28: 2256.3 | G28: 2257.1 | H28: 2257.1 | I28: 2260.7 | J28: 2260.6 | K28: 2260.6 | L28: 2260.6 | M28: 2260.6 | N28: 2260.6 | O28: 2257.1 | P28: 2257.1 | Q28: 2257.1 | R28: 2257.1
A31: Segment Asseco International | B31: Segment Asseco International | C31: YE 2017 | D31: Q1 2018 | E31: Q2 2018 | F31: Q3 2018 | G31: Q4 2018 | H31: Q1 2019 | I31: Q2 2019 | J31: Q3 2019 | K31: Q4 2019 | L31: Q1 2020 | M31: Q2 2020 | N31: Q3 2020 | O31: Q4 2020 | P31: Q1 2021 | Q31: Q2 2021 | R31: Q3 2021
C33: mln PLN | D33: mln PLN | E33: mln PLN | F33: mln PLN | G33: mln PLN | H33: mln PLN | I33: mln PLN | J33: mln PLN | K33: mln PLN | L33: mln PLN | M33: mln PLN | N33: mln PLN | O33: mln PLN | P33: mln PLN | Q33: mln PLN | R33: mln PLN
A35: Sprzedaż na rzecz klientów zewnętrznych | B35: Sales to external customers | C35: 2227.4 | D35: 573.6 | E35: 640.6 | F35: 586.7 | G35: 788.6 | H35: 674.5 | I35: 671.7 | J35: 685.9 | K35: 894.1 | L35: 753.4 | M35: 747.2 | N35: 717.9 | O35: 1000.3 | P35: 817.3 | Q35: 870.8 | R35: 844.3
A36: Sprzedaż pomiędzy segmentami | B36: Inter-segment sales | C36: 5.5 | D36: 0.4 | E36: 3.7 | F36: 0.1 | G36: -1.5 | H36: -0.9 | I36: 0.9 | J36: 0.7 | K36: 2.5 | L36: 1.2 | M36: 2.3 | N36: 3 | O36: 1.2 | P36: 1.5 | Q36: 1.7 | R36: 1.6
A37: Zysk/strata netto z działalności operacyjnej segmentu | B37: Net operating profit/loss | C37: 248.8 | D37: 54.3 | E37: 69.6 | F37: 58.9 | G37: 91.1 | H37: 76.4 | I37: 74.4 | J37: 87.7 | K37: 109.8 | L37: 80.9 | M37: 91.7 | N37: 78.8 | O37: 137.2 | P37: 98 | Q37: 100.7 | R37: 119.8
A38: Przychody z tytułu odsetek | B38: Interest income | C38: 7.2 | D38: 1.4 | E38: 1.8 | F38: 1.7 | G38: 1.5 | H38: 1.6 | I38: 2 | J38: 1.5 | K38: 1.6 | L38: 1.8 | M38: 2.1 | N38: 0.7 | O38: 1.2 | P38: 1.5 | Q38: 1.7 | R38: 0.9
A39: Koszty z tytułu odsetek | B39: Interest expenses | C39: -2 | D39: -0.7 | E39: -0.9 | F39: -1.2 | G39: -1 | H39: -1.9 | I39: -1.9 | J39: -2.4 | K39: -2.4 | L39: -2.1 | M39: -2.7 | N39: -2.3 | O39: -2.5 | P39: -2 | Q39: -1.9 | R39: -2.1
A40: Podatek dochodowy | B40: Corporate income tax | C40: -25.9 | D40: -14.7 | E40: -16.2 | F40: -13.5 | G40: -16.8 | H40: -16.1 | I40: -17.7 | J40: -18.3 | K40: -19.9 | L40: -17.1 | M40: -17.1 | N40: -14.3 | O40: -24.1 | P40: -21.1 | Q40: -21.3 | R40: -23.9
A41: Pozycje niepieniężne: | B41: Non-cash items:
A42: Amortyzacja | B42: Depreciation and amortization | C42: -90.6 | D42: -24.7 | E42: -27.8 | F42: -27.3 | G42: -25.2 | H42: -34.5 | I42: -35.9 | J42: -38.8 | K42: -41.1 | L42: -42.8 | M42: -43.2 | N42: -43 | O42: -41.9 | P42: -42.1 | Q42: -43.7 | R42: -43.8
A43: w tym amortyzacja wartości niematerialnych rozpoznanych w wyniku procesu alokacji ceny nabycia (PPA) | B43: of which amortization of IA recognized in purchase price allocation process (PPA) | C43: -7.7 | D43: -1.9 | E43: -2 | F43: -2 | G43: -3.1 | H43: -2.3 | I43: -2.2 | J43: -2.6 | K43: -4.1 | L43: -3.5 | M43: -3.4 | N43: -3.3 | O43: -3.6 | P43: -3.5 | Q43: -4.5 | R43: -3.9
A44: Koszty transakcji z pracownikami rozliczanych w formie instrumentów kapitałowych | B44: Costs of share-based payment transactions with employees | C44: -1.2 | D44: 0.6 | E44: -1.8 | F44: -0.6 | G44: -0.7 | H44: -0.7 | I44: -0.8 | J44: -0.3 | K44: -0.3 | L44: -0.3 | M44: -0.4 | N44: 0 | O44: 0 | P44: 0 | Q44: 0 | R44: 0
A45: Odpis z tyt. utraty wartości aktywów segmentu | B45: Impairment write-downs on segment assets | C45: -32.1 | D45: -0.6 | E45: 0.4 | F45: -3.6 | G45: -4.7 | H45: -2.3 | I45: -1.8 | J45: -3.9 | K45: -2.2 | L45: -1.5 | M45: -2.6 | N45: -4.2 | O45: 0.1 | P45: -2.6 | Q45: 0.4 | R45: 3.8
A46: Udział w wynikach jednostek stowarzyszonych i wspólnych przedsięwziąć | B46: Share in profits of associates and joint ventures | C46: -40 | D46: -1 | E46: 0.3 | F46: 0.1 | G46: 1.1 | H46: -1.9 | I46: -1.3 | J46: 0.2 | K46: 3.7 | L46: -1.5 | M46: 0.5 | N46: -0.3 | O46: 2.5 | P46: -1.3 | Q46: 0.7 | R46: 0.3
A47: Zysk/strata netto segmentu przypisany Jednostce Dominującej | B47: Net profit/loss attributable to shareholders of the Parent Company | C47: 55.7 | D47: 26.3 | E47: 38.2 | F47: 31.8 | G47: 53.3 | H47: 38.3 | I47: 36.6 | J47: 44.9 | K47: 55.3 | L47: 42.7 | M47: 46.5 | N47: 36.2 | O47: 70.3 | P47: 45.5 | Q47: 63.1 | R47: 57.4
A48: Środki pieniężne netto z działalności operacyjnej | B48: Net cash provided by (used in) operating activities | C48: 341.6 | D48: 40.5 | E48: 58 | F48: 67.3 | G48: 229.9 | H48: 80.5 | I48: 43.3 | J48: 69.6 | K48: 299.8 | L48: 66 | M48: 93.3 | N48: 136.3 | O48: 284.2 | P48: 34.2 | Q48: 111.3 | R48: 152.4
A49: Wartość firmy | B49: Goodwill | C49: 1327.2 | D49: 1345.6 | E49: 1394 | F49: 1366.1 | G49: 1367.7 | H49: 1362.7 | I49: 1355.5 | J49: 1443.2 | K49: 1419.6 | L49: 1490.6 | M49: 1469.2 | N49: 1477.7 | O49: 1511.9 | P49: 1530.5 | Q49: 1498.9 | R49: 1566.4
A52: Segment Formula Systems | B52: Segment Formula Systems
C53: YE 2017 | D53: Q1 2018 | E53: Q2 2018 | F53: Q3 2018 | G53: Q4 2018 | H53: Q1 2019 | I53: Q2 2019 | J53: Q3 2019 | K53: Q4 2019 | L53: Q1 2020 | M53: Q2 2020 | N53: Q3 2020 | O53: Q4 2020 | P53: Q1 2021 | Q53: Q2 2021 | R53: Q3 2021
C55: mln PLN | D55: mln PLN | E55: mln PLN | F55: mln PLN | G55: mln PLN | H55: mln PLN | I55: mln PLN | J55: mln PLN | K55: mln PLN | L55: mln PLN | M55: mln PLN | N55: mln PLN | O55: mln PLN | P55: mln PLN | Q55: mln PLN | R55: mln PLN
A57: Sprzedaż na rzecz klientów zewnętrznych | B57: Sales to external customers | C57: 4265.3 | D57: 1260.9 | E57: 1320.1 | F57: 1325.6 | G57: 1485.2 | H57: 1482.8 | I57: 1564.2 | J57: 1765.2 | K57: 1729.3 | L57: 1859.7 | M57: 1773.2 | N57: 1856.2 | O57: 2060.1 | P57: 2157.5 | Q57: 2202.4 | R57: 2287.8
A58: Sprzedaż pomiędzy segmentami | B58: Inter-segment sales | C58: 27.6 | D58: 2.9 | E58: 2.8 | F58: 2.2 | G58: 3 | H58: 3.3 | I58: 3 | J58: 3.4 | K58: 3.2 | L58: 2.8 | M58: 2.6 | N58: 2.8 | O58: 4 | P58: 2.4 | Q58: 3.6 | R58: 3
A59: Zysk/strata netto z działalności operacyjnej segmentu | B59: Net operating profit/loss | C59: 185.3 | D59: 56.8 | E59: 69.8 | F59: 74.8 | G59: 99.7 | H59: 105 | I59: 109.4 | J59: 135 | K59: 123.3 | L59: 126.9 | M59: 160.5 | N59: 159 | O59: 168.2 | P59: 166.5 | Q59: 172.5 | R59: 182.9
A60: Przychody z tytułu odsetek | B60: Interest income | C60: 6.1 | D60: 0.4 | E60: 0.5 | F60: 0.7 | G60: 0.8 | H60: 1.3 | I60: 0.9 | J60: 2.3 | K60: 0.1 | L60: 1 | M60: 0.5 | N60: 4.6 | O60: -2.8 | P60: 0.8 | Q60: 0 | R60: 0.5
A61: Koszty z tytułu odsetek | B61: Interest expenses | C61: -32.3 | D61: -9.9 | E61: -10.4 | F61: -11.2 | G61: -11.4 | H61: -13.8 | I61: -17.2 | J61: -19.8 | K61: -14.5 | L61: -17.8 | M61: -19.9 | N61: -17.9 | O61: -21.1 | P61: -16.3 | Q61: -16.8 | R61: -17.5
A62: Podatek dochodowy | B62: Corporate income tax | C62: -70.6 | D62: -13.4 | E62: -15.1 | F62: -11 | G62: -25.9 | H62: -19.6 | I62: -22.7 | J62: -25.5 | K62: -21.8 | L62: -26.6 | M62: -32.5 | N62: -27.4 | O62: -19.5 | P62: -31.6 | Q62: -38 | R62: -34.6
A63: Pozycje niepieniężne: | B63: Non-cash items:
A64: Amortyzacja | B64: Depreciation and amortization | C64: -169.9 | D64: -73.6 | E64: -65.5 | F64: -65.9 | G64: -70 | H64: -87.5 | I64: -101 | J64: -104.1 | K64: -107 | L64: -104.8 | M64: -107.1 | N64: -111.7 | O64: -122.7 | P64: -112.2 | Q64: -122.5 | R64: -125
A65: w tym amortyzacja wartości niematerialnych rozpoznanych w wyniku procesu alokacji ceny nabycia (PPA) | B65: of which amortization of IA recognized in purchase price allocation process (PPA) | C65: -114 | D65: -56.5 | E65: -48.1 | F65: -47.5 | G65: -51.1 | H65: -44.9 | I65: -44.4 | J65: -48.6 | K65: -47.4 | L65: -45.8 | M65: -49.9 | N65: -50 | O65: -51.7 | P65: -53.3 | Q65: -55.8 | R65: -64.4
A66: Koszty transakcji z pracownikami rozliczanych w formie instrumentów kapitałowych | B66: Costs of share-based payment transactions with employees | C66: -17.6 | D66: -4.8 | E66: -5.7 | F66: -4.7 | G66: -3.9 | H66: -4.4 | I66: -3 | J66: -4 | K66: -3.1 | L66: -13 | M66: 3.1 | N66: -4.9 | O66: -16 | P66: -15 | Q66: -14.3 | R66: -11.9
A67: Odpis z tyt. utraty wartości aktywów segmentu | B67: Impairment write-downs on segment assets | C67: -4 | D67: -1.6 | E67: -0.9 | F67: -0.8 | G67: -1.7 | H67: 0.1 | I67: -0.6 | J67: -0.9 | K67: -1.9 | L67: -1.9 | M67: -3.3 | N67: -3.3 | O67: -2.4 | P67: 2.3 | Q67: -0.5 | R67: -0.4
A68: Udział w wynikach jednostek stowarzyszonych i wspólnych przedsięwziąć | B68: Share in profits of associates and joint ventures | C68: 3.4 | D68: 0.2 | E68: -0.4 | F68: 0 | G68: 1.6 | H68: 2.8 | I68: 1.4 | J68: 1.6 | K68: 1.2 | L68: 0.5 | M68: 0.9 | N68: -0.1 | O68: 4.4 | P68: 1 | Q68: 1.7 | R68: -1.1
A69: Zysk/strata netto segmentu przypisany Jednostce Dominującej | B69: Net profit/loss attributable to shareholders of the Parent Company | C69: 405.5 | D69: 3.4 | E69: 5.1 | F69: 4.3 | G69: 7.8 | H69: 6 | I69: 8.8 | J69: 8.8 | K69: 8.7 | L69: 7.4 | M69: 11.9 | N69: 10.5 | O69: 10.7 | P69: 11.4 | Q69: 10.2 | R69: 11.9
A70: Środki pieniężne netto z działalności operacyjnej | B70: Net cash provided by (used in) operating activities | C70: 382.9 | D70: 89 | E70: 40.5 | F70: 55.1 | G70: 241.5 | H70: 218.1 | I70: 135.6 | J70: 245.7 | K70: 382.7 | L70: 257.4 | M70: 329.5 | N70: 293.2 | O70: 456.1 | P70: 47.8 | Q70: 280.4 | R70: 191.9
A71: Wartość firmy | B71: Goodwill | C71: 435.4 | D71: 628.8 | E71: 551.3 | F71: 575 | G71: 628.3 | H71: 796.6 | I71: 795.2 | J71: 922.6 | K71: 881.2 | L71: 1014.4 | M71: 1014.8 | N71: 1141.1 | O71: 1357.8 | P71: 1422.5 | Q71: 1671 | R71: 1628.9

Sheet wyniki spolek (hidden)
E1: Przychody ze sprzedaży | Y1: Zysk operacyjny | AS1: Zysk operacyjny non-IFRS | BM1: Zysk netto 100% | CG1: Zysk netto kontrybucja do Asseco Poland | DA1: Zysk netto kontrybucja do Asseco Poland non-IFRS
E2: Q1 2017 | F2: Q2 2017 | G2: Q3 2017 PF | H2: Q4 2017 PF | I2: Q1 2018 | J2: Q2 2018 | K2: Q3 2018 | L2: Q4 2018 | M2: Q1 2019 | N2: Q2 2019 | O2: Q3 2019 | P2: Q4 2019 | Q2: Q1 2020 | R2: Q2 2020 | S2: Q3 2020 | T2: Q4 2020 | U2: Q1 2021 | V2: Q2 2021 | W2: Q3 2021 | Y2: Q1 2017 | Z2: Q2 2017 | AA2: Q3 2017 PF | AB2: Q4 2017 PF | AC2: Q1 2018 | AD2: Q2 2018 | AE2: Q3 2018 | AF2: Q4 2018 | AG2: Q1 2019 | AH2: Q2 2019 | AI2: Q3 2019 | AJ2: Q4 2019 | AK2: Q1 2020 | AL2: Q2 2020 | AM2: Q3 2020 | AN2: Q4 2020 | AO2: Q1 2021 | AP2: Q2 2021 | AQ2: Q3 2021 | AS2: Q1 2017 | AT2: Q2 2017 | AU2: Q3 2017 PF | AV2: Q4 2017 PF | AW2: Q1 2018 | AX2: Q2 2018 | AY2: Q3 2018 | AZ2: Q4 2018 | BA2: Q1 2019 | BB2: Q2 2019 | BC2: Q3 2019 | BD2: Q4 2019 | BE2: Q1 2020 | BF2: Q2 2020 | BG2: Q3 2020 | BH2: Q4 2020 | BI2: Q1 2021 | BJ2: Q2 2021 | BK2: Q3 2021 | BM2: Q1 2017 | BN2: Q2 2017 | BO2: Q3 2017 PF | BP2: Q4 2017 PF | BQ2: Q1 2018 | BR2: Q2 2018 | BS2: Q3 2018 | BT2: Q4 2018 | BU2: Q1 2019 | BV2: Q2 2019 | BW2: Q3 2019 | BX2: Q4 2019 | BY2: Q1 2020 | BZ2: Q2 2020 | CA2: Q3 2020 | CB2: Q4 2020 | CC2: Q1 2021 | CD2: Q2 2021 | CE2: Q3 2021 | CG2: Q1 2017 | CH2: Q2 2017 | CI2: Q3 2017 PF | CJ2: Q4 2017 PF | CK2: Q1 2018 | CL2: Q2 2018 | CM2: Q3 2018 | CN2: Q4 2018 | CO2: Q1 2019 | CP2: Q2 2019 | CQ2: Q3 2019 | CR2: Q4 2019 | CS2: Q1 2020 | CT2: Q2 2020 | CU2: Q3 2020 | CV2: Q4 2020 | CW2: Q1 2021 | CX2: Q2 2021 | CY2: Q3 2021 | DA2: Q1 2017 | DB2: Q2 2017 | DC2: Q3 2017 PF | DD2: Q4 2017 PF | DE2: Q1 2018 | DF2: Q2 2018 | DG2: Q3 2018 | DH2: Q4 2018 | DI2: Q1 2019 | DJ2: Q2 2019 | DK2: Q3 2019 | DL2: Q4 2019 | DM2: Q1 2020 | DN2: Q2 2020 | DO2: Q3 2020 | DP2: Q4 2020 | DQ2: Q1 2021 | DR2: Q2 2021 | DS2: Q3 2021
B3: Rynek polski | E3: 309516599.5 | F3: 315459007.2 | G3: 316876448.7 | H3: 403847944.7 | I3: 316300000 | J3: 352100000 | K3: 308200000 | L3: 382200000 | M3: 298600000 | N3: 305100000 | O3: 290100000 | P3: 318500000 | Q3: 310700000 | R3: 332000000 | S3: 365500000 | T3: 428700000 | U3: 366800000 | V3: 384300000 | W3: 372400000 | Y3: 39548957.47 | Z3: 31800597.66 | AA3: 35960657.83 | AB3: 45189787.04 | AC3: 55800000 | AD3: 64700000 | AE3: 52600000 | AF3: 47600000 | AG3: 43300000 | AH3: 44100000 | AI3: 38200000 | AJ3: 27500000 | AK3: 42700000 | AL3: 52100000 | AM3: 60200000 | AN3: 59800000 | AO3: 59000000 | AP3: 78300000 | AQ3: 70000000 | AS3: 44062957.47 | AT3: 36309597.66 | AU3: 40471657.83 | AV3: 49697787.04 | AW3: 60015000 | AX3: 68917000 | AY3: 57201888.89 | AZ3: 52401611.11 | BA3: 46963000 | BB3: 48868000 | BC3: 42415000 | BD3: 31551000 | BE3: 46715000 | BF3: 56206000 | BG3: 64245896.34 | BH3: 68049500 | BI3: 62792000 | BJ3: 82092000 | BK3: 73792000 | BM3: 61188493.37 | BN3: -7064661.769 | BO3: 21429629.69 | BP3: -55737461.29 | BQ3: 40102344 | BR3: 47387684.99 | BS3: 42641000.25 | BT3: 38170000 | BU3: 36046000 | BV3: 35529000 | BW3: 25786000 | BX3: 20997000 | BY3: 32498000 | BZ3: 39809000 | CA3: 44183000 | CB3: 55249000 | CC3: 45856000 | CD3: 69866000 | CE3: 51449000 | CG3: 32692050.16 | CH3: 18452194.74 | CI3: 17264902.86 | CJ3: -61329708.7 | CK3: 38838820.02 | CL3: 45274107.62 | CM3: 40449367.94 | CN3: 37024006.86 | CO3: 35275148.13 | CP3: 33558061.85 | CQ3: 24904693.43 | CR3: 20001920.55 | CS3: 32130028.11 | CT3: 37069971.89 | CU3: 42982204.68 | CV3: 55734100.92 | CW3: 45948986.6 | CX3: 68638900.73 | CY3: 50523636.59 | DA3: 36515879.33 | DB3: 21823327.26 | DC3: 20942396.14 | DD3: 23927950.23 | DE3: 42233927.18 | DF3: 48799776.92 | DG3: 43380577.79 | DH3: 37137603.95 | DI3: 38245108.59 | DJ3: 37655121.85 | DK3: 28268693.43 | DL3: 23305010.09 | DM3: 35382028.11 | DN3: 40411412.03 | DO3: 46265011.02 | DP3: 62452550.92 | DQ3: 49019986.6 | DR3: 64631179.23 | DS3: 55326836.59
B4: Asseco Poland (bez dywidend) | E4: 202880000 | F4: 196326000 | G4: 202853000 | H4: 259176000 | I4: 205373000 | J4: 225425000 | K4: 210982000 | L4: 251505000 | M4: 195051000 | N4: 210024000 | O4: 191685000 | P4: 208784000 | Q4: 203854000 | R4: 226591000 | S4: 261223000 | T4: 305204000 | U4: 261578000 | V4: 268176000 | W4: 263503000 | Y4: 31517000 | Z4: 22093000 | AA4: 32430000 | AB4: 34655000 | AC4: 46308000 | AD4: 43215000 | AE4: 47506000 | AF4: 44687000 | AG4: 29061000 | AH4: 31933000 | AI4: 28117000 | AJ4: 20223000 | AK4: 31374000 | AL4: 34011000 | AM4: 43893000 | AN4: 48777000 | AO4: 46049000 | AP4: 56996000 | AQ4: 55925000 | AS4: 34225000 | AT4: 24801000 | AU4: 35136000 | AV4: 37363000 | AW4: 49016000 | AX4: 45922000 | AY4: 50213000 | AZ4: 47397000 | BA4: 31769000 | BB4: 34640000 | BC4: 30825000 | BD4: 22731000 | BE4: 33881000 | BF4: 36518000 | BG4: 46490000 | BH4: 55622000 | BI4: 48422000 | BJ4: 59369000 | BK4: 58299000 | BM4: 21672691.01 | BN4: 17421308.99 | BO4: -5260351.69 | BP4: -3603648.31 | BQ4: 38885000 | BR4: 30938000 | BS4: 40170000 | BT4: 36002000 | BU4: 24125000 | BV4: 28206000 | BW4: 22701000 | BX4: 16943000 | BY4: 24274000 | BZ4: 25451000 | CA4: 32927000 | CB4: 46838000 | CC4: 35587000 | CD4: 55225000 | CE4: 41537000 | CG4: 21673327.38 | CH4: 17418918.51 | CI4: 38624527.39 | CJ4: -47487118.33 | CK4: 38871445.81 | CL4: 30952157.06 | CM4: 40171489.3 | CN4: 35998889.84 | CO4: 24129251.68 | CP4: 28206840.23 | CQ4: 22699789.32 | CR4: 16940611.43 | CS4: 24274060.82 | CT4: 25451752.91 | CU4: 32926129.27 | CV4: 46837140.47 | CW4: 35586840.07 | CX4: 55226050.92 | CY4: 41533846.12 | DA4: 27375152.44 | DB4: 17497420.6 | DC4: -4545743.491 | DD4: 23711460.23 | DE4: 41021568.13 | DF4: 33205951.2 | DG4: 42381339.35 | DH4: 38193989.43 | DI4: 26319752.14 | DJ4: 29609360.23 | DK4: 24894789.32 | DL4: 18974700.97 | DM4: 26305060.82 | DN4: 27481752.91 | DO4: 35030039.27 | DP4: 52385590.47 | DQ4: 37508840.07 | DR4: 48875329.42 | DS4: 43479046.12
B5: Asseco Data Systems | C5: Asseco Data Systems PF | D5: Asseco Data Systems PF | E5: 69557000 | F5: 74634000 | G5: 84596000 | H5: 128724000 | I5: 89075000 | J5: 93260000 | K5: 76711000 | L5: 91508000 | M5: 72401000 | N5: 68301000 | O5: 60973000 | P5: 74111000 | Q5: 67693000 | R5: 66439000 | S5: 72765000 | T5: 88263000 | U5: 76813000 | V5: 80753000 | W5: 69943000 | Y5: 5752000 | Z5: 2545000 | AA5: 4173000 | AB5: -4130000 | AC5: 5623000 | AD5: 12511000 | AE5: 1308000 | AF5: 6374000 | AG5: 8989000 | AH5: 8071000 | AI5: 916000 | AJ5: 6438000 | AK5: 7319000 | AL5: 11376000 | AM5: 11071000 | AN5: 7314000 | AO5: 12926000 | AP5: 16579000 | AQ5: 7299000 | AS5: 7466000 | AT5: 4260000 | AU5: 5888000 | AV5: -2419000 | AW5: 7041000 | AX5: 13932000 | AY5: 2725000 | AZ5: 7792000 | BA5: 10407000 | BB5: 9491000 | BC5: 2334000 | BD5: 7857000 | BE5: 8738000 | BF5: 12795000 | BG5: 12489000 | BH5: 8733000 | BI5: 14345000 | BJ5: 17998000 | BK5: 8717000 | BM5: 4055000 | BN5: 2241000 | BO5: 2788000 | BP5: -5380000 | BQ5: 4471000 | BR5: 10087000 | BS5: 979000 | BT5: 3704000 | BU5: 7819000 | BV5: 6262000 | BW5: -2858000 | BX5: 4971000 | BY5: 6005000 | BZ5: 8775000 | CA5: 8988000 | CB5: 5812000 | CC5: 10334000 | CD5: 13101000 | CE5: 5777000 | CG5: 4055000 | CH5: 2241000 | CI5: 2788000 | CJ5: -5380000 | CK5: 4471000 | CL5: 10087000 | CM5: 979000 | CN5: 3704000 | CO5: 7819000 | CP5: 6262000 | CQ5: -2858000 | CR5: 4971000 | CS5: 6005000 | CT5: 8775000 | CU5: 8988000 | CV5: 5812000 | CW5: 10334000 | CX5: 13101000 | CY5: 5777839.93 | DA5: 5443340 | DB5: 3630150 | DC5: 4177150 | DD5: -3994090 | DE5: 5619580 | DF5: 11238010 | DG5: 2126770 | DH5: 4852580 | DI5: 8967580 | DJ5: 7412420 | DK5: -1710000 | DL5: 6121000 | DM5: 7154000 | DN5: 9925000 | DO5: 10136000 | DP5: 6982000 | DQ5: 11483000 | DR5: 14251000 | DS5: 6925839.93
B6: Pozostałe | E6: 48913000 | F6: 56389000 | G6: 47929000 | H6: 52198000 | I6: 34999000 | J6: 43634000 | K6: 38749000 | L6: 51071000 | M6: 40260000 | N6: 40737000 | O6: 47596000 | P6: 49022000 | Q6: 49500000 | R6: 51781000 | S6: 42668000 | T6: 48345000 | U6: 34359000 | V6: 42208000 | W6: 45947000 | Y6: 4706000 | Z6: 6467000 | AA6: 2263000 | AB6: 10583000 | AC6: 4411000 | AD6: 6700000 | AE6: 7299000 | AF6: 5913000 | AG6: 4142000 | AH6: 4254000 | AI6: 8740946.064 | AJ6: 3889315.355 | AK6: 4052000 | AL6: 7494000 | AM6: 6841000 | AN6: 655000 | AO6: 998000 | AP6: 4659000 | AQ6: 7760000 | AS6: 4706000 | AT6: 6467000 | AU6: 2263000 | AV6: 10583000 | AW6: 4411000 | AX6: 6700000 | AY6: 7299000 | AZ6: 5913000 | BA6: 4142000 | BB6: 4254000 | BC6: 8740946.064 | BD6: 3889315.355 | BE6: 4052000 | BF6: 7494000 | BG6: 6841000 | BH6: 655000 | BI6: 998000 | BJ6: 4659000 | BK6: 7760000 | BM6: 3148000 | BN6: 4220000 | BO6: 1226000 | BP6: 8398000 | BQ6: 2511000 | BR6: 4613000 | BS6: 5748000 | BT6: 4852000 | BU6: 3036000 | BV6: 2179000 | BW6: 5898946.064 | BX6: 2593315.355 | BY6: 2547000 | BZ6: 5680000 | CA6: 3883000 | CB6: -430000 | CC6: 701000 | CD6: 4511000 | CE6: 4864000 | CG6: 2715513.873 | CH6: 1568977.039 | CI6: -2364679.038 | CJ6: 2198452.11 | CK6: 1166531.266 | CL6: 2583968.304 | CM6: 3189981.882 | CN6: 3770773.463 | CO6: 2230132.103 | CP6: 241995.3038 | CQ6: 5061823.822 | CR6: 1532753.871 | CS6: 2179162.938 | CT6: 2898918.504 | CU6: 2734331.405 | CV6: 39920.11266 | CW6: 813824.0042 | CX6: 3248851.808 | CY6: 3901457.32 | DA6: 2715513.873 | DB6: 1568977.039 | DC6: -2364679.038 | DD6: 2198452.11 | DE6: 1166531.266 | DF6: 2583968.304 | DG6: 3189981.882 | DH6: 3795883.463 | DI6: 2230132.103 | DJ6: 241995.3038 | DK6: 5061823.822 | DL6: 1534753.871 | DM6: 2179162.938 | DN6: 2898918.504 | DO6: 2734331.405 | DP6: 39920.11266 | DQ6: 813824.0042 | DR6: 3248851.808 | DS6: 3901457.32
D7: korekty | E7: -11833400.51 | F7: -11889992.82 | G7: -18501551.33 | H7: -36250055.34 | I7: -13147000 | J7: -10219000 | K7: -18242000 | L7: -11884000 | M7: -9112000 | N7: -13962000 | O7: -10154000 | P7: -13417000 | Q7: -10347000 | R7: -12811000 | S7: -11156000 | T7: -13112000 | U7: -5950000 | V7: -6837000 | W7: -6993000 | Y7: -2426042.526 | Z7: 695597.6591 | AA7: -2905342.17 | AB7: 4081787.037 | AC7: -542000 | AD7: 2274000 | AE7: -3513000 | AF7: -9374000 | AG7: 1108000 | AH7: -158000 | AI7: 426053.9356 | AJ7: -3050315.355 | AK7: -45000 | AL7: -781000 | AM7: -1605000 | AN7: 3054000 | AO7: -973000 | AP7: 66000 | AQ7: -984000 | AS7: -2334042.526 | AT7: 781597.6591 | AU7: -2815342.17 | AV7: 4170787.037 | AW7: -453000 | AX7: 2363000 | AY7: -3035111.111 | AZ7: -8700388.889 | BA7: 645000 | BB7: 483000 | BC7: 515053.9356 | BD7: -2926315.355 | BE7: 44000 | BF7: -601000 | BG7: -1574103.661 | BH7: 3039500 | BI7: -973000 | BJ7: 66000 | BK7: -984000 | BM7: 32312493.37 | BN7: -30946661.77 | BO7: 22675981.38 | BP7: -55151812.98 | BQ7: -5764656 | BR7: 1749684.99 | BS7: -4255999.75 | BT7: -6388000 | BU7: 1066000 | BV7: -1118000 | BW7: 44053.93556 | BX7: -3510315.355 | BY7: -328000 | BZ7: -97000 | CA7: -1615000 | CB7: 3029000 | CC7: -766000 | CD7: -2971000 | CE7: -729000 | CG7: 4248208.905 | CH7: -2776202.82 | CI7: -21783856.15 | CJ7: -10660629.81 | CK7: -5670157.058 | CL7: 1650982.252 | CM7: -3891103.24 | CN7: -6449656.442 | CO7: 1096764.348 | CP7: -1152773.682 | CQ7: 1080.283389 | CR7: -3442444.747 | CS7: -328195.6522 | CT7: -55699.51893 | CU7: -1666255.993 | CV7: 3045040.337 | CW7: -785677.47 | CX7: -2937002 | CY7: -689506.78 | DA7: 981873.0113 | DB7: -872722.3913 | DC7: 23674758.01 | DD7: 2012540.561 | DE7: -5573752.22 | DF7: 1771847.41 | DG7: -4317513.442 | DH7: -9704848.942 | DI7: 727644.3478 | DJ7: 391346.3178 | DK7: 22080.28339 | DL7: -3325444.747 | DM7: -256195.6522 | DN7: 105740.6115 | DO7: -1635359.654 | DP7: 3045040.337 | DQ7: -785677.47 | DR7: -1744002 | DS7: 1020493.22
B8: Rynek izraelski | E8: 1264717781 | F8: 1247233115 | G8: 1305895209 | H8: 1343555254 | I8: 1263800000 | J8: 1322900000 | K8: 1327800000 | L8: 1488200000 | M8: 1486100000 | N8: 1567200000 | O8: 1768600000 | P8: 1732500000 | Q8: 1862500000 | R8: 1775800000 | S8: 1859000000 | T8: 2064100000 | U8: 2159900000 | V8: 2206000000 | W8: 2290800000 | Y8: 72723810.96 | Z8: 54891847.51 | AA8: 55653157.08 | AB8: 29152558.92 | AC8: 56800000 | AD8: 69800000 | AE8: 74800000 | AF8: 99700000 | AG8: 105000000 | AH8: 109400000 | AI8: 135000000 | AJ8: 123300000 | AK8: 126900000 | AL8: 160500000 | AM8: 159000000 | AN8: 168200000 | AO8: 166500000 | AP8: 172500000 | AQ8: 182900000 | AS8: 98481127.66 | AT8: 79847837.16 | AU8: 113108286.6 | AV8: 100831216.3 | AW8: 118103675.9 | AX8: 123554359.8 | AY8: 126526248.9 | AZ8: 155249344.8 | BA8: 154312220.2 | BB8: 156731041.3 | BC8: 187652290.6 | BD8: 173844233.5 | BE8: 185712432.1 | BF8: 207314764 | BG8: 213864462.3 | BH8: 235830302.4 | BI8: 234833250.6 | BJ8: 242615266.3 | BK8: 259229534.2 | BM8: 22455810.96 | BN8: 15244847.51 | BO8: 23986433.06 | BP8: 412864498.5 | BQ8: 32971321.06 | BR8: 45030678.94 | BS8: 44935000 | BT8: 65893000 | BU8: 60963000 | BV8: 75224000 | BW8: 85286000 | BX8: 81994000 | BY8: 78340000 | BZ8: 98423000 | CA8: 99585000 | CB8: 107083000 | CC8: 113041000 | CD8: 107443000 | CE8: 120354000 | CG8: 354608.1468 | CH8: -405230.8236 | CI8: 4337093.51 | CJ8: 401174452 | CK8: 3352027.306 | CL8: 5155191.379 | CM8: 4273191.918 | CN8: 7869090.088 | CO8: 5952207.628 | CP8: 8857314.729 | CQ8: 8806254.977 | CR8: 8657110.955 | CS8: 7389284.423 | CT8: 11867144.42 | CU8: 10575919.39 | CV8: 10672479.53 | CW8: 11376086.88 | CX8: 10234454.81 | CY8: 11887790.78 | DA8: 6671644.808 | DB8: 5800712.403 | DC8: 11936294.42 | DD8: 7964017.823 | DE8: 10631090.3 | DF8: 11319105.83 | DG8: 10316918.24 | DH8: 14718032.06 | DI8: 11128723.83 | DJ8: 13698780.87 | DK8: 14330324.1 | DL8: 14718730.15 | DM8: 14909355.98 | DN8: 16824492.22 | DO8: 15739287.95 | DP8: 19004378.88 | DQ8: 19297168.22 | DR8: 19386335.88 | DS8: 21360465.88
B9: Matrix IT | E9: 760222000 | F9: 707844000 | G9: 758484450 | H9: 798284035.3 | I9: 759908192 | J9: 773974079.7 | K9: 765809682.8 | L9: 885310052 | M9: 888804243.2 | N9: 935449905.1 | O9: 1066891860 | P9: 998489337.6 | Q9: 1112976989 | R9: 995774161.7 | S9: 1080977636 | T9: 1206625081 | U9: 1280654956 | V9: 1227244011 | W9: 1241272304 | Y9: 53017000 | Z9: 43328000 | AA9: 55766101.15 | AB9: 55523719.11 | AC9: 52733426.52 | AD9: 53170361.63 | AE9: 50707810.65 | AF9: 69334136.72 | AG9: 62884255.45 | AH9: 63016636.19 | AI9: 75943784.22 | AJ9: 72032917.69 | AK9: 77710252.65 | AL9: 76841471.94 | AM9: 80939794.24 | AN9: 91810593.72 | AO9: 93996137.46 | AP9: 94925938.88 | AQ9: 90435860.17 | AS9: 57122191.84 | AT9: 46437246.78 | AU9: 58103931.17 | AV9: 57643352.36 | AW9: 56373425.07 | AX9: 57451517.06 | AY9: 54447627.93 | AZ9: 74626498.96 | BA9: 69610473.66 | BB9: 69441391.73 | BC9: 83105410.71 | BD9: 78414439.92 | BE9: 84147717.86 | BF9: 83296847.44 | BG9: 88921494.54 | BH9: 99774329.96 | BI9: 100722028.6 | BJ9: 101869360 | BK9: 97972017.27 | BM9: 30833000 | BN9: 25706000 | BO9: 35640584.35 | BP9: 41719555.51 | BQ9: 34345845.84 | BR9: 34687108.95 | BS9: 31351500.5 | BT9: 44622358.29 | BU9: 39895166.82 | BV9: 39682481.85 | BW9: 49026859.63 | BX9: 51907383.71 | BY9: 49169004.41 | BZ9: 48342710.25 | CA9: 50133264.49 | CB9: 70052743.33 | CC9: 63608386.86 | CD9: 63059403.19 | CE9: 58052591.55 | CG9: 7095356.749 | CH9: 5541517.16 | CI9: 5626038.265 | CJ9: 5346883.021 | CK9: 4339318.363 | CL9: 4293513.774 | CM9: 3876789.904 | CN9: 5498629.268 | CO9: 4814369.379 | CP9: 4662835.157 | CQ9: 5763528.203 | CR9: 6185929.06 | CS9: 5636167.369 | CT9: 5679315.75 | CU9: 5729241.496 | CV9: 7649250.548 | CW9: 7022687.642 | CX9: 7161252.517 | CY9: 6569507.871 | DA9: 8188853.931 | DB9: 6830239.689 | DC9: 6048806.943 | DD9: 4831332.076 | DE9: 5025176.544 | DF9: 5310002.299 | DG9: 4841869.986 | DH9: 6562281.789 | DI9: 5602516.477 | DJ9: 5514801.167 | DK9: 6683084.843 | DL9: 6831457.202 | DM9: 6073807.565 | DN9: 6682624.093 | DO9: 6207042.2 | DP9: 7684270.064 | DQ9: 7454310.273 | DR9: 7968537.811 | DS9: 6886826.841
B10: Magic Software | E10: 244404000 | F10: 247476000 | G10: 246088914.1 | H10: 245359832 | I10: 236243311.3 | J10: 256256989 | K10: 264383788.9 | L10: 273324710 | M10: 271624575 | N10: 293085764 | O10: 337158171.4 | P10: 349840772.1 | Q10: 339162772.2 | R10: 351437968.4 | S10: 358384043.3 | T10: 400349858.8 | U10: 409106054.1 | V10: 447225987.4 | W10: 469704729.6 | Y10: 25501000 | Z10: 26584000 | AA10: 23941604.09 | AB10: 24182734.45 | AC10: 25638257.42 | AD10: 29089081.48 | AE10: 28269706.46 | AF10: 31698428.13 | AG10: 31735307.65 | AH10: 30437457 | AI10: 35671641.79 | AJ10: 33826256.86 | AK10: 34714809.62 | AL10: 42058373.51 | AM10: 42898448.78 | AN10: 48782010.65 | AO10: 47152485.78 | AP10: 48499714.4 | AQ10: 49904390.95 | AS10: 33754896.47 | AT10: 33822123.53 | AU10: 31650424.87 | AV10: 31355727.02 | AW10: 31808108.98 | AX10: 35658794.38 | AY10: 35465706.83 | AZ10: 38183396.74 | BA10: 37844798.87 | BB10: 37852031.07 | BC10: 45460698.05 | BD10: 43709487.52 | BE10: 41327344.35 | BF10: 49540962.5 | BG10: 51673798.69 | BH10: 57495374.83 | BI10: 56444198.23 | BJ10: 56897703.17 | BK10: 58706943.78 | BM10: 19559000 | BN10: 18282000 | BO10: 15594956.57 | BP10: 14870521.45 | BQ10: 19614097.03 | BR10: 24685802.79 | BS10: 22487454.28 | BT10: 22962035.05 | BU10: 24698989.58 | BV10: 23065808.74 | BW10: 25986436.52 | BX10: 22854916.56 | BY10: 27950629.57 | BZ10: 27243542.48 | CA10: 31212389.42 | CB10: 28523623.47 | CC10: 33617163.99 | CD10: 34176971 | CE10: 34051573.2 | CG10: 3754409.564 | CH10: 3522397.511 | CI10: 1774636.64 | CJ10: 1765278.34 | CK10: 1923780.68 | CL10: 2569075.479 | CM10: 2250208.041 | CN10: 2055315.533 | CO10: 2363685.408 | CP10: 2057419.928 | CQ10: 2289718.732 | CR10: 2062692.374 | CS10: 2586290.328 | CT10: 2744020.4 | CU10: 3052885.832 | CV10: 2744059.384 | CW10: 3363294.589 | CX10: 3411132.212 | CY10: 3393947.398 | DA10: 5148095.813 | DB10: 4741289.682 | DC10: 2694877.041 | DD10: 2596976.727 | DE10: 2513230.441 | DF10: 3196527.957 | DG10: 2942704.435 | DH10: 2633755.938 | DI10: 2882327.865 | DJ10: 2553219.032 | DK10: 3153635.277 | DL10: 3220244.88 | DM10: 3479181.774 | DN10: 3855995.786 | DO10: 3743265.7 | DP10: 4436028.344 | DQ10: 4369438.742 | DR10: 4497718.739 | DS10: 4612669.077
B11: Sapiens Int. | E11: 227403000 | F11: 261914000 | G11: 270400367.3 | H11: 265168011.6 | I11: 240546283 | J11: 263261260.5 | K11: 268479678.1 | L11: 277241569.9 | M11: 290482664 | N11: 302516301.9 | O11: 325231382.6 | P11: 333644223.8 | Q11: 361295009.7 | R11: 377032101.3 | S11: 368182048.4 | T11: 388555475.7 | U11: 417848728.2 | V11: 429196031.1 | W11: 457947869.4 | Y11: -2370000 | Z11: -6389000 | AA11: 12807157.71 | AB11: 2823874.983 | AC11: 17547315.34 | AD11: 17810254.85 | AE11: 24342058.94 | AF11: 27176939.1 | AG11: 32325450.45 | AH11: 37104407.29 | AI11: 45640974.26 | AJ11: 37138056.15 | AK11: 42867741.69 | AL11: 54129229.5 | AM11: 53095184.04 | AN11: 45377011.35 | AO11: 50008248.04 | AP11: 54027463.81 | AQ11: 61255489.62 | AS11: 4838081.126 | AT11: 2101447.189 | AU11: 22921886 | AV11: 16272566.28 | AW11: 29202608.79 | AX11: 30448114.28 | AY11: 35733781.21 | AZ11: 39384488.45 | BA11: 43314968.71 | BB11: 47241261.98 | BC11: 56907812.88 | BD11: 47343498.48 | BE11: 54983405.79 | BF11: 69230625.98 | BG11: 66642096.85 | BH11: 66242324.16 | BI11: 70257851.98 | BJ11: 74746270.1 | BK11: 79559632.24 | BM11: -8039000 | BN11: -10033000 | BO11: 6111145.791 | BP11: 10460666.26 | BQ11: 10798087.27 | BR11: 6741688.76 | BS11: 18630461.96 | BT11: 16616487.98 | BU11: 20129165.81 | BV11: 24156931.85 | BW11: 31109774.74 | BX11: 26315044.61 | BY11: 25675949.55 | BZ11: 35771551.28 | CA11: 37128056.84 | CB11: 28583651.88 | CC11: 36491990.09 | CD11: 38604157.11 | CE11: 49988983.17 | CG11: -1792418.334 | CH11: -2258985.349 | CI11: 905486.1858 | CJ11: 1453816.453 | CK11: 1364406.99 | CL11: 809498.1944 | CM11: 2350251.507 | CN11: 2062352.506 | CO11: 2488614.14 | CP11: 2931081.514 | CQ11: 3749456.18 | CR11: 3146533.394 | CS11: 3097616.354 | CT11: 4356791.704 | CU11: 4422217.857 | CV11: 3300509.664 | CW11: 4072104.834 | CX11: 4329646.671 | CY11: 5575440.397 | DA11: 134942.9724 | DB11: -575527.8778 | DC11: 2434853.881 | DD11: 2877220.466 | DE11: 2633408.464 | DF11: 2219936.365 | DG11: 3460949.149 | DH11: 3299279.487 | DI11: 3586421.661 | DJ11: 3909014.464 | DK11: 4857969.546 | DL11: 4359635.299 | DM11: 4297431.613 | DN11: 6355257.173 | DO11: 5537830.143 | DP11: 5903065.221 | DQ11: 6046654.902 | DR11: 6323407.584 | DS11: 7131584.994
B12: Pozostałe | E12: 32688781.38 | F12: 29999114.83 | G12: 30921477.35 | H12: 34743374.85 | I12: 27102213.67 | J12: 29407670.83 | K12: 29126850.2 | L12: 52323668.15 | M12: 35188517.82 | N12: 36148029.12 | O12: 39318586.08 | P12: 50525666.49 | Q12: 49065228.85 | R12: 51555768.54 | S12: 51456272.72 | T12: 68569584.09 | U12: 52290261.87 | V12: 102333970.1 | W12: 121875097.1 | Y12: -3424189.037 | Z12: -8631152.493 | AA12: -36861705.86 | AB12: -53377769.61 | AC12: -39118999.28 | AD12: -30269697.96 | AE12: -28519576.06 | AF12: -28509503.96 | AG12: -21945013.55 | AH12: -21158500.48 | AI12: -22256400.27 | AJ12: -19697230.7 | AK12: -28392803.96 | AL12: -12529074.95 | AM12: -17933427.07 | AN12: -17769615.71 | AO12: -24656871.27 | AP12: -24953117.09 | AQ12: -18695740.74 | AS12: 2765958.23 | AT12: -2512980.34 | AU12: 432044.6015 | AV12: -4440429.358 | AW12: 719533.0699 | AX12: -4065.927892 | AY12: 879132.9052 | AZ12: 3054960.651 | BA12: 3541978.96 | BB12: 2196356.53 | BC12: 2178368.928 | BD12: 4376807.536 | BE12: 5253964.076 | BF12: 5246328.077 | BG12: 6627072.173 | BH12: 12318273.48 | BI12: 7409171.798 | BJ12: 9101933.038 | BK12: 22990940.92 | BM12: -19897189.04 | BN12: -18710152.49 | BO12: -33360253.65 | BP12: 345813755.3 | BQ12: -31786709.07 | BR12: -21083921.56 | BS12: -27534416.74 | BT12: -18307881.32 | BU12: -23760322.21 | BV12: -11681222.43 | BW12: -20837070.89 | BX12: -19083344.87 | BY12: -24455583.53 | BZ12: -12934804 | CA12: -18888710.76 | CB12: -20077018.68 | CC12: -20676540.94 | CD12: -28397531.31 | CE12: -21739147.91 | CG12: -8702739.832 | CH12: -7210160.146 | CI12: -3969067.582 | CJ12: 392608474.2 | CK12: -4275478.727 | CL12: -2516896.069 | CM12: -4204057.533 | CN12: -1747207.218 | CO12: -3714461.3 | CP12: -794021.8696 | CQ12: -2996448.138 | CR12: -2738043.874 | CS12: -3930789.628 | CT12: -912983.4313 | CU12: -2628425.797 | CV12: -3021340.063 | CW12: -3082000.189 | CX12: -4667576.587 | CY12: -3651104.882 | DA12: -6800247.909 | DB12: -5195289.09 | DC12: 757756.5582 | DD12: -2341511.446 | DE12: 459274.8471 | DF12: 592639.204 | DG12: -928605.3254 | DH12: 2222714.841 | DI12: -942542.1743 | DJ12: 1721746.207 | DK12: -364365.5643 | DL12: 307392.7717 | DM12: 1058935.027 | DN12: -69384.82925 | DO12: 251149.9078 | DP12: 981015.2557 | DQ12: 1426764.307 | DR12: 596671.7432 | DS12: 2729384.97
B13: Inne rynki międzynarodowe | E13: 505567376.6 | F13: 543299651.3 | G13: 505849136.6 | H13: 678183835.4 | I13: 574000000 | J13: 644300000 | K13: 586800000 | L13: 787100000 | M13: 673600000 | N13: 672600000 | O13: 686600000 | P13: 896600000 | Q13: 754600000 | R13: 749500000 | S13: 720900000 | T13: 1001500000 | U13: 818800000 | V13: 872500000 | W13: 845900000 | Y13: 54195333.47 | Z13: 56780252.08 | AA13: 52484965.61 | AB13: 85339448.83 | AC13: 54300000 | AD13: 69600000 | AE13: 58900000 | AF13: 91100000 | AG13: 76400000 | AH13: 74400000 | AI13: 88200000 | AJ13: 109300000 | AK13: 80900000 | AL13: 91700000 | AM13: 78800000 | AN13: 137200000 | AO13: 98000000 | AP13: 100700000 | AQ13: 119800000 | AS13: 56665290.94 | AT13: 58480210.02 | AU13: 54751138.63 | AV13: 87800220.51 | AW13: 56814525.93 | AX13: 72236627.2 | AY13: 61466614.83 | AZ13: 94887053.9 | BA13: 79377654.77 | BB13: 77439419.69 | BC13: 91055961.96 | BD13: 113673580.3 | BE13: 84682806.78 | BF13: 95564083.09 | BG13: 82849680.92 | BH13: 140777693.8 | BI13: 101526062.9 | BJ13: 105127005.1 | BK13: 123734093 | BM13: 42492264.87 | BN13: 48385693 | BO13: 36127999.77 | BP13: -4663144.256 | BQ13: 43133755.2 | BR13: 59333215.81 | BS13: 52325999.75 | BT13: 80654000 | BU13: 60158000 | BV13: 57530000 | BW13: 70683000 | BX13: 91242000 | BY13: 66127000 | BZ13: 73777000 | CA13: 62511000 | CB13: 112491000 | CC13: 74709000 | CD13: 94331000 | CE13: 91725000 | CG13: 29179751.04 | CH13: 34293603.05 | CI13: 22818045.52 | CJ13: -30627160.71 | CK13: 26347970.54 | CL13: 38140689.12 | CM13: 31806986.39 | CN13: 53254700.86 | CO13: 38258739.01 | CP13: 36649428.24 | CQ13: 45006931.67 | CR13: 55170796.33 | CS13: 42709607.83 | CT13: 46472119.03 | CU13: 36215566.03 | CV13: 70349163.98 | CW13: 45464962.4 | CX13: 63096145.34 | CY13: 57402141.06 | DA13: 25665995.45 | DB13: 31518280.2 | DC13: 30377365.93 | DD13: 43773525.88 | DE13: 27943842.03 | DF13: 40172958.66 | DG13: 33123653.55 | DH13: 50123545.19 | DI13: 40129677.91 | DJ13: 37927365.33 | DK13: 47944271.18 | DL13: 58076366.55 | DM13: 44888067.1 | DN13: 49158568.55 | DO13: 39403855.39 | DP13: 72247732.14 | DQ13: 48339694.25 | DR13: 51669689.57 | DS13: 59544093.25
C14: Rynek środkowoeurop. | E14: 218777000 | F14: 243308000 | G14: 221064000 | H14: 321871472 | I14: 272268722.4 | J14: 306810471.4 | K14: 278464465.4 | L14: 355493822.5 | M14: 319965093.5 | N14: 315722979.1 | O14: 295402297.3 | P14: 403211812.6 | Q14: 321336321.9 | R14: 320868428.1 | S14: 302059924.1 | T14: 387960701.3 | U14: 340717464.1 | V14: 373233179.5 | W14: 360672088.2 | Y14: 31266000 | Z14: 27516000 | AA14: 28132000 | AB14: 45617000 | AC14: 32716872 | AD14: 39714131.25 | AE14: 35683895.47 | AF14: 52965473.62 | AG14: 44882273.15 | AH14: 44591829.69 | AI14: 48198238.28 | AJ14: 60006358.04 | AK14: 46771881.42 | AL14: 49114706.08 | AM14: 36715212.03 | AN14: 73639001.47 | AO14: 53891342.7 | AP14: 52275905.41 | AQ14: 58011288.11 | AS14: 31589568.03 | AT14: 27743783.11 | AU14: 28321849.6 | AV14: 46014706.4 | AW14: 33180516.39 | AX14: 40200795.8 | AY14: 36165351.5 | AZ14: 54572172.3 | BA14: 45681274.26 | BB14: 45310689.8 | BC14: 49104832.51 | BD14: 60710351.92 | BE14: 47631086.3 | BF14: 49900938.03 | BG14: 37748302.75 | BH14: 74512451.44 | BI14: 54705824.68 | BJ14: 53077536.84 | BK14: 58822639.17 | BM14: 24550666.07 | BN14: 25136000 | BO14: 20619533.93 | BP14: 36472800 | BQ14: 24251433.6 | BR14: 30034723.65 | BS14: 28818292.01 | BT14: 49498521.03 | BU14: 35216446.06 | BV14: 35347429.92 | BW14: 37607556.94 | BX14: 50146177.79 | BY14: 36273596.54 | BZ14: 40848709.71 | CA14: 28457978.01 | CB14: 59614588.49 | CC14: 41907868.6 | CD14: 41878225.01 | CE14: 43924531.41 | CG14: 18663344.13 | CH14: 20131955.74 | CI14: 15459573 | CJ14: 23903516.43 | CK14: 15849945.54 | CL14: 20967071.34 | CM14: 19976276.55 | CN14: 35116908.49 | CO14: 25210862.51 | CP14: 25590339.96 | CQ14: 27190610.78 | CR14: 32113971.02 | CS14: 25968872.77 | CT14: 29762533.09 | CU14: 19078212.66 | CV14: 40019629.22 | CW14: 30714883.92 | CX14: 30430430.96 | CY14: 31616239.03 | DA14: 19187853.96 | DB14: 16322407.79 | DC14: 15690305.07 | DD14: 24086361.35 | DE14: 16032404.27 | DF14: 21540272.06 | DG14: 20238713.94 | DH14: 29359731.06 | DI14: 25731806.89 | DJ14: 26231760.72 | DK14: 27823519.03 | DL14: 32453269.17 | DM14: 26533957.42 | DN14: 30236823.91 | DO14: 19748579.7 | DP14: 40572497.04 | DQ14: 31223641.3 | DR14: 30965036.3 | DS14: 32102095.91
C15: Rynek południowo-wschodniej Europy | E15: 133205000 | F15: 149616000 | G15: 127810000 | H15: 160228000 | I15: 156138451.2 | J15: 183755656.2 | K15: 173909809.4 | L15: 261490760.7 | M15: 187076182.9 | N15: 198384469.2 | O15: 228834687 | P15: 275797340.8 | Q15: 231335950 | R15: 233791721.2 | S15: 227324204 | T15: 335951306.6 | U15: 253111456 | V15: 272982089.7 | W15: 264945591.6 | Y15: 12844000 | Z15: 17886000 | AA15: 13321000 | AB15: 21815000 | AC15: 13409180 | AD15: 18823988.5 | AE15: 19447109.62 | AF15: 26719237.8 | AG15: 21364359.67 | AH15: 22562279.15 | AI15: 29345537.8 | AJ15: 34327249.76 | AK15: 27916293.55 | AL15: 35207192.7 | AM15: 36325365.14 | AN15: 44057716.18 | AO15: 38369063.2 | AP15: 41356410.55 | AQ15: 47005076.16 | AS15: 12844000 | AT15: 17886000 | AU15: 13901000 | AV15: 22406632.05 | AW15: 14482315.94 | AX15: 19938634.15 | AY15: 20559389.61 | AZ15: 27891700.41 | BA15: 22537320.33 | BB15: 23881732.13 | BC15: 30130583.69 | BD15: 35599991.17 | BE15: 29226465.57 | BF15: 36634154.97 | BG15: 37705792.12 | BH15: 45085429.28 | BI15: 39398111.29 | BJ15: 43158451.55 | BK15: 48090561.1 | BM15: 10152000 | BN15: 15234168.4 | BO15: 11161031.6 | BP15: 18127800 | BQ15: 11557975.2 | BR15: 16113672.65 | BS15: 18805958.24 | BT15: 21352211.92 | BU15: 18348450.36 | BV15: 18238050.73 | BW15: 24661683.6 | BX15: 27863465.66 | BY15: 23291420.98 | BZ15: 27245562.77 | CA15: 30902908.67 | CB15: 35134195.44 | CC15: 32215016.6 | CD15: 34173617.22 | CE15: 38771146.61 | CG15: 5579378.8 | CH15: 8241858.602 | CI15: 5643834.332 | CJ15: 9196096.899 | CK15: 5872741.388 | CL15: 8281768.204 | CM15: 9586954.823 | CN15: 10991226.86 | CO15: 9169111.275 | CP15: 9098016.095 | CQ15: 12520556.83 | CR15: 14260492.27 | CS15: 11909097.48 | CT15: 13625999.34 | CU15: 15770608.02 | CV15: 17610676.86 | CW15: 16076472.43 | CX15: 16779896.49 | CY15: 19263078.25 | DA15: 5579378.8 | DB15: 8551690.2 | DC15: 5939982.332 | DD15: 9522647.489 | DE15: 6432126.532 | DF15: 8862682.555 | DG15: 10166609.33 | DH15: 11597289.72 | DI15: 9839457.837 | DJ15: 8643000.659 | DK15: 12924768.84 | DL15: 15104052.18 | DM15: 12289246.44 | DN15: 14634385.63 | DO15: 17098407.24 | DP15: 18012300.26 | DQ15: 17258481.34 | DR15: 17797432.67 | DS15: 19599876.17
B16: Rynek zachodniooeuropejski | E16: 146300200.6 | F16: 149689914.3 | G16: 154846208.4 | H16: 187328270 | I16: 144236434 | J16: 155543111.3 | K16: 131496770.3 | L16: 168886672.8 | M16: 163936458.3 | N16: 156649012.5 | O16: 161073405.5 | P16: 214516797 | Q16: 199581427.9 | R16: 191434405.1 | S16: 189361860.9 | T16: 274425201 | U16: 223978034.8 | V16: 223594129.4 | W16: 216830309.2 | Y16: 13440062.4 | Z16: 12195556.53 | AA16: 10209415.45 | AB16: 16115765.61 | AC16: 11132100.8 | AD16: 13227148.75 | AE16: 6120649.518 | AF16: 14635022.73 | AG16: 12773330.23 | AH16: 10223366.66 | AI16: 14836708.45 | AJ16: 16498255.96 | AK16: 8996959.802 | AL16: 10526775.2 | AM16: 8608496.944 | AN16: 21772529.73 | AO16: 8572687.5 | AP16: 12735335.66 | AQ16: 17475600.4 | AS16: 14941120.8 | AT16: 13667731.36 | AU16: 11705738.86 | AV16: 17587198.84 | AW16: 12109846.4 | AX16: 14233465.75 | AY16: 7122528.334 | AZ16: 15642915.34 | BA16: 13779023.23 | BB16: 11224473.25 | BC16: 16001030.3 | BD16: 18872100.98 | BE16: 10610389.68 | BF16: 12177664.07 | BG16: 10244660.16 | BH16: 23449060.46 | BI16: 10255220.3 | BJ16: 14558668.38 | BK16: 19512857.38 | BM16: 6135062.4 | BN16: 8633556.533 | BO16: 10232415.45 | BP16: -3351234.386 | BQ16: 11382232 | BR16: 15062699.4 | BS16: 5953954.835 | BT16: 13403554.39 | BU16: 11053027.25 | BV16: 8177801.134 | BW16: 13331893.06 | BX16: 12032879.7 | BY16: 11300603.55 | BZ16: 8893760.198 | CA16: 6871580.186 | CB16: 19111843.88 | CC16: 6355219 | CD16: 9164260.947 | CE16: 12141430.7 | CG16: 2813831.965 | CH16: 6119503.069 | CI16: 7508676.626 | CJ16: -7220401.893 | CK16: 8209680.37 | CL16: 11167388.33 | CM16: 3747467.25 | CN16: 10211690.13 | CO16: 8123681.372 | CP16: 6242363.181 | CQ16: 10160598.87 | CR16: 8243553.298 | CS16: 9789450.703 | CT16: 6521545.915 | CU16: 5141688.315 | CV16: 13885890.93 | CW16: 4610442.458 | CX16: 6672156.806 | CY16: 9811258.809 | DA16: 3606767.023 | DB16: 6896847.074 | DC16: 8298942.69 | DD16: 8874817.556 | DE16: 8745739.173 | DF16: 11725819.86 | DG16: 4290049.163 | DH16: 11022319.81 | DI16: 8788788.328 | DJ16: 6797418.581 | DK16: 11161881.21 | DL16: 9618873.259 | DM16: 10690157.82 | DN16: 7427450.469 | DO16: 6057132.21 | DP16: 14554647.81 | DQ16: 5515261.048 | DR16: 7327980.393 | DS16: 11163628.34
B17: Pozostałe | E17: 7285175.98 | F17: 685737.01 | G17: 2128928.25 | H17: 8756093.479 | I17: 1356392.4 | J17: -1809238.95 | K17: 2928954.91 | L17: 1228744.002 | M17: 2622265.204 | N17: 1843539.159 | O17: 1289610.209 | P17: 3074049.581 | Q17: 2346300.151 | R17: 3405445.539 | S17: 2154011.045 | T17: 3162791.025 | U17: 993045.1 | V17: 2690601.412 | W17: 3452010.933 | X17: 0 | Y17: -3354728.93 | Z17: -817304.45 | AA17: 822550.16 | AB17: 1791683.22 | AC17: -2958152.8 | AD17: -2165268.5 | AE17: -2351654.605 | AF17: -3219734.151 | AG17: -2619963.054 | AH17: -2977475.497 | AI17: -4180484.535 | AJ17: -1531863.761 | AK17: -2785134.768 | AL17: -3148673.982 | AM17: -2849074.109 | AN17: -2269247.381 | AO17: -2833093.4 | AP17: -5667651.619 | AQ17: -2691964.674 | AR17: 0 | AS17: -2709397.88 | AT17: -817304.45 | AU17: 822550.16 | AV17: 1791683.22 | AW17: -2958152.8 | AX17: -2136268.5 | AY17: -2380654.605 | AZ17: -3219734.151 | BA17: -2619963.054 | BB17: -2977475.497 | BC17: -4180484.535 | BD17: -1508863.761 | BE17: -2785134.768 | BF17: -3148673.982 | BG17: -2849074.109 | BH17: -2269247.381 | BI17: -2833093.4 | BJ17: -5667651.619 | BK17: -2691964.674 | BL17: 0 | BM17: 1654536.393 | BN17: -618031.9333 | BO17: -5884981.209 | BP17: -55912509.87 | BQ17: -4057885.6 | BR17: -1877879.89 | BS17: -1252205.33 | BT17: -3600287.344 | BU17: -4459923.666 | BV17: -4233281.785 | BW17: -4918133.592 | BX17: 1199476.848 | BY17: -4738621.071 | BZ17: -3211032.679 | CA17: -3721466.863 | CB17: -1369627.812 | CC17: -5769104.2 | CD17: 9114896.819 | CE17: -3112108.72 | CF17: 0 | CG17: 2123196.147 | CH17: -199714.3598 | CI17: -5794038.433 | CJ17: -56506372.15 | CK17: -3584396.751 | CL17: -2275538.759 | CM17: -1503712.234 | CN17: -3065124.616 | CO17: -4244916.146 | CP17: -4281291.001 | CQ17: -4864834.802 | CR17: 552779.7394 | CS17: -4957813.126 | CT17: -3437959.312 | CU17: -3774942.959 | CV17: -1167033.03 | CW17: -5936836.409 | CX17: 9213661.094 | CY17: -3288435.022 | CZ17: 0 | DA17: -2708004.335 | DB17: -252664.8677 | DC17: 448135.8427 | DD17: 1289699.484 | DE17: -3266427.943 | DF17: -1955815.813 | DG17: -1571718.886 | DH17: -1855795.396 | DI17: -4230375.151 | DJ17: -3744814.637 | DK17: -3965897.9 | DL17: 900171.9431 | DM17: -4625294.585 | DN17: -3140091.457 | DO17: -3500263.749 | DP17: -891712.9816 | DQ17: -5657689.446 | DR17: -4420759.799 | DS17: -3321507.168
B18: Korekta konsolidacyjna | E18: -11501757.48 | F18: -12291773.34 | G18: -4374168.98 | H18: -14032300.2 | I18: -5100000 | J18: -8400000 | K18: -4400000 | L18: -7200000 | M18: -6100000 | N18: -6200000 | O18: -6900000 | P18: -9500000 | Q18: -7400000 | R18: -7000000 | S18: -7300000 | T18: -11300000 | U18: -6400000 | V18: -10900000 | W18: -7000000 | Y18: -1268101.906 | Z18: 527302.75 | AA18: 300374.1217 | AB18: -1359574.966 | AC18: 400000 | AD18: -300000 | AE18: 1300000 | AF18: -300000 | AG18: -3.278255463e-07 | AH18: 1000000 | AI18: -300000 | AJ18: -200000 | AK18: -700000 | AL18: -600000 | AM18: 1000000 | AN18: -2700000 | AO18: -500000 | AP18: -2500000 | AQ18: 300000 | AS18: -1259601.906 | AT18: 518802.75 | AU18: 300374.1217 | AV18: -1359574.966 | AW18: 400000 | AX18: -300000 | AY18: 1300000 | AZ18: -300000 | BA18: -3.278255463e-07 | BB18: 1000000 | BC18: -300000 | BD18: -232000 | BE18: -700000 | BF18: -600000 | BG18: 1044874.552 | BH18: -2718000 | BI18: -500000 | BJ18: -2500000 | BK18: 258787.9064 | BM18: -29136569.2 | BN18: 28234121.26 | BO18: 227873.8094 | BP18: -1303239.253 | BQ18: 392579.7379 | BR18: -351579.7379 | BS18: 1398000 | BT18: -317000 | BU18: 33000 | BV18: 1117000 | BW18: -255000 | BX18: -33000 | BY18: -565000 | BZ18: -409000 | CA18: 1221000 | CB18: -2723000 | CC18: -406000 | CD18: -2440000 | CE18: 472000 | CG18: -1326295.425 | CH18: 59319.11303 | CI18: 1154213.98 | CJ18: -1496645.551 | CK18: 361182.1349 | CL18: -169988.1126 | CM18: 1470453.748 | CN18: -147797.8049 | CO18: 113905.2298 | CP18: 1035195.181 | CQ18: -217880.0745 | CR18: -129827.8369 | CS18: -528920.3551 | CT18: -309235.3467 | CU18: 926309.8955 | CV18: -2555744.43 | CW18: -390035.8802 | CX18: -2569500.883 | CY18: 586431.5639 | DA18: -1326295.425 | DB18: 59319.11303 | DC18: 1154213.98 | DD18: -1496645.551 | DE18: 361182.1349 | DF18: -169988.1126 | DG18: 1470453.748 | DH18: -147797.8049 | DI18: 69713.37019 | DJ18: 1035195.181 | DK18: -217880.0745 | DL18: -85635.97731 | DM18: -528920.3551 | DN18: -309235.3467 | DO18: 956077.3593 | DP18: -2553744.43 | DQ18: -390035.8802 | DR18: -2569500.883 | DS18: 584087.2877
B19: Grupa Asseco | E19: 2068300000 | F19: 2093700000 | G19: 2124246625 | H19: 2411554734 | I19: 2149000000 | J19: 2310900000 | K19: 2218400000 | L19: 2650300000 | M19: 2452200000 | N19: 2538700000 | O19: 2738400000 | P19: 2938100000 | Q19: 2920400000 | R19: 2850300000 | S19: 2938100000 | T19: 3483000000 | U19: 3339100000 | V19: 3451900000 | W19: 3502100000 | Y19: 165200000 | Z19: 144000000 | AA19: 144399154.6 | AB19: 158322219.8 | AC19: 167300000 | AD19: 203800000 | AE19: 187600000 | AF19: 238100000 | AG19: 224700000 | AH19: 228900000 | AI19: 261100000 | AJ19: 259900000 | AK19: 249800000 | AL19: 303700000 | AM19: 299000000 | AN19: 362500000 | AO19: 323000000 | AP19: 349000000 | AQ19: 373000000 | AS19: 197949774.2 | AT19: 175156447.6 | AU19: 208631457.2 | AV19: 236969648.9 | AW19: 235333201.8 | AX19: 264407987 | AY19: 246494752.6 | AZ19: 302238009.8 | BA19: 280652875 | BB19: 284038461 | BC19: 320823252.5 | BD19: 318836813.8 | BE19: 316410238.9 | BF19: 358484847.1 | BG19: 362004914.1 | BH19: 441939496.2 | BI19: 398651313.4 | BJ19: 427334271.5 | BK19: 457014415.1 | BM19: 97000000 | BN19: 84800000 | BO19: 81771936.33 | BP19: 351160653.7 | BQ19: 116600000 | BR19: 151400000 | BS19: 141300000 | BT19: 184400000 | BU19: 157200000 | BV19: 169400000 | BW19: 181500000 | BX19: 194200000 | BY19: 176400000 | BZ19: 211600000 | CA19: 207500000 | CB19: 272100000 | CC19: 233200000 | CD19: 269200000 | CE19: 264000000 | CG19: 60900113.92 | CH19: 52399886.08 | CI19: 45574255.88 | CJ19: 307720937.1 | CK19: 68900000 | CL19: 88400000 | CM19: 78000000 | CN19: 98000000 | CO19: 79600000 | CP19: 80100000 | CQ19: 78500000 | CR19: 83700000 | CS19: 81700000 | CT19: 95100000 | CU19: 90700000 | CV19: 134200000 | CW19: 102400000 | CX19: 139400000 | CY19: 120400000 | DA19: 67527224.16 | DB19: 59201638.97 | DC19: 64410270.48 | DD19: 74168848.38 | DE19: 81170041.63 | DF19: 100121853.3 | DG19: 88291603.33 | DH19: 101831383.4 | DI19: 89573223.7 | DJ19: 90316463.23 | DK19: 90325408.63 | DL19: 96014470.82 | DM19: 94650530.83 | DN19: 106085237.4 | DO19: 102364231.7 | DP19: 151150917.5 | DQ19: 116266813.2 | DR19: 133117703.8 | DS19: 136815483

Sheet company results
E1: Sales revenues | Y1: Operating profit | AS1: Operating profit non-IFRS | BM1: Net profit 100% | CG1: Contribution to net profit of ACP | DA1: Contribution to net profit non-IFRS of ACP
E2: Q1 2017 | F2: Q2 2017 | G2: Q3 2017 PF | H2: Q4 2017 PF | I2: Q1 2018 | J2: Q2 2018 | K2: Q3 2018 | L2: Q4 2018 | M2: Q1 2019 | N2: Q2 2019 | O2: Q3 2019 | P2: Q4 2019 | Q2: Q1 2020 | R2: Q2 2020 | S2: Q3 2020 | T2: Q4 2020 | U2: Q1 2021 | V2: Q2 2021 | W2: Q3 2021 | Y2: Q1 2017 | Z2: Q2 2017 | AA2: Q3 2017 PF | AB2: Q4 2017 PF | AC2: Q1 2018 | AD2: Q2 2018 | AE2: Q3 2018 | AF2: Q4 2018 | AG2: Q1 2019 | AH2: Q2 2019 | AI2: Q3 2019 | AJ2: Q4 2019 | AK2: Q1 2020 | AL2: Q2 2020 | AM2: Q3 2020 | AN2: Q4 2020 | AO2: Q1 2021 | AP2: Q2 2021 | AQ2: Q3 2021 | AS2: Q1 2017 | AT2: Q2 2017 | AU2: Q3 2017 PF | AV2: Q4 2017 PF | AW2: Q1 2018 | AX2: Q2 2018 | AY2: Q3 2018 | AZ2: Q4 2018 | BA2: Q1 2019 | BB2: Q2 2019 | BC2: Q3 2019 | BD2: Q4 2019 | BE2: Q1 2020 | BF2: Q2 2020 | BG2: Q3 2020 | BH2: Q4 2020 | BI2: Q1 2021 | BJ2: Q2 2021 | BK2: Q3 2021 | BM2: Q1 2017 | BN2: Q2 2017 | BO2: Q3 2017 PF | BP2: Q4 2017 PF | BQ2: Q1 2018 | BR2: Q2 2018 | BS2: Q3 2018 | BT2: Q4 2018 | BU2: Q1 2019 | BV2: Q2 2019 | BW2: Q3 2019 | BX2: Q4 2019 | BY2: Q1 2020 | BZ2: Q2 2020 | CA2: Q3 2020 | CB2: Q4 2020 | CC2: Q1 2021 | CD2: Q2 2021 | CE2: Q3 2021 | CG2: Q1 2017 | CH2: Q2 2017 | CI2: Q3 2017 PF | CJ2: Q4 2017 PF | CK2: Q1 2018 | CL2: Q2 2018 | CM2: Q3 2018 | CN2: Q4 2018 | CO2: Q1 2019 | CP2: Q2 2019 | CQ2: Q3 2019 | CR2: Q4 2019 | CS2: Q1 2020 | CT2: Q2 2020 | CU2: Q3 2020 | CV2: Q4 2020 | CW2: Q1 2021 | CX2: Q2 2021 | CY2: Q3 2021 | DA2: Q1 2017 | DB2: Q2 2017 | DC2: Q3 2017 PF | DD2: Q4 2017 PF | DE2: Q1 2018 | DF2: Q2 2018 | DG2: Q3 2018 | DH2: Q4 2018 | DI2: Q1 2019 | DJ2: Q2 2019 | DK2: Q3 2019 | DL2: Q4 2019 | DM2: Q1 2020 | DN2: Q2 2020 | DO2: Q3 2020 | DP2: Q4 2020 | DQ2: Q1 2021 | DR2: Q2 2021 | DS2: Q3 2021
B3: Asseco Poland Segment | E3: 309516599.5 | F3: 315459007.2 | G3: 316876448.7 | H3: 403847944.7 | I3: 316300000 | J3: 352100000 | K3: 308200000 | L3: 382200000 | M3: 298600000 | N3: 305100000 | O3: 290100000 | P3: 318500000 | Q3: 310700000 | R3: 332000000 | S3: 365500000 | T3: 428700000 | U3: 366800000 | V3: 384300000 | W3: 372400000 | Y3: 39548957.47 | Z3: 31800597.66 | AA3: 35960657.83 | AB3: 45189787.04 | AC3: 55800000 | AD3: 64700000 | AE3: 52600000 | AF3: 47600000 | AG3: 43300000 | AH3: 44100000 | AI3: 38200000 | AJ3: 27500000 | AK3: 42700000 | AL3: 52100000 | AM3: 60200000 | AN3: 59800000 | AO3: 59000000 | AP3: 78300000 | AQ3: 70000000 | AS3: 44062957.47 | AT3: 36309597.66 | AU3: 40471657.83 | AV3: 49697787.04 | AW3: 60015000 | AX3: 68917000 | AY3: 57201888.89 | AZ3: 52401611.11 | BA3: 46963000 | BB3: 48868000 | BC3: 42415000 | BD3: 31551000 | BE3: 46715000 | BF3: 56206000 | BG3: 64245896.34 | BH3: 68049500 | BI3: 62792000 | BJ3: 82092000 | BK3: 73792000 | BM3: 61188493.37 | BN3: -7064661.769 | BO3: 21429629.69 | BP3: -55737461.29 | BQ3: 40102344 | BR3: 47387684.99 | BS3: 42641000.25 | BT3: 38170000 | BU3: 36046000 | BV3: 35529000 | BW3: 25786000 | BX3: 20997000 | BY3: 32498000 | BZ3: 39809000 | CA3: 44183000 | CB3: 55249000 | CC3: 45856000 | CD3: 69866000 | CE3: 51449000 | CG3: 32692050.16 | CH3: 18452194.74 | CI3: 17264902.86 | CJ3: -61329708.7 | CK3: 38838820.02 | CL3: 45274107.62 | CM3: 40449367.94 | CN3: 37024006.86 | CO3: 35275148.13 | CP3: 33558061.85 | CQ3: 24904693.43 | CR3: 20001920.55 | CS3: 32130028.11 | CT3: 37069971.89 | CU3: 42982204.68 | CV3: 55734100.92 | CW3: 45948986.6 | CX3: 68638900.73 | CY3: 50523636.59 | DA3: 36515879.33 | DB3: 21823327.26 | DC3: 20942396.14 | DD3: 23927950.23 | DE3: 42233927.18 | DF3: 48799776.92 | DG3: 43380577.79 | DH3: 37137603.95 | DI3: 38245108.59 | DJ3: 37655121.85 | DK3: 28268693.43 | DL3: 23305010.09 | DM3: 35382028.11 | DN3: 40411412.03 | DO3: 46265011.02 | DP3: 62452550.92 | DQ3: 49019986.6 | DR3: 64631179.23 | DS3: 55326836.59
B4: Asseco Poland (without dividends) | E4: 202880000 | F4: 196326000 | G4: 202853000 | H4: 259176000 | I4: 205373000 | J4: 225425000 | K4: 210982000 | L4: 251505000 | M4: 195051000 | N4: 210024000 | O4: 191685000 | P4: 208784000 | Q4: 203854000 | R4: 226591000 | S4: 261223000 | T4: 305204000 | U4: 261578000 | V4: 268176000 | W4: 263503000 | Y4: 31517000 | Z4: 22093000 | AA4: 32430000 | AB4: 34655000 | AC4: 46308000 | AD4: 43215000 | AE4: 47506000 | AF4: 44687000 | AG4: 29061000 | AH4: 31933000 | AI4: 28117000 | AJ4: 20223000 | AK4: 31374000 | AL4: 34011000 | AM4: 43893000 | AN4: 48777000 | AO4: 46049000 | AP4: 56996000 | AQ4: 55925000 | AS4: 34225000 | AT4: 24801000 | AU4: 35136000 | AV4: 37363000 | AW4: 49016000 | AX4: 45922000 | AY4: 50213000 | AZ4: 47397000 | BA4: 31769000 | BB4: 34640000 | BC4: 30825000 | BD4: 22731000 | BE4: 33881000 | BF4: 36518000 | BG4: 46490000 | BH4: 55622000 | BI4: 48422000 | BJ4: 59369000 | BK4: 58299000 | BM4: 21672691.01 | BN4: 17421308.99 | BO4: -5260351.69 | BP4: -3603648.31 | BQ4: 38885000 | BR4: 30938000 | BS4: 40170000 | BT4: 36002000 | BU4: 24125000 | BV4: 28206000 | BW4: 22701000 | BX4: 16943000 | BY4: 24274000 | BZ4: 25451000 | CA4: 32927000 | CB4: 46838000 | CC4: 35587000 | CD4: 55225000 | CE4: 41537000 | CG4: 21673327.38 | CH4: 17418918.51 | CI4: 38624527.39 | CJ4: -47487118.33 | CK4: 38871445.81 | CL4: 30952157.06 | CM4: 40171489.3 | CN4: 35998889.84 | CO4: 24129251.68 | CP4: 28206840.23 | CQ4: 22699789.32 | CR4: 16940611.43 | CS4: 24274060.82 | CT4: 25451752.91 | CU4: 32926129.27 | CV4: 46837140.47 | CW4: 35586840.07 | CX4: 55226050.92 | CY4: 41533846.12 | DA4: 27375152.44 | DB4: 17497420.6 | DC4: -4545743.491 | DD4: 23711460.23 | DE4: 41021568.13 | DF4: 33205951.2 | DG4: 42381339.35 | DH4: 38193989.43 | DI4: 26319752.14 | DJ4: 29609360.23 | DK4: 24894789.32 | DL4: 18974700.97 | DM4: 26305060.82 | DN4: 27481752.91 | DO4: 35030039.27 | DP4: 52385590.47 | DQ4: 37508840.07 | DR4: 48875329.42 | DS4: 43479046.12
B5: Asseco Data Systems | C5: Asseco Data Systems PF | D5: Asseco Data Systems PF | E5: 69557000 | F5: 74634000 | G5: 84596000 | H5: 128724000 | I5: 89075000 | J5: 93260000 | K5: 76711000 | L5: 91508000 | M5: 72401000 | N5: 68301000 | O5: 60973000 | P5: 74111000 | Q5: 67693000 | R5: 66439000 | S5: 72765000 | T5: 88263000 | U5: 76813000 | V5: 80753000 | W5: 69943000 | Y5: 5752000 | Z5: 2545000 | AA5: 4173000 | AB5: -4130000 | AC5: 5623000 | AD5: 12511000 | AE5: 1308000 | AF5: 6374000 | AG5: 8989000 | AH5: 8071000 | AI5: 916000 | AJ5: 6438000 | AK5: 7319000 | AL5: 11376000 | AM5: 11071000 | AN5: 7314000 | AO5: 12926000 | AP5: 16579000 | AQ5: 7299000 | AS5: 7466000 | AT5: 4260000 | AU5: 5888000 | AV5: -2419000 | AW5: 7041000 | AX5: 13932000 | AY5: 2725000 | AZ5: 7792000 | BA5: 10407000 | BB5: 9491000 | BC5: 2334000 | BD5: 7857000 | BE5: 8738000 | BF5: 12795000 | BG5: 12489000 | BH5: 8733000 | BI5: 14345000 | BJ5: 17998000 | BK5: 8717000 | BM5: 4055000 | BN5: 2241000 | BO5: 2788000 | BP5: -5380000 | BQ5: 4471000 | BR5: 10087000 | BS5: 979000 | BT5: 3704000 | BU5: 7819000 | BV5: 6262000 | BW5: -2858000 | BX5: 4971000 | BY5: 6005000 | BZ5: 8775000 | CA5: 8988000 | CB5: 5812000 | CC5: 10334000 | CD5: 13101000 | CE5: 5777000 | CG5: 4055000 | CH5: 2241000 | CI5: 2788000 | CJ5: -5380000 | CK5: 4471000 | CL5: 10087000 | CM5: 979000 | CN5: 3704000 | CO5: 7819000 | CP5: 6262000 | CQ5: -2858000 | CR5: 4971000 | CS5: 6005000 | CT5: 8775000 | CU5: 8988000 | CV5: 5812000 | CW5: 10334000 | CX5: 13101000 | CY5: 5777839.93 | DA5: 5443340 | DB5: 3630150 | DC5: 4177150 | DD5: -3994090 | DE5: 5619580 | DF5: 11238010 | DG5: 2126770 | DH5: 4852580 | DI5: 8967580 | DJ5: 7412420 | DK5: -1710000 | DL5: 6121000 | DM5: 7154000 | DN5: 9925000 | DO5: 10136000 | DP5: 6982000 | DQ5: 11483000 | DR5: 14251000 | DS5: 6925839.93
B6: Other Companies | E6: 48913000 | F6: 56389000 | G6: 47929000 | H6: 52198000 | I6: 34999000 | J6: 43634000 | K6: 38749000 | L6: 51071000 | M6: 40260000 | N6: 40737000 | O6: 47596000 | P6: 49022000 | Q6: 49500000 | R6: 51781000 | S6: 42668000 | T6: 48345000 | U6: 34359000 | V6: 42208000 | W6: 45947000 | Y6: 4706000 | Z6: 6467000 | AA6: 2263000 | AB6: 10583000 | AC6: 4411000 | AD6: 6700000 | AE6: 7299000 | AF6: 5913000 | AG6: 4142000 | AH6: 4254000 | AI6: 8740946.064 | AJ6: 3889315.355 | AK6: 4052000 | AL6: 7494000 | AM6: 6841000 | AN6: 655000 | AO6: 998000 | AP6: 4659000 | AQ6: 7760000 | AS6: 4706000 | AT6: 6467000 | AU6: 2263000 | AV6: 10583000 | AW6: 4411000 | AX6: 6700000 | AY6: 7299000 | AZ6: 5913000 | BA6: 4142000 | BB6: 4254000 | BC6: 8740946.064 | BD6: 3889315.355 | BE6: 4052000 | BF6: 7494000 | BG6: 6841000 | BH6: 655000 | BI6: 998000 | BJ6: 4659000 | BK6: 7760000 | BM6: 3148000 | BN6: 4220000 | BO6: 1226000 | BP6: 8398000 | BQ6: 2511000 | BR6: 4613000 | BS6: 5748000 | BT6: 4852000 | BU6: 3036000 | BV6: 2179000 | BW6: 5898946.064 | BX6: 2593315.355 | BY6: 2547000 | BZ6: 5680000 | CA6: 3883000 | CB6: -430000 | CC6: 701000 | CD6: 4511000 | CE6: 4864000 | CG6: 2715513.873 | CH6: 1568977.039 | CI6: -2364679.038 | CJ6: 2198452.11 | CK6: 1166531.266 | CL6: 2583968.304 | CM6: 3189981.882 | CN6: 3770773.463 | CO6: 2230132.103 | CP6: 241995.3038 | CQ6: 5061823.822 | CR6: 1532753.871 | CS6: 2179162.938 | CT6: 2898918.504 | CU6: 2734331.405 | CV6: 39920.11266 | CW6: 813824.0042 | CX6: 3248851.808 | CY6: 3901457.32 | DA6: 2715513.873 | DB6: 1568977.039 | DC6: -2364679.038 | DD6: 2198452.11 | DE6: 1166531.266 | DF6: 2583968.304 | DG6: 3189981.882 | DH6: 3795883.463 | DI6: 2230132.103 | DJ6: 241995.3038 | DK6: 5061823.822 | DL6: 1534753.871 | DM6: 2179162.938 | DN6: 2898918.504 | DO6: 2734331.405 | DP6: 39920.11266 | DQ6: 813824.0042 | DR6: 3248851.808 | DS6: 3901457.32
D7: Consolidation adjustment | E7: -11833400.51 | F7: -11889992.82 | G7: -18501551.33 | H7: -36250055.34 | I7: -13147000 | J7: -10219000 | K7: -18242000 | L7: -11884000 | M7: -9112000 | N7: -13962000 | O7: -10154000 | P7: -13417000 | Q7: -10347000 | R7: -12811000 | S7: -11156000 | T7: -13112000 | U7: -5950000 | V7: -6837000 | W7: -6993000 | Y7: -2426042.526 | Z7: 695597.6591 | AA7: -2905342.17 | AB7: 4081787.037 | AC7: -542000 | AD7: 2274000 | AE7: -3513000 | AF7: -9374000 | AG7: 1108000 | AH7: -158000 | AI7: 426053.9356 | AJ7: -3050315.355 | AK7: -45000 | AL7: -781000 | AM7: -1605000 | AN7: 3054000 | AO7: -973000 | AP7: 66000 | AQ7: -984000 | AS7: -2334042.526 | AT7: 781597.6591 | AU7: -2815342.17 | AV7: 4170787.037 | AW7: -453000 | AX7: 2363000 | AY7: -3035111.111 | AZ7: -8700388.889 | BA7: 645000 | BB7: 483000 | BC7: 515053.9356 | BD7: -2926315.355 | BE7: 44000 | BF7: -601000 | BG7: -1574103.661 | BH7: 3039500 | BI7: -973000 | BJ7: 66000 | BK7: -984000 | BM7: 32312493.37 | BN7: -30946661.77 | BO7: 22675981.38 | BP7: -55151812.98 | BQ7: -5764656 | BR7: 1749684.99 | BS7: -4255999.75 | BT7: -6388000 | BU7: 1066000 | BV7: -1118000 | BW7: 44053.93556 | BX7: -3510315.355 | BY7: -328000 | BZ7: -97000 | CA7: -1615000 | CB7: 3029000 | CC7: -766000 | CD7: -2971000 | CE7: -729000 | CG7: 4248208.905 | CH7: -2776202.82 | CI7: -21783856.15 | CJ7: -10660629.81 | CK7: -5670157.058 | CL7: 1650982.252 | CM7: -3891103.24 | CN7: -6449656.442 | CO7: 1096764.348 | CP7: -1152773.682 | CQ7: 1080.283389 | CR7: -3442444.747 | CS7: -328195.6522 | CT7: -55699.51893 | CU7: -1666255.993 | CV7: 3045040.337 | CW7: -785677.47 | CX7: -2937002 | CY7: -689506.78 | DA7: 981873.0113 | DB7: -872722.3913 | DC7: 23674758.01 | DD7: 2012540.561 | DE7: -5573752.22 | DF7: 1771847.41 | DG7: -4317513.442 | DH7: -9704848.942 | DI7: 727644.3478 | DJ7: 391346.3178 | DK7: 22080.28339 | DL7: -3325444.747 | DM7: -256195.6522 | DN7: 105740.6115 | DO7: -1635359.654 | DP7: 3045040.337 | DQ7: -785677.47 | DR7: -1744002 | DS7: 1020493.22
B8: Formula Systems Segment | E8: 1264717781 | F8: 1247233115 | G8: 1305895209 | H8: 1343555254 | I8: 1263800000 | J8: 1322900000 | K8: 1327800000 | L8: 1488200000 | M8: 1486100000 | N8: 1567200000 | O8: 1768600000 | P8: 1732500000 | Q8: 1862500000 | R8: 1775800000 | S8: 1859000000 | T8: 2064100000 | U8: 2159900000 | V8: 2206000000 | W8: 2290800000 | Y8: 72723810.96 | Z8: 54891847.51 | AA8: 55653157.08 | AB8: 29152558.92 | AC8: 56800000 | AD8: 69800000 | AE8: 74800000 | AF8: 99700000 | AG8: 105000000 | AH8: 109400000 | AI8: 135000000 | AJ8: 123300000 | AK8: 126900000 | AL8: 160500000 | AM8: 159000000 | AN8: 168200000 | AO8: 166500000 | AP8: 172500000 | AQ8: 182900000 | AS8: 98481127.66 | AT8: 79847837.16 | AU8: 113108286.6 | AV8: 100831216.3 | AW8: 118103675.9 | AX8: 123554359.8 | AY8: 126526248.9 | AZ8: 155249344.8 | BA8: 154312220.2 | BB8: 156731041.3 | BC8: 187652290.6 | BD8: 173844233.5 | BE8: 185712432.1 | BF8: 207314764 | BG8: 213864462.3 | BH8: 235830302.4 | BI8: 234833250.6 | BJ8: 242615266.3 | BK8: 259229534.2 | BM8: 22455810.96 | BN8: 15244847.51 | BO8: 23986433.06 | BP8: 412864498.5 | BQ8: 32971321.06 | BR8: 45030678.94 | BS8: 44935000 | BT8: 65893000 | BU8: 60963000 | BV8: 75224000 | BW8: 85286000 | BX8: 81994000 | BY8: 78340000 | BZ8: 98423000 | CA8: 99585000 | CB8: 107083000 | CC8: 113041000 | CD8: 107443000 | CE8: 120354000 | CG8: 354608.1468 | CH8: -405230.8236 | CI8: 4337093.51 | CJ8: 401174452 | CK8: 3352027.306 | CL8: 5155191.379 | CM8: 4273191.918 | CN8: 7869090.088 | CO8: 5952207.628 | CP8: 8857314.729 | CQ8: 8806254.977 | CR8: 8657110.955 | CS8: 7389284.423 | CT8: 11867144.42 | CU8: 10575919.39 | CV8: 10672479.53 | CW8: 11376086.88 | CX8: 10234454.81 | CY8: 11887790.78 | DA8: 6671644.808 | DB8: 5800712.403 | DC8: 11936294.42 | DD8: 7964017.823 | DE8: 10631090.3 | DF8: 11319105.83 | DG8: 10316918.24 | DH8: 14718032.06 | DI8: 11128723.83 | DJ8: 13698780.87 | DK8: 14330324.1 | DL8: 14718730.15 | DM8: 14909355.98 | DN8: 16824492.22 | DO8: 15739287.95 | DP8: 19004378.88 | DQ8: 19297168.22 | DR8: 19386335.88 | DS8: 21360465.88
B9: Matrix IT | E9: 760222000 | F9: 707844000 | G9: 758484450 | H9: 798284035.3 | I9: 759908192 | J9: 773974079.7 | K9: 765809682.8 | L9: 885310052 | M9: 888804243.2 | N9: 935449905.1 | O9: 1066891860 | P9: 998489337.6 | Q9: 1112976989 | R9: 995774161.7 | S9: 1080977636 | T9: 1206625081 | U9: 1280654956 | V9: 1227244011 | W9: 1241272304 | Y9: 53017000 | Z9: 43328000 | AA9: 55766101.15 | AB9: 55523719.11 | AC9: 52733426.52 | AD9: 53170361.63 | AE9: 50707810.65 | AF9: 69334136.72 | AG9: 62884255.45 | AH9: 63016636.19 | AI9: 75943784.22 | AJ9: 72032917.69 | AK9: 77710252.65 | AL9: 76841471.94 | AM9: 80939794.24 | AN9: 91810593.72 | AO9: 93996137.46 | AP9: 94925938.88 | AQ9: 90435860.17 | AS9: 57122191.84 | AT9: 46437246.78 | AU9: 58103931.17 | AV9: 57643352.36 | AW9: 56373425.07 | AX9: 57451517.06 | AY9: 54447627.93 | AZ9: 74626498.96 | BA9: 69610473.66 | BB9: 69441391.73 | BC9: 83105410.71 | BD9: 78414439.92 | BE9: 84147717.86 | BF9: 83296847.44 | BG9: 88921494.54 | BH9: 99774329.96 | BI9: 100722028.6 | BJ9: 101869360 | BK9: 97972017.27 | BM9: 30833000 | BN9: 25706000 | BO9: 35640584.35 | BP9: 41719555.51 | BQ9: 34345845.84 | BR9: 34687108.95 | BS9: 31351500.5 | BT9: 44622358.29 | BU9: 39895166.82 | BV9: 39682481.85 | BW9: 49026859.63 | BX9: 51907383.71 | BY9: 49169004.41 | BZ9: 48342710.25 | CA9: 50133264.49 | CB9: 70052743.33 | CC9: 63608386.86 | CD9: 63059403.19 | CE9: 58052591.55 | CG9: 7095356.749 | CH9: 5541517.16 | CI9: 5626038.265 | CJ9: 5346883.021 | CK9: 4339318.363 | CL9: 4293513.774 | CM9: 3876789.904 | CN9: 5498629.268 | CO9: 4814369.379 | CP9: 4662835.157 | CQ9: 5763528.203 | CR9: 6185929.06 | CS9: 5636167.369 | CT9: 5679315.75 | CU9: 5729241.496 | CV9: 7649250.548 | CW9: 7022687.642 | CX9: 7161252.517 | CY9: 6569507.871 | DA9: 8188853.931 | DB9: 6830239.689 | DC9: 6048806.943 | DD9: 4831332.076 | DE9: 5025176.544 | DF9: 5310002.299 | DG9: 4841869.986 | DH9: 6562281.789 | DI9: 5602516.477 | DJ9: 5514801.167 | DK9: 6683084.843 | DL9: 6831457.202 | DM9: 6073807.565 | DN9: 6682624.093 | DO9: 6207042.2 | DP9: 7684270.064 | DQ9: 7454310.273 | DR9: 7968537.811 | DS9: 6886826.841
B10: Magic Software | E10: 244404000 | F10: 247476000 | G10: 246088914.1 | H10: 245359832 | I10: 236243311.3 | J10: 256256989 | K10: 264383788.9 | L10: 273324710 | M10: 271624575 | N10: 293085764 | O10: 337158171.4 | P10: 349840772.1 | Q10: 339162772.2 | R10: 351437968.4 | S10: 358384043.3 | T10: 400349858.8 | U10: 409106054.1 | V10: 447225987.4 | W10: 469704729.6 | Y10: 25501000 | Z10: 26584000 | AA10: 23941604.09 | AB10: 24182734.45 | AC10: 25638257.42 | AD10: 29089081.48 | AE10: 28269706.46 | AF10: 31698428.13 | AG10: 31735307.65 | AH10: 30437457 | AI10: 35671641.79 | AJ10: 33826256.86 | AK10: 34714809.62 | AL10: 42058373.51 | AM10: 42898448.78 | AN10: 48782010.65 | AO10: 47152485.78 | AP10: 48499714.4 | AQ10: 49904390.95 | AS10: 33754896.47 | AT10: 33822123.53 | AU10: 31650424.87 | AV10: 31355727.02 | AW10: 31808108.98 | AX10: 35658794.38 | AY10: 35465706.83 | AZ10: 38183396.74 | BA10: 37844798.87 | BB10: 37852031.07 | BC10: 45460698.05 | BD10: 43709487.52 | BE10: 41327344.35 | BF10: 49540962.5 | BG10: 51673798.69 | BH10: 57495374.83 | BI10: 56444198.23 | BJ10: 56897703.17 | BK10: 58706943.78 | BM10: 19559000 | BN10: 18282000 | BO10: 15594956.57 | BP10: 14870521.45 | BQ10: 19614097.03 | BR10: 24685802.79 | BS10: 22487454.28 | BT10: 22962035.05 | BU10: 24698989.58 | BV10: 23065808.74 | BW10: 25986436.52 | BX10: 22854916.56 | BY10: 27950629.57 | BZ10: 27243542.48 | CA10: 31212389.42 | CB10: 28523623.47 | CC10: 33617163.99 | CD10: 34176971 | CE10: 34051573.2 | CG10: 3754409.564 | CH10: 3522397.511 | CI10: 1774636.64 | CJ10: 1765278.34 | CK10: 1923780.68 | CL10: 2569075.479 | CM10: 2250208.041 | CN10: 2055315.533 | CO10: 2363685.408 | CP10: 2057419.928 | CQ10: 2289718.732 | CR10: 2062692.374 | CS10: 2586290.328 | CT10: 2744020.4 | CU10: 3052885.832 | CV10: 2744059.384 | CW10: 3363294.589 | CX10: 3411132.212 | CY10: 3393947.398 | DA10: 5148095.813 | DB10: 4741289.682 | DC10: 2694877.041 | DD10: 2596976.727 | DE10: 2513230.441 | DF10: 3196527.957 | DG10: 2942704.435 | DH10: 2633755.938 | DI10: 2882327.865 | DJ10: 2553219.032 | DK10: 3153635.277 | DL10: 3220244.88 | DM10: 3479181.774 | DN10: 3855995.786 | DO10: 3743265.7 | DP10: 4436028.344 | DQ10: 4369438.742 | DR10: 4497718.739 | DS10: 4612669.077
B11: Sapiens Int. | E11: 227403000 | F11: 261914000 | G11: 270400367.3 | H11: 265168011.6 | I11: 240546283 | J11: 263261260.5 | K11: 268479678.1 | L11: 277241569.9 | M11: 290482664 | N11: 302516301.9 | O11: 325231382.6 | P11: 333644223.8 | Q11: 361295009.7 | R11: 377032101.3 | S11: 368182048.4 | T11: 388555475.7 | U11: 417848728.2 | V11: 429196031.1 | W11: 457947869.4 | Y11: -2370000 | Z11: -6389000 | AA11: 12807157.71 | AB11: 2823874.983 | AC11: 17547315.34 | AD11: 17810254.85 | AE11: 24342058.94 | AF11: 27176939.1 | AG11: 32325450.45 | AH11: 37104407.29 | AI11: 45640974.26 | AJ11: 37138056.15 | AK11: 42867741.69 | AL11: 54129229.5 | AM11: 53095184.04 | AN11: 45377011.35 | AO11: 50008248.04 | AP11: 54027463.81 | AQ11: 61255489.62 | AS11: 4838081.126 | AT11: 2101447.189 | AU11: 22921886 | AV11: 16272566.28 | AW11: 29202608.79 | AX11: 30448114.28 | AY11: 35733781.21 | AZ11: 39384488.45 | BA11: 43314968.71 | BB11: 47241261.98 | BC11: 56907812.88 | BD11: 47343498.48 | BE11: 54983405.79 | BF11: 69230625.98 | BG11: 66642096.85 | BH11: 66242324.16 | BI11: 70257851.98 | BJ11: 74746270.1 | BK11: 79559632.24 | BM11: -8039000 | BN11: -10033000 | BO11: 6111145.791 | BP11: 10460666.26 | BQ11: 10798087.27 | BR11: 6741688.76 | BS11: 18630461.96 | BT11: 16616487.98 | BU11: 20129165.81 | BV11: 24156931.85 | BW11: 31109774.74 | BX11: 26315044.61 | BY11: 25675949.55 | BZ11: 35771551.28 | CA11: 37128056.84 | CB11: 28583651.88 | CC11: 36491990.09 | CD11: 38604157.11 | CE11: 49988983.17 | CG11: -1792418.334 | CH11: -2258985.349 | CI11: 905486.1858 | CJ11: 1453816.453 | CK11: 1364406.99 | CL11: 809498.1944 | CM11: 2350251.507 | CN11: 2062352.506 | CO11: 2488614.14 | CP11: 2931081.514 | CQ11: 3749456.18 | CR11: 3146533.394 | CS11: 3097616.354 | CT11: 4356791.704 | CU11: 4422217.857 | CV11: 3300509.664 | CW11: 4072104.834 | CX11: 4329646.671 | CY11: 5575440.397 | DA11: 134942.9724 | DB11: -575527.8778 | DC11: 2434853.881 | DD11: 2877220.466 | DE11: 2633408.464 | DF11: 2219936.365 | DG11: 3460949.149 | DH11: 3299279.487 | DI11: 3586421.661 | DJ11: 3909014.464 | DK11: 4857969.546 | DL11: 4359635.299 | DM11: 4297431.613 | DN11: 6355257.173 | DO11: 5537830.143 | DP11: 5903065.221 | DQ11: 6046654.902 | DR11: 6323407.584 | DS11: 7131584.994
B12: Holding and other companies, consolidation adjustment | E12: 32688781.38 | F12: 29999114.83 | G12: 30921477.35 | H12: 34743374.85 | I12: 27102213.67 | J12: 29407670.83 | K12: 29126850.2 | L12: 52323668.15 | M12: 35188517.82 | N12: 36148029.12 | O12: 39318586.08 | P12: 50525666.49 | Q12: 49065228.85 | R12: 51555768.54 | S12: 51456272.72 | T12: 68569584.09 | U12: 52290261.87 | V12: 102333970.1 | W12: 121875097.1 | Y12: -3424189.037 | Z12: -8631152.493 | AA12: -36861705.86 | AB12: -53377769.61 | AC12: -39118999.28 | AD12: -30269697.96 | AE12: -28519576.06 | AF12: -28509503.96 | AG12: -21945013.55 | AH12: -21158500.48 | AI12: -22256400.27 | AJ12: -19697230.7 | AK12: -28392803.96 | AL12: -12529074.95 | AM12: -17933427.07 | AN12: -17769615.71 | AO12: -24656871.27 | AP12: -24953117.09 | AQ12: -18695740.74 | AS12: 2765958.23 | AT12: -2512980.34 | AU12: 432044.6015 | AV12: -4440429.358 | AW12: 719533.0699 | AX12: -4065.927892 | AY12: 879132.9052 | AZ12: 3054960.651 | BA12: 3541978.96 | BB12: 2196356.53 | BC12: 2178368.928 | BD12: 4376807.536 | BE12: 5253964.076 | BF12: 5246328.077 | BG12: 6627072.173 | BH12: 12318273.48 | BI12: 7409171.798 | BJ12: 9101933.038 | BK12: 22990940.92 | BM12: -19897189.04 | BN12: -18710152.49 | BO12: -33360253.65 | BP12: 345813755.3 | BQ12: -31786709.07 | BR12: -21083921.56 | BS12: -27534416.74 | BT12: -18307881.32 | BU12: -23760322.21 | BV12: -11681222.43 | BW12: -20837070.89 | BX12: -19083344.87 | BY12: -24455583.53 | BZ12: -12934804 | CA12: -18888710.76 | CB12: -20077018.68 | CC12: -20676540.94 | CD12: -28397531.31 | CE12: -21739147.91 | CG12: -8702739.832 | CH12: -7210160.146 | CI12: -3969067.582 | CJ12: 392608474.2 | CK12: -4275478.727 | CL12: -2516896.069 | CM12: -4204057.533 | CN12: -1747207.218 | CO12: -3714461.3 | CP12: -794021.8696 | CQ12: -2996448.138 | CR12: -2738043.874 | CS12: -3930789.628 | CT12: -912983.4313 | CU12: -2628425.797 | CV12: -3021340.063 | CW12: -3082000.189 | CX12: -4667576.587 | CY12: -3651104.882 | DA12: -6800247.909 | DB12: -5195289.09 | DC12: 757756.5582 | DD12: -2341511.446 | DE12: 459274.8471 | DF12: 592639.204 | DG12: -928605.3254 | DH12: 2222714.841 | DI12: -942542.1743 | DJ12: 1721746.207 | DK12: -364365.5643 | DL12: 307392.7717 | DM12: 1058935.027 | DN12: -69384.82925 | DO12: 251149.9078 | DP12: 981015.2557 | DQ12: 1426764.307 | DR12: 596671.7432 | DS12: 2729384.97
B13: Asseco International Segment | E13: 505567376.6 | F13: 543299651.3 | G13: 505849136.6 | H13: 678183835.4 | I13: 574000000 | J13: 644300000 | K13: 586800000 | L13: 787100000 | M13: 673600000 | N13: 672600000 | O13: 686600000 | P13: 896600000 | Q13: 754600000 | R13: 749500000 | S13: 720900000 | T13: 1001500000 | U13: 818800000 | V13: 872500000 | W13: 845900000 | Y13: 54195333.47 | Z13: 56780252.08 | AA13: 52484965.61 | AB13: 85339448.83 | AC13: 54300000 | AD13: 69600000 | AE13: 58900000 | AF13: 91100000 | AG13: 76400000 | AH13: 74400000 | AI13: 88200000 | AJ13: 109300000 | AK13: 80900000 | AL13: 91700000 | AM13: 78800000 | AN13: 137200000 | AO13: 98000000 | AP13: 100700000 | AQ13: 119800000 | AS13: 56665290.94 | AT13: 58480210.02 | AU13: 54751138.63 | AV13: 87800220.51 | AW13: 56814525.93 | AX13: 72236627.2 | AY13: 61466614.83 | AZ13: 94887053.9 | BA13: 79377654.77 | BB13: 77439419.69 | BC13: 91055961.96 | BD13: 113673580.3 | BE13: 84682806.78 | BF13: 95564083.09 | BG13: 82849680.92 | BH13: 140777693.8 | BI13: 101526062.9 | BJ13: 105127005.1 | BK13: 123734093 | BM13: 42492264.87 | BN13: 48385693 | BO13: 36127999.77 | BP13: -4663144.256 | BQ13: 43133755.2 | BR13: 59333215.81 | BS13: 52325999.75 | BT13: 80654000 | BU13: 60158000 | BV13: 57530000 | BW13: 70683000 | BX13: 91242000 | BY13: 66127000 | BZ13: 73777000 | CA13: 62511000 | CB13: 112491000 | CC13: 74709000 | CD13: 94331000 | CE13: 91725000 | CG13: 29179751.04 | CH13: 34293603.05 | CI13: 22818045.52 | CJ13: -30627160.71 | CK13: 26347970.54 | CL13: 38140689.12 | CM13: 31806986.39 | CN13: 53254700.86 | CO13: 38258739.01 | CP13: 36649428.24 | CQ13: 45006931.67 | CR13: 55170796.33 | CS13: 42709607.83 | CT13: 46472119.03 | CU13: 36215566.03 | CV13: 70349163.98 | CW13: 45464962.4 | CX13: 63096145.34 | CY13: 57402141.06 | DA13: 25665995.45 | DB13: 31518280.2 | DC13: 30377365.93 | DD13: 43773525.88 | DE13: 27943842.03 | DF13: 40172958.66 | DG13: 33123653.55 | DH13: 50123545.19 | DI13: 40129677.91 | DJ13: 37927365.33 | DK13: 47944271.18 | DL13: 58076366.55 | DM13: 44888067.1 | DN13: 49158568.55 | DO13: 39403855.39 | DP13: 72247732.14 | DQ13: 48339694.25 | DR13: 51669689.57 | DS13: 59544093.25
C14: Central Europen Market | E14: 218777000 | F14: 243308000 | G14: 221064000 | H14: 321871472 | I14: 272268722.4 | J14: 306810471.4 | K14: 278464465.4 | L14: 355493822.5 | M14: 319965093.5 | N14: 315722979.1 | O14: 295402297.3 | P14: 403211812.6 | Q14: 321336321.9 | R14: 320868428.1 | S14: 302059924.1 | T14: 387960701.3 | U14: 340717464.1 | V14: 373233179.5 | W14: 360672088.2 | Y14: 31266000 | Z14: 27516000 | AA14: 28132000 | AB14: 45617000 | AC14: 32716872 | AD14: 39714131.25 | AE14: 35683895.47 | AF14: 52965473.62 | AG14: 44882273.15 | AH14: 44591829.69 | AI14: 48198238.28 | AJ14: 60006358.04 | AK14: 46771881.42 | AL14: 49114706.08 | AM14: 36715212.03 | AN14: 73639001.47 | AO14: 53891342.7 | AP14: 52275905.41 | AQ14: 58011288.11 | AS14: 31589568.03 | AT14: 27743783.11 | AU14: 28321849.6 | AV14: 46014706.4 | AW14: 33180516.39 | AX14: 40200795.8 | AY14: 36165351.5 | AZ14: 54572172.3 | BA14: 45681274.26 | BB14: 45310689.8 | BC14: 49104832.51 | BD14: 60710351.92 | BE14: 47631086.3 | BF14: 49900938.03 | BG14: 37748302.75 | BH14: 74512451.44 | BI14: 54705824.68 | BJ14: 53077536.84 | BK14: 58822639.17 | BM14: 24550666.07 | BN14: 25136000 | BO14: 20619533.93 | BP14: 36472800 | BQ14: 24251433.6 | BR14: 30034723.65 | BS14: 28818292.01 | BT14: 49498521.03 | BU14: 35216446.06 | BV14: 35347429.92 | BW14: 37607556.94 | BX14: 50146177.79 | BY14: 36273596.54 | BZ14: 40848709.71 | CA14: 28457978.01 | CB14: 59614588.49 | CC14: 41907868.6 | CD14: 41878225.01 | CE14: 43924531.41 | CG14: 18663344.13 | CH14: 20131955.74 | CI14: 15459573 | CJ14: 23903516.43 | CK14: 15849945.54 | CL14: 20967071.34 | CM14: 19976276.55 | CN14: 35116908.49 | CO14: 25210862.51 | CP14: 25590339.96 | CQ14: 27190610.78 | CR14: 32113971.02 | CS14: 25968872.77 | CT14: 29762533.09 | CU14: 19078212.66 | CV14: 40019629.22 | CW14: 30714883.92 | CX14: 30430430.96 | CY14: 31616239.03 | DA14: 19187853.96 | DB14: 16322407.79 | DC14: 15690305.07 | DD14: 24086361.35 | DE14: 16032404.27 | DF14: 21540272.06 | DG14: 20238713.94 | DH14: 29359731.06 | DI14: 25731806.89 | DJ14: 26231760.72 | DK14: 27823519.03 | DL14: 32453269.17 | DM14: 26533957.42 | DN14: 30236823.91 | DO14: 19748579.7 | DP14: 40572497.04 | DQ14: 31223641.3 | DR14: 30965036.3 | DS14: 32102095.91
B15: South Eastern Europen Market | E15: 133205000 | F15: 149616000 | G15: 127810000 | H15: 160228000 | I15: 156138451.2 | J15: 183755656.2 | K15: 173909809.4 | L15: 261490760.7 | M15: 187076182.9 | N15: 198384469.2 | O15: 228834687 | P15: 275797340.8 | Q15: 231335950 | R15: 233791721.2 | S15: 227324204 | T15: 335951306.6 | U15: 253111456 | V15: 272982089.7 | W15: 264945591.6 | Y15: 12844000 | Z15: 17886000 | AA15: 13321000 | AB15: 21815000 | AC15: 13409180 | AD15: 18823988.5 | AE15: 19447109.62 | AF15: 26719237.8 | AG15: 21364359.67 | AH15: 22562279.15 | AI15: 29345537.8 | AJ15: 34327249.76 | AK15: 27916293.55 | AL15: 35207192.7 | AM15: 36325365.14 | AN15: 44057716.18 | AO15: 38369063.2 | AP15: 41356410.55 | AQ15: 47005076.16 | AS15: 12844000 | AT15: 17886000 | AU15: 13901000 | AV15: 22406632.05 | AW15: 14482315.94 | AX15: 19938634.15 | AY15: 20559389.61 | AZ15: 27891700.41 | BA15: 22537320.33 | BB15: 23881732.13 | BC15: 30130583.69 | BD15: 35599991.17 | BE15: 29226465.57 | BF15: 36634154.97 | BG15: 37705792.12 | BH15: 45085429.28 | BI15: 39398111.29 | BJ15: 43158451.55 | BK15: 48090561.1 | BM15: 10152000 | BN15: 15234168.4 | BO15: 11161031.6 | BP15: 18127800 | BQ15: 11557975.2 | BR15: 16113672.65 | BS15: 18805958.24 | BT15: 21352211.92 | BU15: 18348450.36 | BV15: 18238050.73 | BW15: 24661683.6 | BX15: 27863465.66 | BY15: 23291420.98 | BZ15: 27245562.77 | CA15: 30902908.67 | CB15: 35134195.44 | CC15: 32215016.6 | CD15: 34173617.22 | CE15: 38771146.61 | CG15: 5579378.8 | CH15: 8241858.602 | CI15: 5643834.332 | CJ15: 9196096.899 | CK15: 5872741.388 | CL15: 8281768.204 | CM15: 9586954.823 | CN15: 10991226.86 | CO15: 9169111.275 | CP15: 9098016.095 | CQ15: 12520556.83 | CR15: 14260492.27 | CS15: 11909097.48 | CT15: 13625999.34 | CU15: 15770608.02 | CV15: 17610676.86 | CW15: 16076472.43 | CX15: 16779896.49 | CY15: 19263078.25 | DA15: 5579378.8 | DB15: 8551690.2 | DC15: 5939982.332 | DD15: 9522647.489 | DE15: 6432126.532 | DF15: 8862682.555 | DG15: 10166609.33 | DH15: 11597289.72 | DI15: 9839457.837 | DJ15: 8643000.659 | DK15: 12924768.84 | DL15: 15104052.18 | DM15: 12289246.44 | DN15: 14634385.63 | DO15: 17098407.24 | DP15: 18012300.26 | DQ15: 17258481.34 | DR15: 17797432.67 | DS15: 19599876.17
B16: Western Europen Market | E16: 146300200.6 | F16: 149689914.3 | G16: 154846208.4 | H16: 187328270 | I16: 144236434 | J16: 155543111.3 | K16: 131496770.3 | L16: 168886672.8 | M16: 163936458.3 | N16: 156649012.5 | O16: 161073405.5 | P16: 214516797 | Q16: 199581427.9 | R16: 191434405.1 | S16: 189361860.9 | T16: 274425201 | U16: 223978034.8 | V16: 223594129.4 | W16: 216830309.2 | Y16: 13440062.4 | Z16: 12195556.53 | AA16: 10209415.45 | AB16: 16115765.61 | AC16: 11132100.8 | AD16: 13227148.75 | AE16: 6120649.518 | AF16: 14635022.73 | AG16: 12773330.23 | AH16: 10223366.66 | AI16: 14836708.45 | AJ16: 16498255.96 | AK16: 8996959.802 | AL16: 10526775.2 | AM16: 8608496.944 | AN16: 21772529.73 | AO16: 8572687.5 | AP16: 12735335.66 | AQ16: 17475600.4 | AS16: 14941120.8 | AT16: 13667731.36 | AU16: 11705738.86 | AV16: 17587198.84 | AW16: 12109846.4 | AX16: 14233465.75 | AY16: 7122528.334 | AZ16: 15642915.34 | BA16: 13779023.23 | BB16: 11224473.25 | BC16: 16001030.3 | BD16: 18872100.98 | BE16: 10610389.68 | BF16: 12177664.07 | BG16: 10244660.16 | BH16: 23449060.46 | BI16: 10255220.3 | BJ16: 14558668.38 | BK16: 19512857.38 | BM16: 6135062.4 | BN16: 8633556.533 | BO16: 10232415.45 | BP16: -3351234.386 | BQ16: 11382232 | BR16: 15062699.4 | BS16: 5953954.835 | BT16: 13403554.39 | BU16: 11053027.25 | BV16: 8177801.134 | BW16: 13331893.06 | BX16: 12032879.7 | BY16: 11300603.55 | BZ16: 8893760.198 | CA16: 6871580.186 | CB16: 19111843.88 | CC16: 6355219 | CD16: 9164260.947 | CE16: 12141430.7 | CG16: 2813831.965 | CH16: 6119503.069 | CI16: 7508676.626 | CJ16: -7220401.893 | CK16: 8209680.37 | CL16: 11167388.33 | CM16: 3747467.25 | CN16: 10211690.13 | CO16: 8123681.372 | CP16: 6242363.181 | CQ16: 10160598.87 | CR16: 8243553.298 | CS16: 9789450.703 | CT16: 6521545.915 | CU16: 5141688.315 | CV16: 13885890.93 | CW16: 4610442.458 | CX16: 6672156.806 | CY16: 9811258.809 | DA16: 3606767.023 | DB16: 6896847.074 | DC16: 8298942.69 | DD16: 8874817.556 | DE16: 8745739.173 | DF16: 11725819.86 | DG16: 4290049.163 | DH16: 11022319.81 | DI16: 8788788.328 | DJ16: 6797418.581 | DK16: 11161881.21 | DL16: 9618873.259 | DM16: 10690157.82 | DN16: 7427450.469 | DO16: 6057132.21 | DP16: 14554647.81 | DQ16: 5515261.048 | DR16: 7327980.393 | DS16: 11163628.34
B17: Holding and other companies, consolidation adjustment | E17: 7285175.98 | F17: 685737.01 | G17: 2128928.25 | H17: 8756093.479 | I17: 1356392.4 | J17: -1809238.95 | K17: 2928954.91 | L17: 1228744.002 | M17: 2622265.204 | N17: 1843539.159 | O17: 1289610.209 | P17: 3074049.581 | Q17: 2346300.151 | R17: 3405445.539 | S17: 2154011.045 | T17: 3162791.025 | U17: 993045.1 | V17: 2690601.412 | W17: 3452010.933 | X17: 0 | Y17: -3354728.93 | Z17: -817304.45 | AA17: 822550.16 | AB17: 1791683.22 | AC17: -2958152.8 | AD17: -2165268.5 | AE17: -2351654.605 | AF17: -3219734.151 | AG17: -2619963.054 | AH17: -2977475.497 | AI17: -4180484.535 | AJ17: -1531863.761 | AK17: -2785134.768 | AL17: -3148673.982 | AM17: -2849074.109 | AN17: -2269247.381 | AO17: -2833093.4 | AP17: -5667651.619 | AQ17: -2691964.674 | AR17: 0 | AS17: -2709397.88 | AT17: -817304.45 | AU17: 822550.16 | AV17: 1791683.22 | AW17: -2958152.8 | AX17: -2136268.5 | AY17: -2380654.605 | AZ17: -3219734.151 | BA17: -2619963.054 | BB17: -2977475.497 | BC17: -4180484.535 | BD17: -1508863.761 | BE17: -2785134.768 | BF17: -3148673.982 | BG17: -2849074.109 | BH17: -2269247.381 | BI17: -2833093.4 | BJ17: -5667651.619 | BK17: -2691964.674 | BL17: 0 | BM17: 1654536.393 | BN17: -618031.9333 | BO17: -5884981.209 | BP17: -55912509.87 | BQ17: -4057885.6 | BR17: -1877879.89 | BS17: -1252205.33 | BT17: -3600287.344 | BU17: -4459923.666 | BV17: -4233281.785 | BW17: -4918133.592 | BX17: 1199476.848 | BY17: -4738621.071 | BZ17: -3211032.679 | CA17: -3721466.863 | CB17: -1369627.812 | CC17: -5769104.2 | CD17: 9114896.819 | CE17: -3112108.72 | CF17: 0 | CG17: 2123196.147 | CH17: -199714.3598 | CI17: -5794038.433 | CJ17: -56506372.15 | CK17: -3584396.751 | CL17: -2275538.759 | CM17: -1503712.234 | CN17: -3065124.616 | CO17: -4244916.146 | CP17: -4281291.001 | CQ17: -4864834.802 | CR17: 552779.7394 | CS17: -4957813.126 | CT17: -3437959.312 | CU17: -3774942.959 | CV17: -1167033.03 | CW17: -5936836.409 | CX17: 9213661.094 | CY17: -3288435.022 | CZ17: 0 | DA17: -2708004.335 | DB17: -252664.8677 | DC17: 448135.8427 | DD17: 1289699.484 | DE17: -3266427.943 | DF17: -1955815.813 | DG17: -1571718.886 | DH17: -1855795.396 | DI17: -4230375.151 | DJ17: -3744814.637 | DK17: -3965897.9 | DL17: 900171.9431 | DM17: -4625294.585 | DN17: -3140091.457 | DO17: -3500263.749 | DP17: -891712.9816 | DQ17: -5657689.446 | DR17: -4420759.799 | DS17: -3321507.168
B18: Consolidation adjustment | C18: Consolidation adjustment | D18: Consolidation adjustment | E18: -11501757.48 | F18: -12291773.34 | G18: -4374168.98 | H18: -14032300.2 | I18: -5100000 | J18: -8400000 | K18: -4400000 | L18: -7200000 | M18: -6100000 | N18: -6200000 | O18: -6900000 | P18: -9500000 | Q18: -7400000 | R18: -7000000 | S18: -7300000 | T18: -11300000 | U18: -6400000 | V18: -10900000 | W18: -7000000 | Y18: -1268101.906 | Z18: 527302.75 | AA18: 300374.1217 | AB18: -1359574.966 | AC18: 400000 | AD18: -300000 | AE18: 1300000 | AF18: -300000 | AG18: -3.278255463e-07 | AH18: 1000000 | AI18: -300000 | AJ18: -200000 | AK18: -700000 | AL18: -600000 | AM18: 1000000 | AN18: -2700000 | AO18: -500000 | AP18: -2500000 | AQ18: 300000 | AS18: -1259601.906 | AT18: 518802.75 | AU18: 300374.1217 | AV18: -1359574.966 | AW18: 400000 | AX18: -300000 | AY18: 1300000 | AZ18: -300000 | BA18: -3.278255463e-07 | BB18: 1000000 | BC18: -300000 | BD18: -232000 | BE18: -700000 | BF18: -600000 | BG18: 1044874.552 | BH18: -2718000 | BI18: -500000 | BJ18: -2500000 | BK18: 258787.9064 | BM18: -29136569.2 | BN18: 28234121.26 | BO18: 227873.8094 | BP18: -1303239.253 | BQ18: 392579.7379 | BR18: -351579.7379 | BS18: 1398000 | BT18: -317000 | BU18: 33000 | BV18: 1117000 | BW18: -255000 | BX18: -33000 | BY18: -565000 | BZ18: -409000 | CA18: 1221000 | CB18: -2723000 | CC18: -406000 | CD18: -2440000 | CE18: 472000 | CG18: -1326295.425 | CH18: 59319.11303 | CI18: 1154213.98 | CJ18: -1496645.551 | CK18: 361182.1349 | CL18: -169988.1126 | CM18: 1470453.748 | CN18: -147797.8049 | CO18: 113905.2298 | CP18: 1035195.181 | CQ18: -217880.0745 | CR18: -129827.8369 | CS18: -528920.3551 | CT18: -309235.3467 | CU18: 926309.8955 | CV18: -2555744.43 | CW18: -390035.8802 | CX18: -2569500.883 | CY18: 586431.5639 | DA18: -1326295.425 | DB18: 59319.11303 | DC18: 1154213.98 | DD18: -1496645.551 | DE18: 361182.1349 | DF18: -169988.1126 | DG18: 1470453.748 | DH18: -147797.8049 | DI18: 69713.37019 | DJ18: 1035195.181 | DK18: -217880.0745 | DL18: -85635.97731 | DM18: -528920.3551 | DN18: -309235.3467 | DO18: 956077.3593 | DP18: -2553744.43 | DQ18: -390035.8802 | DR18: -2569500.883 | DS18: 584087.2877
B19: Asseco Group | E19: 2068300000 | F19: 2093700000 | G19: 2124246625 | H19: 2411554734 | I19: 2149000000 | J19: 2310900000 | K19: 2218400000 | L19: 2650300000 | M19: 2452200000 | N19: 2538700000 | O19: 2738400000 | P19: 2938100000 | Q19: 2920400000 | R19: 2850300000 | S19: 2938100000 | T19: 3483000000 | U19: 3339100000 | V19: 3451900000 | W19: 3502100000 | Y19: 165200000 | Z19: 144000000 | AA19: 144399154.6 | AB19: 158322219.8 | AC19: 167300000 | AD19: 203800000 | AE19: 187600000 | AF19: 238100000 | AG19: 224700000 | AH19: 228900000 | AI19: 261100000 | AJ19: 259900000 | AK19: 249800000 | AL19: 303700000 | AM19: 299000000 | AN19: 362500000 | AO19: 323000000 | AP19: 349000000 | AQ19: 373000000 | AS19: 197949774.2 | AT19: 175156447.6 | AU19: 208631457.2 | AV19: 236969648.9 | AW19: 235333201.8 | AX19: 264407987 | AY19: 246494752.6 | AZ19: 302238009.8 | BA19: 280652875 | BB19: 284038461 | BC19: 320823252.5 | BD19: 318836813.8 | BE19: 316410238.9 | BF19: 358484847.1 | BG19: 362004914.1 | BH19: 441939496.2 | BI19: 398651313.4 | BJ19: 427334271.5 | BK19: 457014415.1 | BM19: 97000000 | BN19: 84800000 | BO19: 81771936.33 | BP19: 351160653.7 | BQ19: 116600000 | BR19: 151400000 | BS19: 141300000 | BT19: 184400000 | BU19: 157200000 | BV19: 169400000 | BW19: 181500000 | BX19: 194200000 | BY19: 176400000 | BZ19: 211600000 | CA19: 207500000 | CB19: 272100000 | CC19: 233200000 | CD19: 269200000 | CE19: 264000000 | CG19: 60900113.92 | CH19: 52399886.08 | CI19: 45574255.88 | CJ19: 307720937.1 | CK19: 68900000 | CL19: 88400000 | CM19: 78000000 | CN19: 98000000 | CO19: 79600000 | CP19: 80100000 | CQ19: 78500000 | CR19: 83700000 | CS19: 81700000 | CT19: 95100000 | CU19: 90700000 | CV19: 134200000 | CW19: 102400000 | CX19: 139400000 | CY19: 120400000 | DA19: 67527224.16 | DB19: 59201638.97 | DC19: 64410270.48 | DD19: 74168848.38 | DE19: 81170041.63 | DF19: 100121853.3 | DG19: 88291603.33 | DH19: 101831383.4 | DI19: 89573223.7 | DJ19: 90316463.23 | DK19: 90325408.63 | DL19: 96014470.82 | DM19: 94650530.83 | DN19: 106085237.4 | DO19: 102364231.7 | DP19: 151150917.5 | DQ19: 116266813.2 | DR19: 133117703.8 | DS19: 136815483

Sheet RevenuesAndCosts
A1: Przychody ze sprzedaży | B1: Sales revenues | C1: YE 2017 | D1: Q1 2018 | E1: Q2 2018 | F1: Q3 2018 | G1: Q4 2018 | H1: Q1 2019 | I1: Q2 2019 | J1: Q3 2019 | K1: Q4 2019 | L1: Q1 2020 | M1: Q2 2020 | N1: Q3 2020 | O1: Q4 2020 | P1: Q1 2021 | Q1: Q2 2021 | R1: Q3 2021
C2: mln PLN | D2: mln PLN | E2: mln PLN | F2: mln PLN | G2: mln PLN | H2: mln PLN | I2: mln PLN | J2: mln PLN | K2: mln PLN | L2: mln PLN | M2: mln PLN | N2: mln PLN | O2: mln PLN | P2: mln PLN | Q2: mln PLN | R2: mln PLN
A4: Przychody ze sprzedaży według rodzaju | B4: Sales revenues by type of products
A5: Oprogramowanie i usługi własne | B5: Proprietary software and services | C5: 6237.2 | D5: 1729 | E5: 1871.3 | F5: 1853.5 | G5: 2051 | H5: 1981.2 | I5: 2092.8 | J5: 2245.9 | K5: 2328 | L5: 2354.8 | M5: 2299.1 | N5: 2330.7 | O5: 2651.3 | P5: 2602.8 | Q5: 2729.2 | R5: 2770.9
A6: Oprogramowanie i usługi obce | B6: Third-party software and services | C6: 627.3 | D6: 145.6 | E6: 169.1 | F6: 127.4 | G6: 235.3 | H6: 174.9 | I6: 183.4 | J6: 193.4 | K6: 230.4 | L6: 186.8 | M6: 207.1 | N6: 183.8 | O6: 276.7 | P6: 281.5 | Q6: 305.1 | R6: 337.6
A7: Sprzęt i infrastruktura | B7: Hardware and infrastructure | C7: 964.8 | D7: 274.4 | E7: 270.5 | F7: 237.5 | G7: 364 | H7: 296.1 | I7: 262.5 | J7: 299.1 | K7: 379.7 | L7: 378.8 | M7: 344.1 | N7: 423.6 | O7: 555 | P7: 454.8 | Q7: 417.6 | R7: 393.6
A8: Razem | B8: Total | C8: =SUM(C5:C7) -> 7829.3 | D8: =SUM(D5:D7) -> 2149 | E8: 2310.9 | F8: 2218.4 | G8: 2650.3 | H8: =SUM(H5:H7) -> 2452.2 | I8: =SUM(I5:I7) -> 2538.7 | J8: 2738.4 | K8: 2938.1 | L8: 2920.4 | M8: 2850.3 | N8: 2938.1 | O8: 3483 | P8: 3339.1 | Q8: 3451.9 | R8: 3502.1
A10: Przychody ze sprzedaży według sektorów | B10: Sales revenues by sectors
A11: Bankowość i finanse | B11: Banking and finance | C11: 3039.7 | D11: 820 | E11: 901.6 | F11: 930.6 | G11: 1041 | H11: 957.3 | I11: 1023.4 | J11: 1004.4 | K11: 1076.5 | L11: 1062.2 | M11: 1068.6 | N11: 1066.4 | O11: 1210.7 | P11: 1146.4 | Q11: 1200.6 | R11: 1229.5
A12: Przedsiębiorstwa | B12: General business | C12: 3121.9 | D12: 860.5 | E12: 934.6 | F12: 806.9 | G12: 947.3 | H12: 921 | I12: 921.8 | J12: 1093.9 | K12: 1127.9 | L12: 1153.6 | M12: 1118.2 | N12: 1064.7 | O12: 1403.6 | P12: 1354.4 | Q12: 1415.5 | R12: 1423.7
A13: Instytucje Publiczne | B13: Public Institutions | C13: 1667.7 | D13: 468.5 | E13: 474.7 | F13: 480.9 | G13: 662 | H13: 573.9 | I13: 593.5 | J13: 640.1 | K13: 733.7 | L13: 704.6 | M13: 663.5 | N13: 807 | O13: 868.7 | P13: 838.3 | Q13: 835.8 | R13: 848.9
A14: Razem | B14: Total | C14: =SUM(C11:C13) -> 7829.3 | D14: =SUM(D11:D13) -> 2149 | E14: 2310.9 | F14: 2218.4 | G14: 2650.3 | H14: =SUM(H11:H13) -> 2452.2 | I14: =SUM(I11:I13) -> 2538.7 | J14: 2738.4 | K14: 2938.1 | L14: 2920.4 | M14: 2850.3 | N14: 2938.1 | O14: 3483 | P14: 3339.1 | Q14: 3451.9 | R14: 3502.1
A16: Struktura kosztów operacyjnych | B16: Operating costs
A17: Wartość odsprzedanych towarów, materiałów i usług obcych (COGS) | B17: Cost of goods, materials and third-party services sold | C17: -1372.2 | D17: -362.5 | E17: -365.3 | F17: -319.1 | G17: -478.2 | H17: -400.7 | I17: -363.6 | J17: -425.8 | K17: -505.1 | L17: -476.8 | M17: -461 | N17: -503.1 | O17: -699.3 | P17: -628.5 | Q17: -588.9 | R17: -610.7
A18: Świadczenia na rzecz pracowników | B18: Employee benefits | C18: -3871.2 | D18: -1081 | E18: -1132.5 | F18: -1111 | G18: -1246.8 | H18: -1226.1 | I18: -1309.9 | J18: -1337.8 | K18: -1386.9 | L18: -1473 | M18: -1395.6 | N18: -1433.7 | O18: -1649 | P18: -1638.3 | Q18: -1689.1 | R18: -1714.5
A19: Amortyzacja | B19: Depreciation and amortization | C19: -331.5 | D19: -115.1 | E19: -110.9 | F19: -111 | G19: -114.1 | H19: -142.2 | I19: -156.5 | J19: -162.7 | K19: -167.4 | L19: -168 | M19: -171.1 | N19: -176.2 | O19: -184.6 | P19: -174.4 | Q19: -186.2 | R19: -189.5
A20: Usługi obce | B20: External services | C20: -1038.6 | D20: -276.2 | E20: -315.5 | F20: -312.7 | G20: -362.6 | H20: -320.3 | I20: -333.5 | J20: -390.3 | K20: -436.2 | L20: -391.1 | M20: -375.3 | N20: -383.7 | O20: -453.5 | P20: -436 | Q20: -477.4 | R20: -460
A21: Pozostałe | B21: Other | C21: -615.7 | D21: -143.1 | E21: -180.9 | F21: -176.6 | G21: -204.3 | H21: -133.2 | I21: -143.8 | J21: -160.7 | K21: -178.8 | L21: -157.1 | M21: -140 | N21: -140.5 | O21: -129.1 | P21: -136 | Q21: -158.5 | R21: -154.4
A22: Razem | B22: Total | C22: =SUM(C17:C21) -> -7229.2 | D22: =SUM(D17:D21) -> -1977.9 | E22: -2105.1 | F22: -2030.4 | G22: -2406 | H22: =SUM(H17:H21) -> -2222.5 | I22: =SUM(I17:I21) -> -2307.3 | J22: -2477.3 | K22: -2674.4 | L22: -2666 | M22: -2543 | N22: -2637.2 | O22: -3115.5 | P22: -3013.2 | Q22: -3100.1 | R22: -3129.1

Sheet Exchange Rates
A1: Kursy walut | B1: Exchange rates
A3: Waluta | B3: Currency | C3: EUR/PLN | D3: USD/PLN | E3: NIS/PLN | F3: RUB/PLN
A5: Kurs średni 2014 | B5: Average exchange rate 2014 | C5: 4.1893 | D5: 3.1784 | E5: 0.8846 | F5: 0.0821
A6: Kurs otwarcia 2014 | B6: Opening exchange rate 2014 | C6: 4.1472 | D6: 3.012 | E6: 0.8678 | F6: 0.0914
A7: Kurs zamknięcia 2014 | B7: Closing exchange rate 2014 | C7: 4.2623 | D7: 3.5072 | E7: 0.9018 | F7: 0.0602
A9: Kurs otwarcia 2015 | B9: Opening exchange rate 2015 | C9: 4.2623 | D9: 3.5072 | E9: 0.9018 | F9: 0.0602
A10: Kurs średni Q1 2015 | B10: Average exchange rate Q1 2015 | C10: 4.1489 | D10: 3.7436 | E10: 0.9462 | F10: 0.06
A11: Kurs zamknięcia Q1 2015 | B11: Closing exchange rate Q1 2015 | C11: 4.089 | D11: 3.8125 | E11: 0.9579 | F11: 0.0661
A13: Kurs średni Q1-Q2 2015 | B13: Average exchange rate Q1-2 2015 | C13: 4.1341333 | D13: 3.7268667 | E13: 0.9566667 | F13: 0.06485
A14: Kurs zamknięcia Q2 2015 | B14: Closing exchange rate Q2 2015 | C14: 4.1944 | D14: 3.7645 | E14: 0.9985 | F14: 0.0676
A16: Kurs średni Q1-Q3 2015 | B16: Average exchange rate Q1-Q3 2015 | C16: 4.1585111 | D16: 3.7452778 | E16: 0.9628556 | F16: 0.0628556
A17: Kurs zamknięcia Q3 2015 | B17: Closing exchange rate Q3 2015 | C17: 4.2386 | D17: 3.7754 | E17: 0.9619 | F17: 0.0576
A19: Kurs średni Q1-Q4 2015 | B19: Average exchange rate Q1-Q4 2015 | C19: 4.1847667 | D19: 3.7928167 | E19: 0.9757415 | F19: 0.061625
A20: Kurs zamknięcia Q4 2015 | B20: Closing exchange rate Q4 2015 | C20: 4.2615 | D20: 3.9011 | E20: 0.9997693 | F20: 0.0528
A22: Kurs średni Q1 2016 | B22: Average exchange rate Q1 2016 | C22: 4.3559333 | D22: 3.9416 | E22: =1.0167 -> 1.0167 | F22: 0.0539333
A23: Kurs zamknięcia Q1 2016 | B23: Closing exchange rate Q1 2016 | C23: 4.2684 | D23: 3.759 | E23: 0.9981 | F23: 0.0555
A25: Kurs średni Q1-Q2 2016 | B25: Average exchange rate Q1-Q2 2016 | C25: 4.3805167 | D25: 3.9359667 | E25: 1.0229468 | F25: 0.05725
A26: Kurs zamknięcia Q2 2016 | B26: Closing exchange rate Q2 2016 | C26: 4.4255 | D26: 3.9803 | E26: 1.0349194 | F26: 0.062
A28: Kurs średni Q1-Q3 2016 | B28: Average exchange rate Q1-Q3 2016 | C28: 4.3687778 | D28: 3.9240222 | E28: 1.0249222 | F28: 0.0581111
A29: Kurs zamknięcia Q3 2016 | B29: Closing exchange rate Q3 2016 | C29: 4.312 | D29: 3.8558 | E29: 1.0260245 | F29: 0.0609
A31: Kurs średni Q1-Q4 2016 | B31: Average exchange rate Q1-Q4 2016 | C31: 4.375675 | D31: 3.9680333 | E31: 1.0353283 | F31: 0.0598167
A32: Kurs zamknięcia Q4 2016 | B32: Closing exchange rate Q4 2016 | C32: 4.424 | D32: 4.1793 | E32: 1.0869441 | F32: 0.068
A34: Kurs średni Q1 2017 | B34: Average exchange rate Q1 2017 | C34: 4.2890667 | D34: 4.0223667 | E34: 1.0912259 | F34: 0.0693667
A35: Kurs zamknięcia Q1 2017 | B35: Closing exchange rate Q1 2017 | C35: 4.2198 | D35: 3.9455 | E35: 1.0863161 | F35: 0.0704
A37: Kurs średni Q1-Q2 2017 | B37: Average exchange rate Q1-Q2 2017 | C37: 4.2474 | D37: 3.8963833 | E37: 1.0753374 | F37: 0.0673833
A38: Kurs zamknięcia Q2 2017 | B38: Closing exchange rate Q2 2017 | C38: 4.2265 | D38: 3.7062 | E38: 1.0601259 | F38: 0.0624
A40: Kurs średni Q1-Q3 2017 | B40: Average exchange rate Q1-Q3 2017 | C40: 4.2566444 | D40: 3.8043111 | E40: 1.0558041 | F40: 0.0654556
A41: Kurs zamknięcia Q3 2017 | B41: Closing exchange rate Q3 2017 | C41: 4.3091 | D41: 3.6519 | E41: 1.0348257 | F41: 0.0631
A43: Kurs średni Q1-Q4 2017 | B43: Average exchange rate Q1-Q4 2017 | C43: 4.2446 | D43: 3.7439 | E43: 1.0466 | F43: 0.0644
A44: Kurs zamknięcia Q4 2017 | B44: Closing exchange rate Q4 2017 | C44: 4.1709 | D44: 3.4813 | E44: 1.0041 | F44: 0.0604
A46: Kurs średni Q1 2018 | B46: Average exchange rate Q1 2018 | C46: 4.1784 | D46: 3.3881 | E46: 0.977 | F46: 0.0598
A47: Kurs zamknięcia Q1 2018 | B47: Closing exchange rate Q1 2018 | C47: 4.2085 | D47: 3.4139 | E47: 0.9715 | F47: 0.0594
A49: Kurs średni Q1-Q2 2018 | B49: Average exchange rate Q1-Q2 2018 | C49: 4.23945 | D49: 3.5192167 | E49: 0.9952924 | F49: 0.05905
A50: Kurs zamknięcia Q2 2018 | B50: Closing exchange rate Q2 2018 | C50: 4.3616 | D50: 3.744 | E50: 1.0257534 | F50: 0.0597
A52: Kurs średni Q1-Q3 2018 | B52: Average exchange rate Q1-Q3 2018 | C52: 4.2534778 | D52: 3.5688444 | E52: 1.0002299 | F52: 0.0581111
A53: Kurs zamknięcia Q3 2018 | B53: Closing exchange rate Q3 2018 | C53: 4.2714 | D53: 3.6754 | E53: 1.0133444 | F53: 0.0561
A55: Kurs średni Q1-Q4 2018 | B55: Average exchange rate Q1-Q4 2018 | C55: 4.2669167 | D55: 3.622725 | E55: 1.0042799 | F55: 0.0576417
A56: Kurs zamknięcia Q4 2018 | B56: Closing exchange rate Q4 2018 | C56: 4.3 | D56: 3.7597 | E56: 1.0031217 | F56: 0.0541
A58: Kurs średni Q1 2019 | B58: Average exchange rate Q1 2019 | C58: 4.2978333 | D58: 3.7829667 | E58: 1.0433255 | F58: 0.058
A59: Kurs zamknięcia Q1 2019 | B59: Closing exchange rate Q1 2019 | C59: 4.3013 | D59: 3.8365 | E59: 1.0563051 | F59: 0.0593
A61: Kurs średni Q1-Q2 2019 | B61: Average exchange rate Q1-Q2 2019 | C61: 4.2880333 | D61: 3.7935667 | E61: 1.0496067 | F61: 0.0585333
A62: Kurs zamknięcia Q2 2019 | B62: Closing exchange rate Q2 2019 | C62: 4.252 | D62: 3.7336 | E62: 1.0469994 | F62: 0.0592
A64: Kurs średni Q1-Q3 2019 | B64: Average exchange rate Q1-Q3 2019 | C64: 4.3085889 | D64: 3.8426111 | E64: 1.0744856 | F64: 0.0592667
A65: Kurs zamknięcia Q3 2019 | B65: Closing exchange rate Q3 2019 | C65: 4.3736 | D65: 4 | E65: 1.1487651 | F65: 0.0618
A67: Kurs średni Q1-Q4 2019 | B67: Average exchange rate Q1-Q4 2019 | C67: 4.3018 | D67: 3.844 | E67: 1.0818 | F67: 0.0608
A68: Kurs zamknięcia Q4 2019 | B68: Closing exchange rate Q4 2019 | C68: 4.2585 | D68: 3.7977 | E68: 1.0989 | F68: 0.075
A70: Kurs średni Q1 2020 | B70: Average exchange rate Q1 2020 | C70: 4.3963 | D70: 3.9907 | E70: 1.1422 | F70: 0.0575
A71: Kurs zamknięcia Q1 2020 | B71: Closing exchange rate Q1 2020 | C71: 4.5523 | D71: 4.1466 | E71: 1.1631 | F71: 0.0528
A73: Kurs średni Q1-Q2 2020 | B73: Average exchange rate Q1-Q2 2020 | C73: 4.44125 | D73: 4.02143 | E73: 1.1517113 | F73: 0.0571667
A74: Kurs zamknięcia Q2 2020 | B74: Closing exchange rate Q2 2020 | C74: 4.466 | D74: 3.9806 | E74: 1.14847 | F74: 0.0564
A76: Kurs średni Q1-Q3 2020 | B76: Average exchange rate Q1-Q3 2020 | C76: 4.4429 | D76: 3.9344 | E76: 1.1235 | F76: 0.0547
A77: Kurs zamknięcia Q3 2020 | B77: Closing exchange rate Q3 2020 | C77: 4.5268 | D77: 3.8658 | E77: 1.136 | F77: 0.0493
A79: Kurs średni Q1-Q4 2020 | B79: Average exchange rate Q1-Q4 2020 | C79: 4.4742 | D79: 3.9045 | E79: 1.1398 | F79: 0.0535
A80: Kurs zamknięcia Q4 2020 | B80: Closing exchange rate Q4 2020 | C80: 4.6148 | D80: 3.7584 | E80: 1.169 | F80: 0.0501
A82: Kurs średni Q1 2021 | B82: Average exchange rate Q1 2021 | C82: 4.5721 | D82: 3.8127667 | E82: 1.1546257 | F82: 0.0505
A83: Kurs zamknięcia Q1 2021 | B83: Closing exchange rate Q1 2021 | C83: 4.6603 | D83: 3.9676 | E83: 1.190042 | F83: 0.0525
A85: Kurs średni Q1-Q2 2021 | B85: Average exchange rate Q1-Q2 2021 | C85: 4.5471667 | D85: 3.7814667 | E85: 1.1536684 | F85: 0.05065
A86: Kurs zamknięcia Q2 2021 | B86: Closing exchange rate Q2 2021 | C86: 4.5208 | D86: 3.8035 | E86: 1.1667178 | F86: 0.052
A88: Kurs średni Q1-Q3 2021 | B88: Average exchange rate Q1-Q3 2021 | C88: 4.5584889 | D88: 3.8178778 | E88: 1.1714962 | F88: 0.0515333
A89: Kurs zamknięcia Q3 2021 | B89: Closing exchange rate Q3 2021 | C89: 4.6329 | D89: 3.9925 | E89: 1.2364509 | F89: 0.0549
